{"text_format":"1","workbook":"xlsx","n_sheets":4,"sheets":["Selectie","Prijslijst","Bron","Validatie"],"not_rendered":{"charts":0,"images":13,"macros":1,"external_links":0,"defined_names":11,"comments":0,"pivot_tables":0},"unopened":[],"bounds":{"document_bytes":16777216,"sheet_cells":100000,"rows_first":2000,"rows_last":500,"rows_between":2000,"halvings":0,"cell_chars":16384,"cell_head_chars":4096},"cells_cut":0,"cells_raw":0,"read":"whole","date_system":"1900"}

{"sheet":"Selectie","index":0,"n_rows":999,"n_cols":5,"rows_kept":999,"cut":false,"hidden":false,"merged":[[3,4,3,20]]}
[null,{"$f":"IFERROR(LEFT(A1, SEARCH(\"/\",A1,1)-2),\"\")","v":""},{"$f":"IFERROR(INDEX(Bron!B:B,MATCH(Selectie!B1,Bron!C:C,0)),\"\")","v":""}]
[null,"",{"$f":"IFERROR(INDEX(Bron!B:B,MATCH(Selectie!B2,Bron!C:C,0)),\"\")","v":""}]
[null,"",{"$f":"IFERROR(INDEX(Bron!B:B,MATCH(Selectie!B3,Bron!C:C,0)),\"\")","v":""}]
[null,"",{"$f":"IFERROR(INDEX(Bron!B:B,MATCH(Selectie!B4,Bron!C:C,0)),\"\")","v":""},null,"Opstellen Prijslijst Materiaal en Techniek (Codes Nza)"]
[null,"",{"$f":"IFERROR(INDEX(Bron!B:B,MATCH(Selectie!B5,Bron!C:C,0)),\"\")","v":""}]
[null,"",{"$f":"IFERROR(INDEX(Bron!B:B,MATCH(Selectie!B6,Bron!C:C,0)),\"\")","v":""}]
[null,"",{"$f":"IFERROR(INDEX(Bron!B:B,MATCH(Selectie!B7,Bron!C:C,0)),\"\")","v":""}]
[null,"",{"$f":"IFERROR(INDEX(Bron!B:B,MATCH(Selectie!B8,Bron!C:C,0)),\"\")","v":""}]
[null,"",{"$f":"IFERROR(INDEX(Bron!B:B,MATCH(Selectie!B9,Bron!C:C,0)),\"\")","v":""}]
[null,"",{"$f":"IFERROR(INDEX(Bron!B:B,MATCH(Selectie!B10,Bron!C:C,0)),\"\")","v":""}]
[null,"",{"$f":"IFERROR(INDEX(Bron!B:B,MATCH(Selectie!B11,Bron!C:C,0)),\"\")","v":""}]
[null,"",{"$f":"IFERROR(INDEX(Bron!B:B,MATCH(Selectie!B12,Bron!C:C,0)),\"\")","v":""}]
[null,"",{"$f":"IFERROR(INDEX(Bron!B:B,MATCH(Selectie!B13,Bron!C:C,0)),\"\")","v":""}]
[null,"",{"$f":"IFERROR(INDEX(Bron!B:B,MATCH(Selectie!B14,Bron!C:C,0)),\"\")","v":""}]
[null,"",{"$f":"IFERROR(INDEX(Bron!B:B,MATCH(Selectie!B15,Bron!C:C,0)),\"\")","v":""}]
[null,"",{"$f":"IFERROR(INDEX(Bron!B:B,MATCH(Selectie!B16,Bron!C:C,0)),\"\")","v":""}]
[null,"",{"$f":"IFERROR(INDEX(Bron!B:B,MATCH(Selectie!B17,Bron!C:C,0)),\"\")","v":""}]
[null,"",{"$f":"IFERROR(INDEX(Bron!B:B,MATCH(Selectie!B18,Bron!C:C,0)),\"\")","v":""}]
[null,"",{"$f":"IFERROR(INDEX(Bron!B:B,MATCH(Selectie!B19,Bron!C:C,0)),\"\")","v":""}]
[null,"",{"$f":"IFERROR(INDEX(Bron!B:B,MATCH(Selectie!B20,Bron!C:C,0)),\"\")","v":""}]
[null,"",{"$f":"IFERROR(INDEX(Bron!B:B,MATCH(Selectie!B21,Bron!C:C,0)),\"\")","v":""}]
[null,"",{"$f":"IFERROR(INDEX(Bron!B:B,MATCH(Selectie!B22,Bron!C:C,0)),\"\")","v":""}]
[null,"",{"$f":"IFERROR(INDEX(Bron!B:B,MATCH(Selectie!B23,Bron!C:C,0)),\"\")","v":""}]
[null,"",{"$f":"IFERROR(INDEX(Bron!B:B,MATCH(Selectie!B24,Bron!C:C,0)),\"\")","v":""}]
[null,"",{"$f":"IFERROR(INDEX(Bron!B:B,MATCH(Selectie!B25,Bron!C:C,0)),\"\")","v":""}]
[null,"",{"$f":"IFERROR(INDEX(Bron!B:B,MATCH(Selectie!B26,Bron!C:C,0)),\"\")","v":""}]
[null,"",{"$f":"IFERROR(INDEX(Bron!B:B,MATCH(Selectie!B27,Bron!C:C,0)),\"\")","v":""}]
[null,"",{"$f":"IFERROR(INDEX(Bron!B:B,MATCH(Selectie!B28,Bron!C:C,0)),\"\")","v":""}]
[null,"",{"$f":"IFERROR(INDEX(Bron!B:B,MATCH(Selectie!B29,Bron!C:C,0)),\"\")","v":""}]
[null,"",{"$f":"IFERROR(INDEX(Bron!B:B,MATCH(Selectie!B30,Bron!C:C,0)),\"\")","v":""}]
[null,"",{"$f":"IFERROR(INDEX(Bron!B:B,MATCH(Selectie!B31,Bron!C:C,0)),\"\")","v":""}]
[null,"",{"$f":"IFERROR(INDEX(Bron!B:B,MATCH(Selectie!B32,Bron!C:C,0)),\"\")","v":""}]
[null,"",{"$f":"IFERROR(INDEX(Bron!B:B,MATCH(Selectie!B33,Bron!C:C,0)),\"\")","v":""}]
[null,"",{"$f":"IFERROR(INDEX(Bron!B:B,MATCH(Selectie!B34,Bron!C:C,0)),\"\")","v":""}]
[null,"",{"$f":"IFERROR(INDEX(Bron!B:B,MATCH(Selectie!B35,Bron!C:C,0)),\"\")","v":""}]
[null,"",{"$f":"IFERROR(INDEX(Bron!B:B,MATCH(Selectie!B36,Bron!C:C,0)),\"\")","v":""}]
[null,"",{"$f":"IFERROR(INDEX(Bron!B:B,MATCH(Selectie!B37,Bron!C:C,0)),\"\")","v":""}]
[null,"",{"$f":"IFERROR(INDEX(Bron!B:B,MATCH(Selectie!B38,Bron!C:C,0)),\"\")","v":""}]
[null,"",{"$f":"IFERROR(INDEX(Bron!B:B,MATCH(Selectie!B39,Bron!C:C,0)),\"\")","v":""}]
[null,"",{"$f":"IFERROR(INDEX(Bron!B:B,MATCH(Selectie!B40,Bron!C:C,0)),\"\")","v":""}]
[null,"",{"$f":"IFERROR(INDEX(Bron!B:B,MATCH(Selectie!B41,Bron!C:C,0)),\"\")","v":""}]
[null,"",{"$f":"IFERROR(INDEX(Bron!B:B,MATCH(Selectie!B42,Bron!C:C,0)),\"\")","v":""}]
[null,"",{"$f":"IFERROR(INDEX(Bron!B:B,MATCH(Selectie!B43,Bron!C:C,0)),\"\")","v":""}]
[null,"",{"$f":"IFERROR(INDEX(Bron!B:B,MATCH(Selectie!B44,Bron!C:C,0)),\"\")","v":""}]
[null,"",{"$f":"IFERROR(INDEX(Bron!B:B,MATCH(Selectie!B45,Bron!C:C,0)),\"\")","v":""}]
[null,"",{"$f":"IFERROR(INDEX(Bron!B:B,MATCH(Selectie!B46,Bron!C:C,0)),\"\")","v":""}]
[null,"",{"$f":"IFERROR(INDEX(Bron!B:B,MATCH(Selectie!B47,Bron!C:C,0)),\"\")","v":""}]
[null,"",{"$f":"IFERROR(INDEX(Bron!B:B,MATCH(Selectie!B48,Bron!C:C,0)),\"\")","v":""}]
[null,"",{"$f":"IFERROR(INDEX(Bron!B:B,MATCH(Selectie!B49,Bron!C:C,0)),\"\")","v":""}]
[null,"",{"$f":"IFERROR(INDEX(Bron!B:B,MATCH(Selectie!B50,Bron!C:C,0)),\"\")","v":""}]
[null,"",{"$f":"IFERROR(INDEX(Bron!B:B,MATCH(Selectie!B51,Bron!C:C,0)),\"\")","v":""}]
[null,"",{"$f":"IFERROR(INDEX(Bron!B:B,MATCH(Selectie!B52,Bron!C:C,0)),\"\")","v":""}]
[null,"",{"$f":"IFERROR(INDEX(Bron!B:B,MATCH(Selectie!B53,Bron!C:C,0)),\"\")","v":""}]
[null,"",{"$f":"IFERROR(INDEX(Bron!B:B,MATCH(Selectie!B54,Bron!C:C,0)),\"\")","v":""}]
[null,"",{"$f":"IFERROR(INDEX(Bron!B:B,MATCH(Selectie!B55,Bron!C:C,0)),\"\")","v":""}]
[null,"",{"$f":"IFERROR(INDEX(Bron!B:B,MATCH(Selectie!B56,Bron!C:C,0)),\"\")","v":""}]
[null,"",{"$f":"IFERROR(INDEX(Bron!B:B,MATCH(Selectie!B57,Bron!C:C,0)),\"\")","v":""}]
[null,"",{"$f":"IFERROR(INDEX(Bron!B:B,MATCH(Selectie!B58,Bron!C:C,0)),\"\")","v":""}]
[null,"",{"$f":"IFERROR(INDEX(Bron!B:B,MATCH(Selectie!B59,Bron!C:C,0)),\"\")","v":""}]
[null,"",{"$f":"IFERROR(INDEX(Bron!B:B,MATCH(Selectie!B60,Bron!C:C,0)),\"\")","v":""}]
[null,"",{"$f":"IFERROR(INDEX(Bron!B:B,MATCH(Selectie!B61,Bron!C:C,0)),\"\")","v":""}]
[null,"",{"$f":"IFERROR(INDEX(Bron!B:B,MATCH(Selectie!B62,Bron!C:C,0)),\"\")","v":""}]
[null,"",{"$f":"IFERROR(INDEX(Bron!B:B,MATCH(Selectie!B63,Bron!C:C,0)),\"\")","v":""}]
[null,{"$f":"IFERROR(LEFT(A64, SEARCH(\"/\",A64,1)-2),\"\")","v":""},{"$f":"IFERROR(INDEX(Bron!B:B,MATCH(Selectie!B64,Bron!C:C,0)),\"\")","v":""}]
[null,"",{"$f":"IFERROR(INDEX(Bron!B:B,MATCH(Selectie!B65,Bron!C:C,0)),\"\")","v":""}]
[null,"",{"$f":"IFERROR(INDEX(Bron!B:B,MATCH(Selectie!B66,Bron!C:C,0)),\"\")","v":""}]
[null,"",{"$f":"IFERROR(INDEX(Bron!B:B,MATCH(Selectie!B67,Bron!C:C,0)),\"\")","v":""}]
[null,"",{"$f":"IFERROR(INDEX(Bron!B:B,MATCH(Selectie!B68,Bron!C:C,0)),\"\")","v":""}]
[null,"",{"$f":"IFERROR(INDEX(Bron!B:B,MATCH(Selectie!B69,Bron!C:C,0)),\"\")","v":""}]
[null,"",{"$f":"IFERROR(INDEX(Bron!B:B,MATCH(Selectie!B70,Bron!C:C,0)),\"\")","v":""}]
[null,"",{"$f":"IFERROR(INDEX(Bron!B:B,MATCH(Selectie!B71,Bron!C:C,0)),\"\")","v":""}]
[null,"",{"$f":"IFERROR(INDEX(Bron!B:B,MATCH(Selectie!B72,Bron!C:C,0)),\"\")","v":""}]
[null,"",{"$f":"IFERROR(INDEX(Bron!B:B,MATCH(Selectie!B73,Bron!C:C,0)),\"\")","v":""}]
[null,"",{"$f":"IFERROR(INDEX(Bron!B:B,MATCH(Selectie!B74,Bron!C:C,0)),\"\")","v":""}]
[null,"",{"$f":"IFERROR(INDEX(Bron!B:B,MATCH(Selectie!B75,Bron!C:C,0)),\"\")","v":""}]
[null,"",{"$f":"IFERROR(INDEX(Bron!B:B,MATCH(Selectie!B76,Bron!C:C,0)),\"\")","v":""}]
[null,"",{"$f":"IFERROR(INDEX(Bron!B:B,MATCH(Selectie!B77,Bron!C:C,0)),\"\")","v":""}]
[null,"",{"$f":"IFERROR(INDEX(Bron!B:B,MATCH(Selectie!B78,Bron!C:C,0)),\"\")","v":""}]
[null,"",{"$f":"IFERROR(INDEX(Bron!B:B,MATCH(Selectie!B79,Bron!C:C,0)),\"\")","v":""}]
[null,"",{"$f":"IFERROR(INDEX(Bron!B:B,MATCH(Selectie!B80,Bron!C:C,0)),\"\")","v":""}]
[null,"",{"$f":"IFERROR(INDEX(Bron!B:B,MATCH(Selectie!B81,Bron!C:C,0)),\"\")","v":""}]
[null,"",{"$f":"IFERROR(INDEX(Bron!B:B,MATCH(Selectie!B82,Bron!C:C,0)),\"\")","v":""}]
[null,"",{"$f":"IFERROR(INDEX(Bron!B:B,MATCH(Selectie!B83,Bron!C:C,0)),\"\")","v":""}]
[null,"",{"$f":"IFERROR(INDEX(Bron!B:B,MATCH(Selectie!B84,Bron!C:C,0)),\"\")","v":""}]
[null,"",{"$f":"IFERROR(INDEX(Bron!B:B,MATCH(Selectie!B85,Bron!C:C,0)),\"\")","v":""}]
[null,"",{"$f":"IFERROR(INDEX(Bron!B:B,MATCH(Selectie!B86,Bron!C:C,0)),\"\")","v":""}]
[null,"",{"$f":"IFERROR(INDEX(Bron!B:B,MATCH(Selectie!B87,Bron!C:C,0)),\"\")","v":""}]
[null,"",{"$f":"IFERROR(INDEX(Bron!B:B,MATCH(Selectie!B88,Bron!C:C,0)),\"\")","v":""}]
[null,"",{"$f":"IFERROR(INDEX(Bron!B:B,MATCH(Selectie!B89,Bron!C:C,0)),\"\")","v":""}]
[null,"",{"$f":"IFERROR(INDEX(Bron!B:B,MATCH(Selectie!B90,Bron!C:C,0)),\"\")","v":""}]
[null,"",{"$f":"IFERROR(INDEX(Bron!B:B,MATCH(Selectie!B91,Bron!C:C,0)),\"\")","v":""}]
[null,"",{"$f":"IFERROR(INDEX(Bron!B:B,MATCH(Selectie!B92,Bron!C:C,0)),\"\")","v":""}]
[null,"",{"$f":"IFERROR(INDEX(Bron!B:B,MATCH(Selectie!B93,Bron!C:C,0)),\"\")","v":""}]
[null,"",{"$f":"IFERROR(INDEX(Bron!B:B,MATCH(Selectie!B94,Bron!C:C,0)),\"\")","v":""}]
[null,"",{"$f":"IFERROR(INDEX(Bron!B:B,MATCH(Selectie!B95,Bron!C:C,0)),\"\")","v":""}]
[null,"",{"$f":"IFERROR(INDEX(Bron!B:B,MATCH(Selectie!B96,Bron!C:C,0)),\"\")","v":""}]
[null,"",{"$f":"IFERROR(INDEX(Bron!B:B,MATCH(Selectie!B97,Bron!C:C,0)),\"\")","v":""}]
[null,"",{"$f":"IFERROR(INDEX(Bron!B:B,MATCH(Selectie!B98,Bron!C:C,0)),\"\")","v":""}]
[null,"",{"$f":"IFERROR(INDEX(Bron!B:B,MATCH(Selectie!B99,Bron!C:C,0)),\"\")","v":""}]
[null,"",{"$f":"IFERROR(INDEX(Bron!B:B,MATCH(Selectie!B100,Bron!C:C,0)),\"\")","v":""}]
[null,"",{"$f":"IFERROR(INDEX(Bron!B:B,MATCH(Selectie!B101,Bron!C:C,0)),\"\")","v":""}]
[null,"",{"$f":"IFERROR(INDEX(Bron!B:B,MATCH(Selectie!B102,Bron!C:C,0)),\"\")","v":""}]
[null,"",{"$f":"IFERROR(INDEX(Bron!B:B,MATCH(Selectie!B103,Bron!C:C,0)),\"\")","v":""}]
[null,"",{"$f":"IFERROR(INDEX(Bron!B:B,MATCH(Selectie!B104,Bron!C:C,0)),\"\")","v":""}]
[null,"",{"$f":"IFERROR(INDEX(Bron!B:B,MATCH(Selectie!B105,Bron!C:C,0)),\"\")","v":""}]
[null,"",{"$f":"IFERROR(INDEX(Bron!B:B,MATCH(Selectie!B106,Bron!C:C,0)),\"\")","v":""}]
[null,"",{"$f":"IFERROR(INDEX(Bron!B:B,MATCH(Selectie!B107,Bron!C:C,0)),\"\")","v":""}]
[null,"",{"$f":"IFERROR(INDEX(Bron!B:B,MATCH(Selectie!B108,Bron!C:C,0)),\"\")","v":""}]
[null,"",{"$f":"IFERROR(INDEX(Bron!B:B,MATCH(Selectie!B109,Bron!C:C,0)),\"\")","v":""}]
[null,"",{"$f":"IFERROR(INDEX(Bron!B:B,MATCH(Selectie!B110,Bron!C:C,0)),\"\")","v":""}]
[null,"",{"$f":"IFERROR(INDEX(Bron!B:B,MATCH(Selectie!B111,Bron!C:C,0)),\"\")","v":""}]
[null,"",{"$f":"IFERROR(INDEX(Bron!B:B,MATCH(Selectie!B112,Bron!C:C,0)),\"\")","v":""}]
[null,"",{"$f":"IFERROR(INDEX(Bron!B:B,MATCH(Selectie!B113,Bron!C:C,0)),\"\")","v":""}]
[null,"",{"$f":"IFERROR(INDEX(Bron!B:B,MATCH(Selectie!B114,Bron!C:C,0)),\"\")","v":""}]
[null,"",{"$f":"IFERROR(INDEX(Bron!B:B,MATCH(Selectie!B115,Bron!C:C,0)),\"\")","v":""}]
[null,"",{"$f":"IFERROR(INDEX(Bron!B:B,MATCH(Selectie!B116,Bron!C:C,0)),\"\")","v":""}]
[null,"",{"$f":"IFERROR(INDEX(Bron!B:B,MATCH(Selectie!B117,Bron!C:C,0)),\"\")","v":""}]
[null,"",{"$f":"IFERROR(INDEX(Bron!B:B,MATCH(Selectie!B118,Bron!C:C,0)),\"\")","v":""}]
[null,"",{"$f":"IFERROR(INDEX(Bron!B:B,MATCH(Selectie!B119,Bron!C:C,0)),\"\")","v":""}]
[null,"",{"$f":"IFERROR(INDEX(Bron!B:B,MATCH(Selectie!B120,Bron!C:C,0)),\"\")","v":""}]
[null,"",{"$f":"IFERROR(INDEX(Bron!B:B,MATCH(Selectie!B121,Bron!C:C,0)),\"\")","v":""}]
[null,"",{"$f":"IFERROR(INDEX(Bron!B:B,MATCH(Selectie!B122,Bron!C:C,0)),\"\")","v":""}]
[null,"",{"$f":"IFERROR(INDEX(Bron!B:B,MATCH(Selectie!B123,Bron!C:C,0)),\"\")","v":""}]
[null,"",{"$f":"IFERROR(INDEX(Bron!B:B,MATCH(Selectie!B124,Bron!C:C,0)),\"\")","v":""}]
[null,"",{"$f":"IFERROR(INDEX(Bron!B:B,MATCH(Selectie!B125,Bron!C:C,0)),\"\")","v":""}]
[null,"",{"$f":"IFERROR(INDEX(Bron!B:B,MATCH(Selectie!B126,Bron!C:C,0)),\"\")","v":""}]
[null,"",{"$f":"IFERROR(INDEX(Bron!B:B,MATCH(Selectie!B127,Bron!C:C,0)),\"\")","v":""}]
[null,{"$f":"IFERROR(LEFT(A128, SEARCH(\"/\",A128,1)-2),\"\")","v":""},{"$f":"IFERROR(INDEX(Bron!B:B,MATCH(Selectie!B128,Bron!C:C,0)),\"\")","v":""}]
[null,"",{"$f":"IFERROR(INDEX(Bron!B:B,MATCH(Selectie!B129,Bron!C:C,0)),\"\")","v":""}]
[null,"",{"$f":"IFERROR(INDEX(Bron!B:B,MATCH(Selectie!B130,Bron!C:C,0)),\"\")","v":""}]
[null,"",{"$f":"IFERROR(INDEX(Bron!B:B,MATCH(Selectie!B131,Bron!C:C,0)),\"\")","v":""}]
[null,"",{"$f":"IFERROR(INDEX(Bron!B:B,MATCH(Selectie!B132,Bron!C:C,0)),\"\")","v":""}]
[null,"",{"$f":"IFERROR(INDEX(Bron!B:B,MATCH(Selectie!B133,Bron!C:C,0)),\"\")","v":""}]
[null,"",{"$f":"IFERROR(INDEX(Bron!B:B,MATCH(Selectie!B134,Bron!C:C,0)),\"\")","v":""}]
[null,"",{"$f":"IFERROR(INDEX(Bron!B:B,MATCH(Selectie!B135,Bron!C:C,0)),\"\")","v":""}]
[null,"",{"$f":"IFERROR(INDEX(Bron!B:B,MATCH(Selectie!B136,Bron!C:C,0)),\"\")","v":""}]
[null,"",{"$f":"IFERROR(INDEX(Bron!B:B,MATCH(Selectie!B137,Bron!C:C,0)),\"\")","v":""}]
[null,"",{"$f":"IFERROR(INDEX(Bron!B:B,MATCH(Selectie!B138,Bron!C:C,0)),\"\")","v":""}]
[null,"",{"$f":"IFERROR(INDEX(Bron!B:B,MATCH(Selectie!B139,Bron!C:C,0)),\"\")","v":""}]
[null,"",{"$f":"IFERROR(INDEX(Bron!B:B,MATCH(Selectie!B140,Bron!C:C,0)),\"\")","v":""}]
[null,"",{"$f":"IFERROR(INDEX(Bron!B:B,MATCH(Selectie!B141,Bron!C:C,0)),\"\")","v":""}]
[null,"",{"$f":"IFERROR(INDEX(Bron!B:B,MATCH(Selectie!B142,Bron!C:C,0)),\"\")","v":""}]
[null,"",{"$f":"IFERROR(INDEX(Bron!B:B,MATCH(Selectie!B143,Bron!C:C,0)),\"\")","v":""}]
[null,"",{"$f":"IFERROR(INDEX(Bron!B:B,MATCH(Selectie!B144,Bron!C:C,0)),\"\")","v":""}]
[null,"",{"$f":"IFERROR(INDEX(Bron!B:B,MATCH(Selectie!B145,Bron!C:C,0)),\"\")","v":""}]
[null,"",{"$f":"IFERROR(INDEX(Bron!B:B,MATCH(Selectie!B146,Bron!C:C,0)),\"\")","v":""}]
[null,"",{"$f":"IFERROR(INDEX(Bron!B:B,MATCH(Selectie!B147,Bron!C:C,0)),\"\")","v":""}]
[null,"",{"$f":"IFERROR(INDEX(Bron!B:B,MATCH(Selectie!B148,Bron!C:C,0)),\"\")","v":""}]
[null,"",{"$f":"IFERROR(INDEX(Bron!B:B,MATCH(Selectie!B149,Bron!C:C,0)),\"\")","v":""}]
[null,"",{"$f":"IFERROR(INDEX(Bron!B:B,MATCH(Selectie!B150,Bron!C:C,0)),\"\")","v":""}]
[null,"",{"$f":"IFERROR(INDEX(Bron!B:B,MATCH(Selectie!B151,Bron!C:C,0)),\"\")","v":""}]
[null,"",{"$f":"IFERROR(INDEX(Bron!B:B,MATCH(Selectie!B152,Bron!C:C,0)),\"\")","v":""}]
[null,"",{"$f":"IFERROR(INDEX(Bron!B:B,MATCH(Selectie!B153,Bron!C:C,0)),\"\")","v":""}]
[null,"",{"$f":"IFERROR(INDEX(Bron!B:B,MATCH(Selectie!B154,Bron!C:C,0)),\"\")","v":""}]
[null,"",{"$f":"IFERROR(INDEX(Bron!B:B,MATCH(Selectie!B155,Bron!C:C,0)),\"\")","v":""}]
[null,"",{"$f":"IFERROR(INDEX(Bron!B:B,MATCH(Selectie!B156,Bron!C:C,0)),\"\")","v":""}]
[null,"",{"$f":"IFERROR(INDEX(Bron!B:B,MATCH(Selectie!B157,Bron!C:C,0)),\"\")","v":""}]
[null,"",{"$f":"IFERROR(INDEX(Bron!B:B,MATCH(Selectie!B158,Bron!C:C,0)),\"\")","v":""}]
[null,"",{"$f":"IFERROR(INDEX(Bron!B:B,MATCH(Selectie!B159,Bron!C:C,0)),\"\")","v":""}]
[null,"",{"$f":"IFERROR(INDEX(Bron!B:B,MATCH(Selectie!B160,Bron!C:C,0)),\"\")","v":""}]
[null,"",{"$f":"IFERROR(INDEX(Bron!B:B,MATCH(Selectie!B161,Bron!C:C,0)),\"\")","v":""}]
[null,"",{"$f":"IFERROR(INDEX(Bron!B:B,MATCH(Selectie!B162,Bron!C:C,0)),\"\")","v":""}]
[null,"",{"$f":"IFERROR(INDEX(Bron!B:B,MATCH(Selectie!B163,Bron!C:C,0)),\"\")","v":""}]
[null,"",{"$f":"IFERROR(INDEX(Bron!B:B,MATCH(Selectie!B164,Bron!C:C,0)),\"\")","v":""}]
[null,"",{"$f":"IFERROR(INDEX(Bron!B:B,MATCH(Selectie!B165,Bron!C:C,0)),\"\")","v":""}]
[null,"",{"$f":"IFERROR(INDEX(Bron!B:B,MATCH(Selectie!B166,Bron!C:C,0)),\"\")","v":""}]
[null,"",{"$f":"IFERROR(INDEX(Bron!B:B,MATCH(Selectie!B167,Bron!C:C,0)),\"\")","v":""}]
[null,"",{"$f":"IFERROR(INDEX(Bron!B:B,MATCH(Selectie!B168,Bron!C:C,0)),\"\")","v":""}]
[null,"",{"$f":"IFERROR(INDEX(Bron!B:B,MATCH(Selectie!B169,Bron!C:C,0)),\"\")","v":""}]
[null,"",{"$f":"IFERROR(INDEX(Bron!B:B,MATCH(Selectie!B170,Bron!C:C,0)),\"\")","v":""}]
[null,"",{"$f":"IFERROR(INDEX(Bron!B:B,MATCH(Selectie!B171,Bron!C:C,0)),\"\")","v":""}]
[null,"",{"$f":"IFERROR(INDEX(Bron!B:B,MATCH(Selectie!B172,Bron!C:C,0)),\"\")","v":""}]
[null,"",{"$f":"IFERROR(INDEX(Bron!B:B,MATCH(Selectie!B173,Bron!C:C,0)),\"\")","v":""}]
[null,"",{"$f":"IFERROR(INDEX(Bron!B:B,MATCH(Selectie!B174,Bron!C:C,0)),\"\")","v":""}]
[null,"",{"$f":"IFERROR(INDEX(Bron!B:B,MATCH(Selectie!B175,Bron!C:C,0)),\"\")","v":""}]
[null,"",{"$f":"IFERROR(INDEX(Bron!B:B,MATCH(Selectie!B176,Bron!C:C,0)),\"\")","v":""}]
[null,"",{"$f":"IFERROR(INDEX(Bron!B:B,MATCH(Selectie!B177,Bron!C:C,0)),\"\")","v":""}]
[null,"",{"$f":"IFERROR(INDEX(Bron!B:B,MATCH(Selectie!B178,Bron!C:C,0)),\"\")","v":""}]
[null,"",{"$f":"IFERROR(INDEX(Bron!B:B,MATCH(Selectie!B179,Bron!C:C,0)),\"\")","v":""}]
[null,"",{"$f":"IFERROR(INDEX(Bron!B:B,MATCH(Selectie!B180,Bron!C:C,0)),\"\")","v":""}]
[null,"",{"$f":"IFERROR(INDEX(Bron!B:B,MATCH(Selectie!B181,Bron!C:C,0)),\"\")","v":""}]
[null,"",{"$f":"IFERROR(INDEX(Bron!B:B,MATCH(Selectie!B182,Bron!C:C,0)),\"\")","v":""}]
[null,"",{"$f":"IFERROR(INDEX(Bron!B:B,MATCH(Selectie!B183,Bron!C:C,0)),\"\")","v":""}]
[null,"",{"$f":"IFERROR(INDEX(Bron!B:B,MATCH(Selectie!B184,Bron!C:C,0)),\"\")","v":""}]
[null,"",{"$f":"IFERROR(INDEX(Bron!B:B,MATCH(Selectie!B185,Bron!C:C,0)),\"\")","v":""}]
[null,"",{"$f":"IFERROR(INDEX(Bron!B:B,MATCH(Selectie!B186,Bron!C:C,0)),\"\")","v":""}]
[null,"",{"$f":"IFERROR(INDEX(Bron!B:B,MATCH(Selectie!B187,Bron!C:C,0)),\"\")","v":""}]
[null,"",{"$f":"IFERROR(INDEX(Bron!B:B,MATCH(Selectie!B188,Bron!C:C,0)),\"\")","v":""}]
[null,"",{"$f":"IFERROR(INDEX(Bron!B:B,MATCH(Selectie!B189,Bron!C:C,0)),\"\")","v":""}]
[null,"",{"$f":"IFERROR(INDEX(Bron!B:B,MATCH(Selectie!B190,Bron!C:C,0)),\"\")","v":""}]
[null,"",{"$f":"IFERROR(INDEX(Bron!B:B,MATCH(Selectie!B191,Bron!C:C,0)),\"\")","v":""}]
[null,{"$f":"IFERROR(LEFT(A192, SEARCH(\"/\",A192,1)-2),\"\")","v":""},{"$f":"IFERROR(INDEX(Bron!B:B,MATCH(Selectie!B192,Bron!C:C,0)),\"\")","v":""}]
[null,"",{"$f":"IFERROR(INDEX(Bron!B:B,MATCH(Selectie!B193,Bron!C:C,0)),\"\")","v":""}]
[null,"",{"$f":"IFERROR(INDEX(Bron!B:B,MATCH(Selectie!B194,Bron!C:C,0)),\"\")","v":""}]
[null,"",{"$f":"IFERROR(INDEX(Bron!B:B,MATCH(Selectie!B195,Bron!C:C,0)),\"\")","v":""}]
[null,"",{"$f":"IFERROR(INDEX(Bron!B:B,MATCH(Selectie!B196,Bron!C:C,0)),\"\")","v":""}]
[null,"",{"$f":"IFERROR(INDEX(Bron!B:B,MATCH(Selectie!B197,Bron!C:C,0)),\"\")","v":""}]
[null,"",{"$f":"IFERROR(INDEX(Bron!B:B,MATCH(Selectie!B198,Bron!C:C,0)),\"\")","v":""}]
[null,"",{"$f":"IFERROR(INDEX(Bron!B:B,MATCH(Selectie!B199,Bron!C:C,0)),\"\")","v":""}]
[null,"",{"$f":"IFERROR(INDEX(Bron!B:B,MATCH(Selectie!B200,Bron!C:C,0)),\"\")","v":""}]
[null,"",{"$f":"IFERROR(INDEX(Bron!B:B,MATCH(Selectie!B201,Bron!C:C,0)),\"\")","v":""}]
[null,"",{"$f":"IFERROR(INDEX(Bron!B:B,MATCH(Selectie!B202,Bron!C:C,0)),\"\")","v":""}]
[null,"",{"$f":"IFERROR(INDEX(Bron!B:B,MATCH(Selectie!B203,Bron!C:C,0)),\"\")","v":""}]
[null,"",{"$f":"IFERROR(INDEX(Bron!B:B,MATCH(Selectie!B204,Bron!C:C,0)),\"\")","v":""}]
[null,"",{"$f":"IFERROR(INDEX(Bron!B:B,MATCH(Selectie!B205,Bron!C:C,0)),\"\")","v":""}]
[null,"",{"$f":"IFERROR(INDEX(Bron!B:B,MATCH(Selectie!B206,Bron!C:C,0)),\"\")","v":""}]
[null,"",{"$f":"IFERROR(INDEX(Bron!B:B,MATCH(Selectie!B207,Bron!C:C,0)),\"\")","v":""}]
[null,"",{"$f":"IFERROR(INDEX(Bron!B:B,MATCH(Selectie!B208,Bron!C:C,0)),\"\")","v":""}]
[null,"",{"$f":"IFERROR(INDEX(Bron!B:B,MATCH(Selectie!B209,Bron!C:C,0)),\"\")","v":""}]
[null,"",{"$f":"IFERROR(INDEX(Bron!B:B,MATCH(Selectie!B210,Bron!C:C,0)),\"\")","v":""}]
[null,"",{"$f":"IFERROR(INDEX(Bron!B:B,MATCH(Selectie!B211,Bron!C:C,0)),\"\")","v":""}]
[null,"",{"$f":"IFERROR(INDEX(Bron!B:B,MATCH(Selectie!B212,Bron!C:C,0)),\"\")","v":""}]
[null,"",{"$f":"IFERROR(INDEX(Bron!B:B,MATCH(Selectie!B213,Bron!C:C,0)),\"\")","v":""}]
[null,"",{"$f":"IFERROR(INDEX(Bron!B:B,MATCH(Selectie!B214,Bron!C:C,0)),\"\")","v":""}]
[null,"",{"$f":"IFERROR(INDEX(Bron!B:B,MATCH(Selectie!B215,Bron!C:C,0)),\"\")","v":""}]
[null,"",{"$f":"IFERROR(INDEX(Bron!B:B,MATCH(Selectie!B216,Bron!C:C,0)),\"\")","v":""}]
[null,"",{"$f":"IFERROR(INDEX(Bron!B:B,MATCH(Selectie!B217,Bron!C:C,0)),\"\")","v":""}]
[null,"",{"$f":"IFERROR(INDEX(Bron!B:B,MATCH(Selectie!B218,Bron!C:C,0)),\"\")","v":""}]
[null,"",{"$f":"IFERROR(INDEX(Bron!B:B,MATCH(Selectie!B219,Bron!C:C,0)),\"\")","v":""}]
[null,"",{"$f":"IFERROR(INDEX(Bron!B:B,MATCH(Selectie!B220,Bron!C:C,0)),\"\")","v":""}]
[null,"",{"$f":"IFERROR(INDEX(Bron!B:B,MATCH(Selectie!B221,Bron!C:C,0)),\"\")","v":""}]
[null,"",{"$f":"IFERROR(INDEX(Bron!B:B,MATCH(Selectie!B222,Bron!C:C,0)),\"\")","v":""}]
[null,"",{"$f":"IFERROR(INDEX(Bron!B:B,MATCH(Selectie!B223,Bron!C:C,0)),\"\")","v":""}]
[null,"",{"$f":"IFERROR(INDEX(Bron!B:B,MATCH(Selectie!B224,Bron!C:C,0)),\"\")","v":""}]
[null,"",{"$f":"IFERROR(INDEX(Bron!B:B,MATCH(Selectie!B225,Bron!C:C,0)),\"\")","v":""}]
[null,"",{"$f":"IFERROR(INDEX(Bron!B:B,MATCH(Selectie!B226,Bron!C:C,0)),\"\")","v":""}]
[null,"",{"$f":"IFERROR(INDEX(Bron!B:B,MATCH(Selectie!B227,Bron!C:C,0)),\"\")","v":""}]
[null,"",{"$f":"IFERROR(INDEX(Bron!B:B,MATCH(Selectie!B228,Bron!C:C,0)),\"\")","v":""}]
[null,"",{"$f":"IFERROR(INDEX(Bron!B:B,MATCH(Selectie!B229,Bron!C:C,0)),\"\")","v":""}]
[null,"",{"$f":"IFERROR(INDEX(Bron!B:B,MATCH(Selectie!B230,Bron!C:C,0)),\"\")","v":""}]
[null,"",{"$f":"IFERROR(INDEX(Bron!B:B,MATCH(Selectie!B231,Bron!C:C,0)),\"\")","v":""}]
[null,"",{"$f":"IFERROR(INDEX(Bron!B:B,MATCH(Selectie!B232,Bron!C:C,0)),\"\")","v":""}]
[null,"",{"$f":"IFERROR(INDEX(Bron!B:B,MATCH(Selectie!B233,Bron!C:C,0)),\"\")","v":""}]
[null,"",{"$f":"IFERROR(INDEX(Bron!B:B,MATCH(Selectie!B234,Bron!C:C,0)),\"\")","v":""}]
[null,"",{"$f":"IFERROR(INDEX(Bron!B:B,MATCH(Selectie!B235,Bron!C:C,0)),\"\")","v":""}]
[null,"",{"$f":"IFERROR(INDEX(Bron!B:B,MATCH(Selectie!B236,Bron!C:C,0)),\"\")","v":""}]
[null,"",{"$f":"IFERROR(INDEX(Bron!B:B,MATCH(Selectie!B237,Bron!C:C,0)),\"\")","v":""}]
[null,"",{"$f":"IFERROR(INDEX(Bron!B:B,MATCH(Selectie!B238,Bron!C:C,0)),\"\")","v":""}]
[null,"",{"$f":"IFERROR(INDEX(Bron!B:B,MATCH(Selectie!B239,Bron!C:C,0)),\"\")","v":""}]
[null,"",{"$f":"IFERROR(INDEX(Bron!B:B,MATCH(Selectie!B240,Bron!C:C,0)),\"\")","v":""}]
[null,"",{"$f":"IFERROR(INDEX(Bron!B:B,MATCH(Selectie!B241,Bron!C:C,0)),\"\")","v":""}]
[null,"",{"$f":"IFERROR(INDEX(Bron!B:B,MATCH(Selectie!B242,Bron!C:C,0)),\"\")","v":""}]
[null,"",{"$f":"IFERROR(INDEX(Bron!B:B,MATCH(Selectie!B243,Bron!C:C,0)),\"\")","v":""}]
[null,"",{"$f":"IFERROR(INDEX(Bron!B:B,MATCH(Selectie!B244,Bron!C:C,0)),\"\")","v":""}]
[null,"",{"$f":"IFERROR(INDEX(Bron!B:B,MATCH(Selectie!B245,Bron!C:C,0)),\"\")","v":""}]
[null,"",{"$f":"IFERROR(INDEX(Bron!B:B,MATCH(Selectie!B246,Bron!C:C,0)),\"\")","v":""}]
[null,"",{"$f":"IFERROR(INDEX(Bron!B:B,MATCH(Selectie!B247,Bron!C:C,0)),\"\")","v":""}]
[null,"",{"$f":"IFERROR(INDEX(Bron!B:B,MATCH(Selectie!B248,Bron!C:C,0)),\"\")","v":""}]
[null,"",{"$f":"IFERROR(INDEX(Bron!B:B,MATCH(Selectie!B249,Bron!C:C,0)),\"\")","v":""}]
[null,"",{"$f":"IFERROR(INDEX(Bron!B:B,MATCH(Selectie!B250,Bron!C:C,0)),\"\")","v":""}]
[null,"",{"$f":"IFERROR(INDEX(Bron!B:B,MATCH(Selectie!B251,Bron!C:C,0)),\"\")","v":""}]
[null,"",{"$f":"IFERROR(INDEX(Bron!B:B,MATCH(Selectie!B252,Bron!C:C,0)),\"\")","v":""}]
[null,"",{"$f":"IFERROR(INDEX(Bron!B:B,MATCH(Selectie!B253,Bron!C:C,0)),\"\")","v":""}]
[null,"",{"$f":"IFERROR(INDEX(Bron!B:B,MATCH(Selectie!B254,Bron!C:C,0)),\"\")","v":""}]
[null,"",{"$f":"IFERROR(INDEX(Bron!B:B,MATCH(Selectie!B255,Bron!C:C,0)),\"\")","v":""}]
[null,{"$f":"IFERROR(LEFT(A256, SEARCH(\"/\",A256,1)-2),\"\")","v":""},{"$f":"IFERROR(INDEX(Bron!B:B,MATCH(Selectie!B256,Bron!C:C,0)),\"\")","v":""}]
[null,"",{"$f":"IFERROR(INDEX(Bron!B:B,MATCH(Selectie!B257,Bron!C:C,0)),\"\")","v":""}]
[null,"",{"$f":"IFERROR(INDEX(Bron!B:B,MATCH(Selectie!B258,Bron!C:C,0)),\"\")","v":""}]
[null,"",{"$f":"IFERROR(INDEX(Bron!B:B,MATCH(Selectie!B259,Bron!C:C,0)),\"\")","v":""}]
[null,"",{"$f":"IFERROR(INDEX(Bron!B:B,MATCH(Selectie!B260,Bron!C:C,0)),\"\")","v":""}]
[null,"",{"$f":"IFERROR(INDEX(Bron!B:B,MATCH(Selectie!B261,Bron!C:C,0)),\"\")","v":""}]
[null,"",{"$f":"IFERROR(INDEX(Bron!B:B,MATCH(Selectie!B262,Bron!C:C,0)),\"\")","v":""}]
[null,"",{"$f":"IFERROR(INDEX(Bron!B:B,MATCH(Selectie!B263,Bron!C:C,0)),\"\")","v":""}]
[null,"",{"$f":"IFERROR(INDEX(Bron!B:B,MATCH(Selectie!B264,Bron!C:C,0)),\"\")","v":""}]
[null,"",{"$f":"IFERROR(INDEX(Bron!B:B,MATCH(Selectie!B265,Bron!C:C,0)),\"\")","v":""}]
[null,"",{"$f":"IFERROR(INDEX(Bron!B:B,MATCH(Selectie!B266,Bron!C:C,0)),\"\")","v":""}]
[null,"",{"$f":"IFERROR(INDEX(Bron!B:B,MATCH(Selectie!B267,Bron!C:C,0)),\"\")","v":""}]
[null,"",{"$f":"IFERROR(INDEX(Bron!B:B,MATCH(Selectie!B268,Bron!C:C,0)),\"\")","v":""}]
[null,"",{"$f":"IFERROR(INDEX(Bron!B:B,MATCH(Selectie!B269,Bron!C:C,0)),\"\")","v":""}]
[null,"",{"$f":"IFERROR(INDEX(Bron!B:B,MATCH(Selectie!B270,Bron!C:C,0)),\"\")","v":""}]
[null,"",{"$f":"IFERROR(INDEX(Bron!B:B,MATCH(Selectie!B271,Bron!C:C,0)),\"\")","v":""}]
[null,"",{"$f":"IFERROR(INDEX(Bron!B:B,MATCH(Selectie!B272,Bron!C:C,0)),\"\")","v":""}]
[null,"",{"$f":"IFERROR(INDEX(Bron!B:B,MATCH(Selectie!B273,Bron!C:C,0)),\"\")","v":""}]
[null,"",{"$f":"IFERROR(INDEX(Bron!B:B,MATCH(Selectie!B274,Bron!C:C,0)),\"\")","v":""}]
[null,"",{"$f":"IFERROR(INDEX(Bron!B:B,MATCH(Selectie!B275,Bron!C:C,0)),\"\")","v":""}]
[null,"",{"$f":"IFERROR(INDEX(Bron!B:B,MATCH(Selectie!B276,Bron!C:C,0)),\"\")","v":""}]
[null,"",{"$f":"IFERROR(INDEX(Bron!B:B,MATCH(Selectie!B277,Bron!C:C,0)),\"\")","v":""}]
[null,"",{"$f":"IFERROR(INDEX(Bron!B:B,MATCH(Selectie!B278,Bron!C:C,0)),\"\")","v":""}]
[null,"",{"$f":"IFERROR(INDEX(Bron!B:B,MATCH(Selectie!B279,Bron!C:C,0)),\"\")","v":""}]
[null,"",{"$f":"IFERROR(INDEX(Bron!B:B,MATCH(Selectie!B280,Bron!C:C,0)),\"\")","v":""}]
[null,"",{"$f":"IFERROR(INDEX(Bron!B:B,MATCH(Selectie!B281,Bron!C:C,0)),\"\")","v":""}]
[null,"",{"$f":"IFERROR(INDEX(Bron!B:B,MATCH(Selectie!B282,Bron!C:C,0)),\"\")","v":""}]
[null,"",{"$f":"IFERROR(INDEX(Bron!B:B,MATCH(Selectie!B283,Bron!C:C,0)),\"\")","v":""}]
[null,"",{"$f":"IFERROR(INDEX(Bron!B:B,MATCH(Selectie!B284,Bron!C:C,0)),\"\")","v":""}]
[null,"",{"$f":"IFERROR(INDEX(Bron!B:B,MATCH(Selectie!B285,Bron!C:C,0)),\"\")","v":""}]
[null,"",{"$f":"IFERROR(INDEX(Bron!B:B,MATCH(Selectie!B286,Bron!C:C,0)),\"\")","v":""}]
[null,"",{"$f":"IFERROR(INDEX(Bron!B:B,MATCH(Selectie!B287,Bron!C:C,0)),\"\")","v":""}]
[null,"",{"$f":"IFERROR(INDEX(Bron!B:B,MATCH(Selectie!B288,Bron!C:C,0)),\"\")","v":""}]
[null,"",{"$f":"IFERROR(INDEX(Bron!B:B,MATCH(Selectie!B289,Bron!C:C,0)),\"\")","v":""}]
[null,"",{"$f":"IFERROR(INDEX(Bron!B:B,MATCH(Selectie!B290,Bron!C:C,0)),\"\")","v":""}]
[null,"",{"$f":"IFERROR(INDEX(Bron!B:B,MATCH(Selectie!B291,Bron!C:C,0)),\"\")","v":""}]
[null,"",{"$f":"IFERROR(INDEX(Bron!B:B,MATCH(Selectie!B292,Bron!C:C,0)),\"\")","v":""}]
[null,"",{"$f":"IFERROR(INDEX(Bron!B:B,MATCH(Selectie!B293,Bron!C:C,0)),\"\")","v":""}]
[null,"",{"$f":"IFERROR(INDEX(Bron!B:B,MATCH(Selectie!B294,Bron!C:C,0)),\"\")","v":""}]
[null,"",{"$f":"IFERROR(INDEX(Bron!B:B,MATCH(Selectie!B295,Bron!C:C,0)),\"\")","v":""}]
[null,"",{"$f":"IFERROR(INDEX(Bron!B:B,MATCH(Selectie!B296,Bron!C:C,0)),\"\")","v":""}]
[null,"",{"$f":"IFERROR(INDEX(Bron!B:B,MATCH(Selectie!B297,Bron!C:C,0)),\"\")","v":""}]
[null,"",{"$f":"IFERROR(INDEX(Bron!B:B,MATCH(Selectie!B298,Bron!C:C,0)),\"\")","v":""}]
[null,"",{"$f":"IFERROR(INDEX(Bron!B:B,MATCH(Selectie!B299,Bron!C:C,0)),\"\")","v":""}]
[null,"",{"$f":"IFERROR(INDEX(Bron!B:B,MATCH(Selectie!B300,Bron!C:C,0)),\"\")","v":""}]
[null,"",{"$f":"IFERROR(INDEX(Bron!B:B,MATCH(Selectie!B301,Bron!C:C,0)),\"\")","v":""}]
[null,"",{"$f":"IFERROR(INDEX(Bron!B:B,MATCH(Selectie!B302,Bron!C:C,0)),\"\")","v":""}]
[null,"",{"$f":"IFERROR(INDEX(Bron!B:B,MATCH(Selectie!B303,Bron!C:C,0)),\"\")","v":""}]
[null,"",{"$f":"IFERROR(INDEX(Bron!B:B,MATCH(Selectie!B304,Bron!C:C,0)),\"\")","v":""}]
[null,"",{"$f":"IFERROR(INDEX(Bron!B:B,MATCH(Selectie!B305,Bron!C:C,0)),\"\")","v":""}]
[null,"",{"$f":"IFERROR(INDEX(Bron!B:B,MATCH(Selectie!B306,Bron!C:C,0)),\"\")","v":""}]
[null,"",{"$f":"IFERROR(INDEX(Bron!B:B,MATCH(Selectie!B307,Bron!C:C,0)),\"\")","v":""}]
[null,"",{"$f":"IFERROR(INDEX(Bron!B:B,MATCH(Selectie!B308,Bron!C:C,0)),\"\")","v":""}]
[null,"",{"$f":"IFERROR(INDEX(Bron!B:B,MATCH(Selectie!B309,Bron!C:C,0)),\"\")","v":""}]
[null,"",{"$f":"IFERROR(INDEX(Bron!B:B,MATCH(Selectie!B310,Bron!C:C,0)),\"\")","v":""}]
[null,"",{"$f":"IFERROR(INDEX(Bron!B:B,MATCH(Selectie!B311,Bron!C:C,0)),\"\")","v":""}]
[null,"",{"$f":"IFERROR(INDEX(Bron!B:B,MATCH(Selectie!B312,Bron!C:C,0)),\"\")","v":""}]
[null,"",{"$f":"IFERROR(INDEX(Bron!B:B,MATCH(Selectie!B313,Bron!C:C,0)),\"\")","v":""}]
[null,"",{"$f":"IFERROR(INDEX(Bron!B:B,MATCH(Selectie!B314,Bron!C:C,0)),\"\")","v":""}]
[null,"",{"$f":"IFERROR(INDEX(Bron!B:B,MATCH(Selectie!B315,Bron!C:C,0)),\"\")","v":""}]
[null,"",{"$f":"IFERROR(INDEX(Bron!B:B,MATCH(Selectie!B316,Bron!C:C,0)),\"\")","v":""}]
[null,"",{"$f":"IFERROR(INDEX(Bron!B:B,MATCH(Selectie!B317,Bron!C:C,0)),\"\")","v":""}]
[null,"",{"$f":"IFERROR(INDEX(Bron!B:B,MATCH(Selectie!B318,Bron!C:C,0)),\"\")","v":""}]
[null,"",{"$f":"IFERROR(INDEX(Bron!B:B,MATCH(Selectie!B319,Bron!C:C,0)),\"\")","v":""}]
[null,{"$f":"IFERROR(LEFT(A320, SEARCH(\"/\",A320,1)-2),\"\")","v":""},{"$f":"IFERROR(INDEX(Bron!B:B,MATCH(Selectie!B320,Bron!C:C,0)),\"\")","v":""}]
[null,"",{"$f":"IFERROR(INDEX(Bron!B:B,MATCH(Selectie!B321,Bron!C:C,0)),\"\")","v":""}]
[null,"",{"$f":"IFERROR(INDEX(Bron!B:B,MATCH(Selectie!B322,Bron!C:C,0)),\"\")","v":""}]
[null,"",{"$f":"IFERROR(INDEX(Bron!B:B,MATCH(Selectie!B323,Bron!C:C,0)),\"\")","v":""}]
[null,"",{"$f":"IFERROR(INDEX(Bron!B:B,MATCH(Selectie!B324,Bron!C:C,0)),\"\")","v":""}]
[null,"",{"$f":"IFERROR(INDEX(Bron!B:B,MATCH(Selectie!B325,Bron!C:C,0)),\"\")","v":""}]
[null,"",{"$f":"IFERROR(INDEX(Bron!B:B,MATCH(Selectie!B326,Bron!C:C,0)),\"\")","v":""}]
[null,"",{"$f":"IFERROR(INDEX(Bron!B:B,MATCH(Selectie!B327,Bron!C:C,0)),\"\")","v":""}]
[null,"",{"$f":"IFERROR(INDEX(Bron!B:B,MATCH(Selectie!B328,Bron!C:C,0)),\"\")","v":""}]
[null,"",{"$f":"IFERROR(INDEX(Bron!B:B,MATCH(Selectie!B329,Bron!C:C,0)),\"\")","v":""}]
[null,"",{"$f":"IFERROR(INDEX(Bron!B:B,MATCH(Selectie!B330,Bron!C:C,0)),\"\")","v":""}]
[null,"",{"$f":"IFERROR(INDEX(Bron!B:B,MATCH(Selectie!B331,Bron!C:C,0)),\"\")","v":""}]
[null,"",{"$f":"IFERROR(INDEX(Bron!B:B,MATCH(Selectie!B332,Bron!C:C,0)),\"\")","v":""}]
[null,"",{"$f":"IFERROR(INDEX(Bron!B:B,MATCH(Selectie!B333,Bron!C:C,0)),\"\")","v":""}]
[null,"",{"$f":"IFERROR(INDEX(Bron!B:B,MATCH(Selectie!B334,Bron!C:C,0)),\"\")","v":""}]
[null,"",{"$f":"IFERROR(INDEX(Bron!B:B,MATCH(Selectie!B335,Bron!C:C,0)),\"\")","v":""}]
[null,"",{"$f":"IFERROR(INDEX(Bron!B:B,MATCH(Selectie!B336,Bron!C:C,0)),\"\")","v":""}]
[null,"",{"$f":"IFERROR(INDEX(Bron!B:B,MATCH(Selectie!B337,Bron!C:C,0)),\"\")","v":""}]
[null,"",{"$f":"IFERROR(INDEX(Bron!B:B,MATCH(Selectie!B338,Bron!C:C,0)),\"\")","v":""}]
[null,"",{"$f":"IFERROR(INDEX(Bron!B:B,MATCH(Selectie!B339,Bron!C:C,0)),\"\")","v":""}]
[null,"",{"$f":"IFERROR(INDEX(Bron!B:B,MATCH(Selectie!B340,Bron!C:C,0)),\"\")","v":""}]
[null,"",{"$f":"IFERROR(INDEX(Bron!B:B,MATCH(Selectie!B341,Bron!C:C,0)),\"\")","v":""}]
[null,"",{"$f":"IFERROR(INDEX(Bron!B:B,MATCH(Selectie!B342,Bron!C:C,0)),\"\")","v":""}]
[null,"",{"$f":"IFERROR(INDEX(Bron!B:B,MATCH(Selectie!B343,Bron!C:C,0)),\"\")","v":""}]
[null,"",{"$f":"IFERROR(INDEX(Bron!B:B,MATCH(Selectie!B344,Bron!C:C,0)),\"\")","v":""}]
[null,"",{"$f":"IFERROR(INDEX(Bron!B:B,MATCH(Selectie!B345,Bron!C:C,0)),\"\")","v":""}]
[null,"",{"$f":"IFERROR(INDEX(Bron!B:B,MATCH(Selectie!B346,Bron!C:C,0)),\"\")","v":""}]
[null,"",{"$f":"IFERROR(INDEX(Bron!B:B,MATCH(Selectie!B347,Bron!C:C,0)),\"\")","v":""}]
[null,"",{"$f":"IFERROR(INDEX(Bron!B:B,MATCH(Selectie!B348,Bron!C:C,0)),\"\")","v":""}]
[null,"",{"$f":"IFERROR(INDEX(Bron!B:B,MATCH(Selectie!B349,Bron!C:C,0)),\"\")","v":""}]
[null,"",{"$f":"IFERROR(INDEX(Bron!B:B,MATCH(Selectie!B350,Bron!C:C,0)),\"\")","v":""}]
[null,"",{"$f":"IFERROR(INDEX(Bron!B:B,MATCH(Selectie!B351,Bron!C:C,0)),\"\")","v":""}]
[null,"",{"$f":"IFERROR(INDEX(Bron!B:B,MATCH(Selectie!B352,Bron!C:C,0)),\"\")","v":""}]
[null,"",{"$f":"IFERROR(INDEX(Bron!B:B,MATCH(Selectie!B353,Bron!C:C,0)),\"\")","v":""}]
[null,"",{"$f":"IFERROR(INDEX(Bron!B:B,MATCH(Selectie!B354,Bron!C:C,0)),\"\")","v":""}]
[null,"",{"$f":"IFERROR(INDEX(Bron!B:B,MATCH(Selectie!B355,Bron!C:C,0)),\"\")","v":""}]
[null,"",{"$f":"IFERROR(INDEX(Bron!B:B,MATCH(Selectie!B356,Bron!C:C,0)),\"\")","v":""}]
[null,"",{"$f":"IFERROR(INDEX(Bron!B:B,MATCH(Selectie!B357,Bron!C:C,0)),\"\")","v":""}]
[null,"",{"$f":"IFERROR(INDEX(Bron!B:B,MATCH(Selectie!B358,Bron!C:C,0)),\"\")","v":""}]
[null,"",{"$f":"IFERROR(INDEX(Bron!B:B,MATCH(Selectie!B359,Bron!C:C,0)),\"\")","v":""}]
[null,"",{"$f":"IFERROR(INDEX(Bron!B:B,MATCH(Selectie!B360,Bron!C:C,0)),\"\")","v":""}]
[null,"",{"$f":"IFERROR(INDEX(Bron!B:B,MATCH(Selectie!B361,Bron!C:C,0)),\"\")","v":""}]
[null,"",{"$f":"IFERROR(INDEX(Bron!B:B,MATCH(Selectie!B362,Bron!C:C,0)),\"\")","v":""}]
[null,"",{"$f":"IFERROR(INDEX(Bron!B:B,MATCH(Selectie!B363,Bron!C:C,0)),\"\")","v":""}]
[null,"",{"$f":"IFERROR(INDEX(Bron!B:B,MATCH(Selectie!B364,Bron!C:C,0)),\"\")","v":""}]
[null,"",{"$f":"IFERROR(INDEX(Bron!B:B,MATCH(Selectie!B365,Bron!C:C,0)),\"\")","v":""}]
[null,"",{"$f":"IFERROR(INDEX(Bron!B:B,MATCH(Selectie!B366,Bron!C:C,0)),\"\")","v":""}]
[null,"",{"$f":"IFERROR(INDEX(Bron!B:B,MATCH(Selectie!B367,Bron!C:C,0)),\"\")","v":""}]
[null,"",{"$f":"IFERROR(INDEX(Bron!B:B,MATCH(Selectie!B368,Bron!C:C,0)),\"\")","v":""}]
[null,"",{"$f":"IFERROR(INDEX(Bron!B:B,MATCH(Selectie!B369,Bron!C:C,0)),\"\")","v":""}]
[null,"",{"$f":"IFERROR(INDEX(Bron!B:B,MATCH(Selectie!B370,Bron!C:C,0)),\"\")","v":""}]
[null,"",{"$f":"IFERROR(INDEX(Bron!B:B,MATCH(Selectie!B371,Bron!C:C,0)),\"\")","v":""}]
[null,"",{"$f":"IFERROR(INDEX(Bron!B:B,MATCH(Selectie!B372,Bron!C:C,0)),\"\")","v":""}]
[null,"",{"$f":"IFERROR(INDEX(Bron!B:B,MATCH(Selectie!B373,Bron!C:C,0)),\"\")","v":""}]
[null,"",{"$f":"IFERROR(INDEX(Bron!B:B,MATCH(Selectie!B374,Bron!C:C,0)),\"\")","v":""}]
[null,"",{"$f":"IFERROR(INDEX(Bron!B:B,MATCH(Selectie!B375,Bron!C:C,0)),\"\")","v":""}]
[null,"",{"$f":"IFERROR(INDEX(Bron!B:B,MATCH(Selectie!B376,Bron!C:C,0)),\"\")","v":""}]
[null,"",{"$f":"IFERROR(INDEX(Bron!B:B,MATCH(Selectie!B377,Bron!C:C,0)),\"\")","v":""}]
[null,"",{"$f":"IFERROR(INDEX(Bron!B:B,MATCH(Selectie!B378,Bron!C:C,0)),\"\")","v":""}]
[null,"",{"$f":"IFERROR(INDEX(Bron!B:B,MATCH(Selectie!B379,Bron!C:C,0)),\"\")","v":""}]
[null,"",{"$f":"IFERROR(INDEX(Bron!B:B,MATCH(Selectie!B380,Bron!C:C,0)),\"\")","v":""}]
[null,"",{"$f":"IFERROR(INDEX(Bron!B:B,MATCH(Selectie!B381,Bron!C:C,0)),\"\")","v":""}]
[null,"",{"$f":"IFERROR(INDEX(Bron!B:B,MATCH(Selectie!B382,Bron!C:C,0)),\"\")","v":""}]
[null,"",{"$f":"IFERROR(INDEX(Bron!B:B,MATCH(Selectie!B383,Bron!C:C,0)),\"\")","v":""}]
[null,{"$f":"IFERROR(LEFT(A384, SEARCH(\"/\",A384,1)-2),\"\")","v":""},{"$f":"IFERROR(INDEX(Bron!B:B,MATCH(Selectie!B384,Bron!C:C,0)),\"\")","v":""}]
[null,"",{"$f":"IFERROR(INDEX(Bron!B:B,MATCH(Selectie!B385,Bron!C:C,0)),\"\")","v":""}]
[null,"",{"$f":"IFERROR(INDEX(Bron!B:B,MATCH(Selectie!B386,Bron!C:C,0)),\"\")","v":""}]
[null,"",{"$f":"IFERROR(INDEX(Bron!B:B,MATCH(Selectie!B387,Bron!C:C,0)),\"\")","v":""}]
[null,"",{"$f":"IFERROR(INDEX(Bron!B:B,MATCH(Selectie!B388,Bron!C:C,0)),\"\")","v":""}]
[null,"",{"$f":"IFERROR(INDEX(Bron!B:B,MATCH(Selectie!B389,Bron!C:C,0)),\"\")","v":""}]
[null,"",{"$f":"IFERROR(INDEX(Bron!B:B,MATCH(Selectie!B390,Bron!C:C,0)),\"\")","v":""}]
[null,"",{"$f":"IFERROR(INDEX(Bron!B:B,MATCH(Selectie!B391,Bron!C:C,0)),\"\")","v":""}]
[null,"",{"$f":"IFERROR(INDEX(Bron!B:B,MATCH(Selectie!B392,Bron!C:C,0)),\"\")","v":""}]
[null,"",{"$f":"IFERROR(INDEX(Bron!B:B,MATCH(Selectie!B393,Bron!C:C,0)),\"\")","v":""}]
[null,"",{"$f":"IFERROR(INDEX(Bron!B:B,MATCH(Selectie!B394,Bron!C:C,0)),\"\")","v":""}]
[null,"",{"$f":"IFERROR(INDEX(Bron!B:B,MATCH(Selectie!B395,Bron!C:C,0)),\"\")","v":""}]
[null,"",{"$f":"IFERROR(INDEX(Bron!B:B,MATCH(Selectie!B396,Bron!C:C,0)),\"\")","v":""}]
[null,"",{"$f":"IFERROR(INDEX(Bron!B:B,MATCH(Selectie!B397,Bron!C:C,0)),\"\")","v":""}]
[null,"",{"$f":"IFERROR(INDEX(Bron!B:B,MATCH(Selectie!B398,Bron!C:C,0)),\"\")","v":""}]
[null,"",{"$f":"IFERROR(INDEX(Bron!B:B,MATCH(Selectie!B399,Bron!C:C,0)),\"\")","v":""}]
[null,"",{"$f":"IFERROR(INDEX(Bron!B:B,MATCH(Selectie!B400,Bron!C:C,0)),\"\")","v":""}]
[null,"",{"$f":"IFERROR(INDEX(Bron!B:B,MATCH(Selectie!B401,Bron!C:C,0)),\"\")","v":""}]
[null,"",{"$f":"IFERROR(INDEX(Bron!B:B,MATCH(Selectie!B402,Bron!C:C,0)),\"\")","v":""}]
[null,"",{"$f":"IFERROR(INDEX(Bron!B:B,MATCH(Selectie!B403,Bron!C:C,0)),\"\")","v":""}]
[null,"",{"$f":"IFERROR(INDEX(Bron!B:B,MATCH(Selectie!B404,Bron!C:C,0)),\"\")","v":""}]
[null,"",{"$f":"IFERROR(INDEX(Bron!B:B,MATCH(Selectie!B405,Bron!C:C,0)),\"\")","v":""}]
[null,"",{"$f":"IFERROR(INDEX(Bron!B:B,MATCH(Selectie!B406,Bron!C:C,0)),\"\")","v":""}]
[null,"",{"$f":"IFERROR(INDEX(Bron!B:B,MATCH(Selectie!B407,Bron!C:C,0)),\"\")","v":""}]
[null,"",{"$f":"IFERROR(INDEX(Bron!B:B,MATCH(Selectie!B408,Bron!C:C,0)),\"\")","v":""}]
[null,"",{"$f":"IFERROR(INDEX(Bron!B:B,MATCH(Selectie!B409,Bron!C:C,0)),\"\")","v":""}]
[null,"",{"$f":"IFERROR(INDEX(Bron!B:B,MATCH(Selectie!B410,Bron!C:C,0)),\"\")","v":""}]
[null,"",{"$f":"IFERROR(INDEX(Bron!B:B,MATCH(Selectie!B411,Bron!C:C,0)),\"\")","v":""}]
[null,"",{"$f":"IFERROR(INDEX(Bron!B:B,MATCH(Selectie!B412,Bron!C:C,0)),\"\")","v":""}]
[null,"",{"$f":"IFERROR(INDEX(Bron!B:B,MATCH(Selectie!B413,Bron!C:C,0)),\"\")","v":""}]
[null,"",{"$f":"IFERROR(INDEX(Bron!B:B,MATCH(Selectie!B414,Bron!C:C,0)),\"\")","v":""}]
[null,"",{"$f":"IFERROR(INDEX(Bron!B:B,MATCH(Selectie!B415,Bron!C:C,0)),\"\")","v":""}]
[null,"",{"$f":"IFERROR(INDEX(Bron!B:B,MATCH(Selectie!B416,Bron!C:C,0)),\"\")","v":""}]
[null,"",{"$f":"IFERROR(INDEX(Bron!B:B,MATCH(Selectie!B417,Bron!C:C,0)),\"\")","v":""}]
[null,"",{"$f":"IFERROR(INDEX(Bron!B:B,MATCH(Selectie!B418,Bron!C:C,0)),\"\")","v":""}]
[null,"",{"$f":"IFERROR(INDEX(Bron!B:B,MATCH(Selectie!B419,Bron!C:C,0)),\"\")","v":""}]
[null,"",{"$f":"IFERROR(INDEX(Bron!B:B,MATCH(Selectie!B420,Bron!C:C,0)),\"\")","v":""}]
[null,"",{"$f":"IFERROR(INDEX(Bron!B:B,MATCH(Selectie!B421,Bron!C:C,0)),\"\")","v":""}]
[null,"",{"$f":"IFERROR(INDEX(Bron!B:B,MATCH(Selectie!B422,Bron!C:C,0)),\"\")","v":""}]
[null,"",{"$f":"IFERROR(INDEX(Bron!B:B,MATCH(Selectie!B423,Bron!C:C,0)),\"\")","v":""}]
[null,"",{"$f":"IFERROR(INDEX(Bron!B:B,MATCH(Selectie!B424,Bron!C:C,0)),\"\")","v":""}]
[null,"",{"$f":"IFERROR(INDEX(Bron!B:B,MATCH(Selectie!B425,Bron!C:C,0)),\"\")","v":""}]
[null,"",{"$f":"IFERROR(INDEX(Bron!B:B,MATCH(Selectie!B426,Bron!C:C,0)),\"\")","v":""}]
[null,"",{"$f":"IFERROR(INDEX(Bron!B:B,MATCH(Selectie!B427,Bron!C:C,0)),\"\")","v":""}]
[null,"",{"$f":"IFERROR(INDEX(Bron!B:B,MATCH(Selectie!B428,Bron!C:C,0)),\"\")","v":""}]
[null,"",{"$f":"IFERROR(INDEX(Bron!B:B,MATCH(Selectie!B429,Bron!C:C,0)),\"\")","v":""}]
[null,"",{"$f":"IFERROR(INDEX(Bron!B:B,MATCH(Selectie!B430,Bron!C:C,0)),\"\")","v":""}]
[null,"",{"$f":"IFERROR(INDEX(Bron!B:B,MATCH(Selectie!B431,Bron!C:C,0)),\"\")","v":""}]
[null,"",{"$f":"IFERROR(INDEX(Bron!B:B,MATCH(Selectie!B432,Bron!C:C,0)),\"\")","v":""}]
[null,"",{"$f":"IFERROR(INDEX(Bron!B:B,MATCH(Selectie!B433,Bron!C:C,0)),\"\")","v":""}]
[null,"",{"$f":"IFERROR(INDEX(Bron!B:B,MATCH(Selectie!B434,Bron!C:C,0)),\"\")","v":""}]
[null,"",{"$f":"IFERROR(INDEX(Bron!B:B,MATCH(Selectie!B435,Bron!C:C,0)),\"\")","v":""}]
[null,"",{"$f":"IFERROR(INDEX(Bron!B:B,MATCH(Selectie!B436,Bron!C:C,0)),\"\")","v":""}]
[null,"",{"$f":"IFERROR(INDEX(Bron!B:B,MATCH(Selectie!B437,Bron!C:C,0)),\"\")","v":""}]
[null,"",{"$f":"IFERROR(INDEX(Bron!B:B,MATCH(Selectie!B438,Bron!C:C,0)),\"\")","v":""}]
[null,"",{"$f":"IFERROR(INDEX(Bron!B:B,MATCH(Selectie!B439,Bron!C:C,0)),\"\")","v":""}]
[null,"",{"$f":"IFERROR(INDEX(Bron!B:B,MATCH(Selectie!B440,Bron!C:C,0)),\"\")","v":""}]
[null,"",{"$f":"IFERROR(INDEX(Bron!B:B,MATCH(Selectie!B441,Bron!C:C,0)),\"\")","v":""}]
[null,"",{"$f":"IFERROR(INDEX(Bron!B:B,MATCH(Selectie!B442,Bron!C:C,0)),\"\")","v":""}]
[null,"",{"$f":"IFERROR(INDEX(Bron!B:B,MATCH(Selectie!B443,Bron!C:C,0)),\"\")","v":""}]
[null,"",{"$f":"IFERROR(INDEX(Bron!B:B,MATCH(Selectie!B444,Bron!C:C,0)),\"\")","v":""}]
[null,"",{"$f":"IFERROR(INDEX(Bron!B:B,MATCH(Selectie!B445,Bron!C:C,0)),\"\")","v":""}]
[null,"",{"$f":"IFERROR(INDEX(Bron!B:B,MATCH(Selectie!B446,Bron!C:C,0)),\"\")","v":""}]
[null,"",{"$f":"IFERROR(INDEX(Bron!B:B,MATCH(Selectie!B447,Bron!C:C,0)),\"\")","v":""}]
[null,{"$f":"IFERROR(LEFT(A448, SEARCH(\"/\",A448,1)-2),\"\")","v":""},{"$f":"IFERROR(INDEX(Bron!B:B,MATCH(Selectie!B448,Bron!C:C,0)),\"\")","v":""}]
[null,"",{"$f":"IFERROR(INDEX(Bron!B:B,MATCH(Selectie!B449,Bron!C:C,0)),\"\")","v":""}]
[null,"",{"$f":"IFERROR(INDEX(Bron!B:B,MATCH(Selectie!B450,Bron!C:C,0)),\"\")","v":""}]
[null,"",{"$f":"IFERROR(INDEX(Bron!B:B,MATCH(Selectie!B451,Bron!C:C,0)),\"\")","v":""}]
[null,"",{"$f":"IFERROR(INDEX(Bron!B:B,MATCH(Selectie!B452,Bron!C:C,0)),\"\")","v":""}]
[null,"",{"$f":"IFERROR(INDEX(Bron!B:B,MATCH(Selectie!B453,Bron!C:C,0)),\"\")","v":""}]
[null,"",{"$f":"IFERROR(INDEX(Bron!B:B,MATCH(Selectie!B454,Bron!C:C,0)),\"\")","v":""}]
[null,"",{"$f":"IFERROR(INDEX(Bron!B:B,MATCH(Selectie!B455,Bron!C:C,0)),\"\")","v":""}]
[null,"",{"$f":"IFERROR(INDEX(Bron!B:B,MATCH(Selectie!B456,Bron!C:C,0)),\"\")","v":""}]
[null,"",{"$f":"IFERROR(INDEX(Bron!B:B,MATCH(Selectie!B457,Bron!C:C,0)),\"\")","v":""}]
[null,"",{"$f":"IFERROR(INDEX(Bron!B:B,MATCH(Selectie!B458,Bron!C:C,0)),\"\")","v":""}]
[null,"",{"$f":"IFERROR(INDEX(Bron!B:B,MATCH(Selectie!B459,Bron!C:C,0)),\"\")","v":""}]
[null,"",{"$f":"IFERROR(INDEX(Bron!B:B,MATCH(Selectie!B460,Bron!C:C,0)),\"\")","v":""}]
[null,"",{"$f":"IFERROR(INDEX(Bron!B:B,MATCH(Selectie!B461,Bron!C:C,0)),\"\")","v":""}]
[null,"",{"$f":"IFERROR(INDEX(Bron!B:B,MATCH(Selectie!B462,Bron!C:C,0)),\"\")","v":""}]
[null,"",{"$f":"IFERROR(INDEX(Bron!B:B,MATCH(Selectie!B463,Bron!C:C,0)),\"\")","v":""}]
[null,"",{"$f":"IFERROR(INDEX(Bron!B:B,MATCH(Selectie!B464,Bron!C:C,0)),\"\")","v":""}]
[null,"",{"$f":"IFERROR(INDEX(Bron!B:B,MATCH(Selectie!B465,Bron!C:C,0)),\"\")","v":""}]
[null,"",{"$f":"IFERROR(INDEX(Bron!B:B,MATCH(Selectie!B466,Bron!C:C,0)),\"\")","v":""}]
[null,"",{"$f":"IFERROR(INDEX(Bron!B:B,MATCH(Selectie!B467,Bron!C:C,0)),\"\")","v":""}]
[null,"",{"$f":"IFERROR(INDEX(Bron!B:B,MATCH(Selectie!B468,Bron!C:C,0)),\"\")","v":""}]
[null,"",{"$f":"IFERROR(INDEX(Bron!B:B,MATCH(Selectie!B469,Bron!C:C,0)),\"\")","v":""}]
[null,"",{"$f":"IFERROR(INDEX(Bron!B:B,MATCH(Selectie!B470,Bron!C:C,0)),\"\")","v":""}]
[null,"",{"$f":"IFERROR(INDEX(Bron!B:B,MATCH(Selectie!B471,Bron!C:C,0)),\"\")","v":""}]
[null,"",{"$f":"IFERROR(INDEX(Bron!B:B,MATCH(Selectie!B472,Bron!C:C,0)),\"\")","v":""}]
[null,"",{"$f":"IFERROR(INDEX(Bron!B:B,MATCH(Selectie!B473,Bron!C:C,0)),\"\")","v":""}]
[null,"",{"$f":"IFERROR(INDEX(Bron!B:B,MATCH(Selectie!B474,Bron!C:C,0)),\"\")","v":""}]
[null,"",{"$f":"IFERROR(INDEX(Bron!B:B,MATCH(Selectie!B475,Bron!C:C,0)),\"\")","v":""}]
[null,"",{"$f":"IFERROR(INDEX(Bron!B:B,MATCH(Selectie!B476,Bron!C:C,0)),\"\")","v":""}]
[null,"",{"$f":"IFERROR(INDEX(Bron!B:B,MATCH(Selectie!B477,Bron!C:C,0)),\"\")","v":""}]
[null,"",{"$f":"IFERROR(INDEX(Bron!B:B,MATCH(Selectie!B478,Bron!C:C,0)),\"\")","v":""}]
[null,"",{"$f":"IFERROR(INDEX(Bron!B:B,MATCH(Selectie!B479,Bron!C:C,0)),\"\")","v":""}]
[null,"",{"$f":"IFERROR(INDEX(Bron!B:B,MATCH(Selectie!B480,Bron!C:C,0)),\"\")","v":""}]
[null,"",{"$f":"IFERROR(INDEX(Bron!B:B,MATCH(Selectie!B481,Bron!C:C,0)),\"\")","v":""}]
[null,"",{"$f":"IFERROR(INDEX(Bron!B:B,MATCH(Selectie!B482,Bron!C:C,0)),\"\")","v":""}]
[null,"",{"$f":"IFERROR(INDEX(Bron!B:B,MATCH(Selectie!B483,Bron!C:C,0)),\"\")","v":""}]
[null,"",{"$f":"IFERROR(INDEX(Bron!B:B,MATCH(Selectie!B484,Bron!C:C,0)),\"\")","v":""}]
[null,"",{"$f":"IFERROR(INDEX(Bron!B:B,MATCH(Selectie!B485,Bron!C:C,0)),\"\")","v":""}]
[null,"",{"$f":"IFERROR(INDEX(Bron!B:B,MATCH(Selectie!B486,Bron!C:C,0)),\"\")","v":""}]
[null,"",{"$f":"IFERROR(INDEX(Bron!B:B,MATCH(Selectie!B487,Bron!C:C,0)),\"\")","v":""}]
[null,"",{"$f":"IFERROR(INDEX(Bron!B:B,MATCH(Selectie!B488,Bron!C:C,0)),\"\")","v":""}]
[null,"",{"$f":"IFERROR(INDEX(Bron!B:B,MATCH(Selectie!B489,Bron!C:C,0)),\"\")","v":""}]
[null,"",{"$f":"IFERROR(INDEX(Bron!B:B,MATCH(Selectie!B490,Bron!C:C,0)),\"\")","v":""}]
[null,"",{"$f":"IFERROR(INDEX(Bron!B:B,MATCH(Selectie!B491,Bron!C:C,0)),\"\")","v":""}]
[null,"",{"$f":"IFERROR(INDEX(Bron!B:B,MATCH(Selectie!B492,Bron!C:C,0)),\"\")","v":""}]
[null,"",{"$f":"IFERROR(INDEX(Bron!B:B,MATCH(Selectie!B493,Bron!C:C,0)),\"\")","v":""}]
[null,"",{"$f":"IFERROR(INDEX(Bron!B:B,MATCH(Selectie!B494,Bron!C:C,0)),\"\")","v":""}]
[null,"",{"$f":"IFERROR(INDEX(Bron!B:B,MATCH(Selectie!B495,Bron!C:C,0)),\"\")","v":""}]
[null,"",{"$f":"IFERROR(INDEX(Bron!B:B,MATCH(Selectie!B496,Bron!C:C,0)),\"\")","v":""}]
[null,"",{"$f":"IFERROR(INDEX(Bron!B:B,MATCH(Selectie!B497,Bron!C:C,0)),\"\")","v":""}]
[null,"",{"$f":"IFERROR(INDEX(Bron!B:B,MATCH(Selectie!B498,Bron!C:C,0)),\"\")","v":""}]
[null,"",{"$f":"IFERROR(INDEX(Bron!B:B,MATCH(Selectie!B499,Bron!C:C,0)),\"\")","v":""}]
[null,"",{"$f":"IFERROR(INDEX(Bron!B:B,MATCH(Selectie!B500,Bron!C:C,0)),\"\")","v":""}]
[null,"",{"$f":"IFERROR(INDEX(Bron!B:B,MATCH(Selectie!B501,Bron!C:C,0)),\"\")","v":""}]
[null,"",{"$f":"IFERROR(INDEX(Bron!B:B,MATCH(Selectie!B502,Bron!C:C,0)),\"\")","v":""}]
[null,"",{"$f":"IFERROR(INDEX(Bron!B:B,MATCH(Selectie!B503,Bron!C:C,0)),\"\")","v":""}]
[null,"",{"$f":"IFERROR(INDEX(Bron!B:B,MATCH(Selectie!B504,Bron!C:C,0)),\"\")","v":""}]
[null,"",{"$f":"IFERROR(INDEX(Bron!B:B,MATCH(Selectie!B505,Bron!C:C,0)),\"\")","v":""}]
[null,"",{"$f":"IFERROR(INDEX(Bron!B:B,MATCH(Selectie!B506,Bron!C:C,0)),\"\")","v":""}]
[null,"",{"$f":"IFERROR(INDEX(Bron!B:B,MATCH(Selectie!B507,Bron!C:C,0)),\"\")","v":""}]
[null,"",{"$f":"IFERROR(INDEX(Bron!B:B,MATCH(Selectie!B508,Bron!C:C,0)),\"\")","v":""}]
[null,"",{"$f":"IFERROR(INDEX(Bron!B:B,MATCH(Selectie!B509,Bron!C:C,0)),\"\")","v":""}]
[null,"",{"$f":"IFERROR(INDEX(Bron!B:B,MATCH(Selectie!B510,Bron!C:C,0)),\"\")","v":""}]
[null,"",{"$f":"IFERROR(INDEX(Bron!B:B,MATCH(Selectie!B511,Bron!C:C,0)),\"\")","v":""}]
[null,{"$f":"IFERROR(LEFT(A512, SEARCH(\"/\",A512,1)-2),\"\")","v":""},{"$f":"IFERROR(INDEX(Bron!B:B,MATCH(Selectie!B512,Bron!C:C,0)),\"\")","v":""}]
[null,"",{"$f":"IFERROR(INDEX(Bron!B:B,MATCH(Selectie!B513,Bron!C:C,0)),\"\")","v":""}]
[null,"",{"$f":"IFERROR(INDEX(Bron!B:B,MATCH(Selectie!B514,Bron!C:C,0)),\"\")","v":""}]
[null,"",{"$f":"IFERROR(INDEX(Bron!B:B,MATCH(Selectie!B515,Bron!C:C,0)),\"\")","v":""}]
[null,"",{"$f":"IFERROR(INDEX(Bron!B:B,MATCH(Selectie!B516,Bron!C:C,0)),\"\")","v":""}]
[null,"",{"$f":"IFERROR(INDEX(Bron!B:B,MATCH(Selectie!B517,Bron!C:C,0)),\"\")","v":""}]
[null,"",{"$f":"IFERROR(INDEX(Bron!B:B,MATCH(Selectie!B518,Bron!C:C,0)),\"\")","v":""}]
[null,"",{"$f":"IFERROR(INDEX(Bron!B:B,MATCH(Selectie!B519,Bron!C:C,0)),\"\")","v":""}]
[null,"",{"$f":"IFERROR(INDEX(Bron!B:B,MATCH(Selectie!B520,Bron!C:C,0)),\"\")","v":""}]
[null,"",{"$f":"IFERROR(INDEX(Bron!B:B,MATCH(Selectie!B521,Bron!C:C,0)),\"\")","v":""}]
[null,"",{"$f":"IFERROR(INDEX(Bron!B:B,MATCH(Selectie!B522,Bron!C:C,0)),\"\")","v":""}]
[null,"",{"$f":"IFERROR(INDEX(Bron!B:B,MATCH(Selectie!B523,Bron!C:C,0)),\"\")","v":""}]
[null,"",{"$f":"IFERROR(INDEX(Bron!B:B,MATCH(Selectie!B524,Bron!C:C,0)),\"\")","v":""}]
[null,"",{"$f":"IFERROR(INDEX(Bron!B:B,MATCH(Selectie!B525,Bron!C:C,0)),\"\")","v":""}]
[null,"",{"$f":"IFERROR(INDEX(Bron!B:B,MATCH(Selectie!B526,Bron!C:C,0)),\"\")","v":""}]
[null,"",{"$f":"IFERROR(INDEX(Bron!B:B,MATCH(Selectie!B527,Bron!C:C,0)),\"\")","v":""}]
[null,"",{"$f":"IFERROR(INDEX(Bron!B:B,MATCH(Selectie!B528,Bron!C:C,0)),\"\")","v":""}]
[null,"",{"$f":"IFERROR(INDEX(Bron!B:B,MATCH(Selectie!B529,Bron!C:C,0)),\"\")","v":""}]
[null,"",{"$f":"IFERROR(INDEX(Bron!B:B,MATCH(Selectie!B530,Bron!C:C,0)),\"\")","v":""}]
[null,"",{"$f":"IFERROR(INDEX(Bron!B:B,MATCH(Selectie!B531,Bron!C:C,0)),\"\")","v":""}]
[null,"",{"$f":"IFERROR(INDEX(Bron!B:B,MATCH(Selectie!B532,Bron!C:C,0)),\"\")","v":""}]
[null,"",{"$f":"IFERROR(INDEX(Bron!B:B,MATCH(Selectie!B533,Bron!C:C,0)),\"\")","v":""}]
[null,"",{"$f":"IFERROR(INDEX(Bron!B:B,MATCH(Selectie!B534,Bron!C:C,0)),\"\")","v":""}]
[null,"",{"$f":"IFERROR(INDEX(Bron!B:B,MATCH(Selectie!B535,Bron!C:C,0)),\"\")","v":""}]
[null,"",{"$f":"IFERROR(INDEX(Bron!B:B,MATCH(Selectie!B536,Bron!C:C,0)),\"\")","v":""}]
[null,"",{"$f":"IFERROR(INDEX(Bron!B:B,MATCH(Selectie!B537,Bron!C:C,0)),\"\")","v":""}]
[null,"",{"$f":"IFERROR(INDEX(Bron!B:B,MATCH(Selectie!B538,Bron!C:C,0)),\"\")","v":""}]
[null,"",{"$f":"IFERROR(INDEX(Bron!B:B,MATCH(Selectie!B539,Bron!C:C,0)),\"\")","v":""}]
[null,"",{"$f":"IFERROR(INDEX(Bron!B:B,MATCH(Selectie!B540,Bron!C:C,0)),\"\")","v":""}]
[null,"",{"$f":"IFERROR(INDEX(Bron!B:B,MATCH(Selectie!B541,Bron!C:C,0)),\"\")","v":""}]
[null,"",{"$f":"IFERROR(INDEX(Bron!B:B,MATCH(Selectie!B542,Bron!C:C,0)),\"\")","v":""}]
[null,"",{"$f":"IFERROR(INDEX(Bron!B:B,MATCH(Selectie!B543,Bron!C:C,0)),\"\")","v":""}]
[null,"",{"$f":"IFERROR(INDEX(Bron!B:B,MATCH(Selectie!B544,Bron!C:C,0)),\"\")","v":""}]
[null,"",{"$f":"IFERROR(INDEX(Bron!B:B,MATCH(Selectie!B545,Bron!C:C,0)),\"\")","v":""}]
[null,"",{"$f":"IFERROR(INDEX(Bron!B:B,MATCH(Selectie!B546,Bron!C:C,0)),\"\")","v":""}]
[null,"",{"$f":"IFERROR(INDEX(Bron!B:B,MATCH(Selectie!B547,Bron!C:C,0)),\"\")","v":""}]
[null,"",{"$f":"IFERROR(INDEX(Bron!B:B,MATCH(Selectie!B548,Bron!C:C,0)),\"\")","v":""}]
[null,"",{"$f":"IFERROR(INDEX(Bron!B:B,MATCH(Selectie!B549,Bron!C:C,0)),\"\")","v":""}]
[null,"",{"$f":"IFERROR(INDEX(Bron!B:B,MATCH(Selectie!B550,Bron!C:C,0)),\"\")","v":""}]
[null,"",{"$f":"IFERROR(INDEX(Bron!B:B,MATCH(Selectie!B551,Bron!C:C,0)),\"\")","v":""}]
[null,"",{"$f":"IFERROR(INDEX(Bron!B:B,MATCH(Selectie!B552,Bron!C:C,0)),\"\")","v":""}]
[null,"",{"$f":"IFERROR(INDEX(Bron!B:B,MATCH(Selectie!B553,Bron!C:C,0)),\"\")","v":""}]
[null,"",{"$f":"IFERROR(INDEX(Bron!B:B,MATCH(Selectie!B554,Bron!C:C,0)),\"\")","v":""}]
[null,"",{"$f":"IFERROR(INDEX(Bron!B:B,MATCH(Selectie!B555,Bron!C:C,0)),\"\")","v":""}]
[null,"",{"$f":"IFERROR(INDEX(Bron!B:B,MATCH(Selectie!B556,Bron!C:C,0)),\"\")","v":""}]
[null,"",{"$f":"IFERROR(INDEX(Bron!B:B,MATCH(Selectie!B557,Bron!C:C,0)),\"\")","v":""}]
[null,"",{"$f":"IFERROR(INDEX(Bron!B:B,MATCH(Selectie!B558,Bron!C:C,0)),\"\")","v":""}]
[null,"",{"$f":"IFERROR(INDEX(Bron!B:B,MATCH(Selectie!B559,Bron!C:C,0)),\"\")","v":""}]
[null,"",{"$f":"IFERROR(INDEX(Bron!B:B,MATCH(Selectie!B560,Bron!C:C,0)),\"\")","v":""}]
[null,"",{"$f":"IFERROR(INDEX(Bron!B:B,MATCH(Selectie!B561,Bron!C:C,0)),\"\")","v":""}]
[null,"",{"$f":"IFERROR(INDEX(Bron!B:B,MATCH(Selectie!B562,Bron!C:C,0)),\"\")","v":""}]
[null,"",{"$f":"IFERROR(INDEX(Bron!B:B,MATCH(Selectie!B563,Bron!C:C,0)),\"\")","v":""}]
[null,"",{"$f":"IFERROR(INDEX(Bron!B:B,MATCH(Selectie!B564,Bron!C:C,0)),\"\")","v":""}]
[null,"",{"$f":"IFERROR(INDEX(Bron!B:B,MATCH(Selectie!B565,Bron!C:C,0)),\"\")","v":""}]
[null,"",{"$f":"IFERROR(INDEX(Bron!B:B,MATCH(Selectie!B566,Bron!C:C,0)),\"\")","v":""}]
[null,"",{"$f":"IFERROR(INDEX(Bron!B:B,MATCH(Selectie!B567,Bron!C:C,0)),\"\")","v":""}]
[null,"",{"$f":"IFERROR(INDEX(Bron!B:B,MATCH(Selectie!B568,Bron!C:C,0)),\"\")","v":""}]
[null,"",{"$f":"IFERROR(INDEX(Bron!B:B,MATCH(Selectie!B569,Bron!C:C,0)),\"\")","v":""}]
[null,"",{"$f":"IFERROR(INDEX(Bron!B:B,MATCH(Selectie!B570,Bron!C:C,0)),\"\")","v":""}]
[null,"",{"$f":"IFERROR(INDEX(Bron!B:B,MATCH(Selectie!B571,Bron!C:C,0)),\"\")","v":""}]
[null,"",{"$f":"IFERROR(INDEX(Bron!B:B,MATCH(Selectie!B572,Bron!C:C,0)),\"\")","v":""}]
[null,"",{"$f":"IFERROR(INDEX(Bron!B:B,MATCH(Selectie!B573,Bron!C:C,0)),\"\")","v":""}]
[null,"",{"$f":"IFERROR(INDEX(Bron!B:B,MATCH(Selectie!B574,Bron!C:C,0)),\"\")","v":""}]
[null,"",{"$f":"IFERROR(INDEX(Bron!B:B,MATCH(Selectie!B575,Bron!C:C,0)),\"\")","v":""}]
[null,{"$f":"IFERROR(LEFT(A576, SEARCH(\"/\",A576,1)-2),\"\")","v":""},{"$f":"IFERROR(INDEX(Bron!B:B,MATCH(Selectie!B576,Bron!C:C,0)),\"\")","v":""}]
[null,"",{"$f":"IFERROR(INDEX(Bron!B:B,MATCH(Selectie!B577,Bron!C:C,0)),\"\")","v":""}]
[null,"",{"$f":"IFERROR(INDEX(Bron!B:B,MATCH(Selectie!B578,Bron!C:C,0)),\"\")","v":""}]
[null,"",{"$f":"IFERROR(INDEX(Bron!B:B,MATCH(Selectie!B579,Bron!C:C,0)),\"\")","v":""}]
[null,"",{"$f":"IFERROR(INDEX(Bron!B:B,MATCH(Selectie!B580,Bron!C:C,0)),\"\")","v":""}]
[null,"",{"$f":"IFERROR(INDEX(Bron!B:B,MATCH(Selectie!B581,Bron!C:C,0)),\"\")","v":""}]
[null,"",{"$f":"IFERROR(INDEX(Bron!B:B,MATCH(Selectie!B582,Bron!C:C,0)),\"\")","v":""}]
[null,"",{"$f":"IFERROR(INDEX(Bron!B:B,MATCH(Selectie!B583,Bron!C:C,0)),\"\")","v":""}]
[null,"",{"$f":"IFERROR(INDEX(Bron!B:B,MATCH(Selectie!B584,Bron!C:C,0)),\"\")","v":""}]
[null,"",{"$f":"IFERROR(INDEX(Bron!B:B,MATCH(Selectie!B585,Bron!C:C,0)),\"\")","v":""}]
[null,"",{"$f":"IFERROR(INDEX(Bron!B:B,MATCH(Selectie!B586,Bron!C:C,0)),\"\")","v":""}]
[null,"",{"$f":"IFERROR(INDEX(Bron!B:B,MATCH(Selectie!B587,Bron!C:C,0)),\"\")","v":""}]
[null,"",{"$f":"IFERROR(INDEX(Bron!B:B,MATCH(Selectie!B588,Bron!C:C,0)),\"\")","v":""}]
[null,"",{"$f":"IFERROR(INDEX(Bron!B:B,MATCH(Selectie!B589,Bron!C:C,0)),\"\")","v":""}]
[null,"",{"$f":"IFERROR(INDEX(Bron!B:B,MATCH(Selectie!B590,Bron!C:C,0)),\"\")","v":""}]
[null,"",{"$f":"IFERROR(INDEX(Bron!B:B,MATCH(Selectie!B591,Bron!C:C,0)),\"\")","v":""}]
[null,"",{"$f":"IFERROR(INDEX(Bron!B:B,MATCH(Selectie!B592,Bron!C:C,0)),\"\")","v":""}]
[null,"",{"$f":"IFERROR(INDEX(Bron!B:B,MATCH(Selectie!B593,Bron!C:C,0)),\"\")","v":""}]
[null,"",{"$f":"IFERROR(INDEX(Bron!B:B,MATCH(Selectie!B594,Bron!C:C,0)),\"\")","v":""}]
[null,"",{"$f":"IFERROR(INDEX(Bron!B:B,MATCH(Selectie!B595,Bron!C:C,0)),\"\")","v":""}]
[null,"",{"$f":"IFERROR(INDEX(Bron!B:B,MATCH(Selectie!B596,Bron!C:C,0)),\"\")","v":""}]
[null,"",{"$f":"IFERROR(INDEX(Bron!B:B,MATCH(Selectie!B597,Bron!C:C,0)),\"\")","v":""}]
[null,"",{"$f":"IFERROR(INDEX(Bron!B:B,MATCH(Selectie!B598,Bron!C:C,0)),\"\")","v":""}]
[null,"",{"$f":"IFERROR(INDEX(Bron!B:B,MATCH(Selectie!B599,Bron!C:C,0)),\"\")","v":""}]
[null,"",{"$f":"IFERROR(INDEX(Bron!B:B,MATCH(Selectie!B600,Bron!C:C,0)),\"\")","v":""}]
[null,"",{"$f":"IFERROR(INDEX(Bron!B:B,MATCH(Selectie!B601,Bron!C:C,0)),\"\")","v":""}]
[null,"",{"$f":"IFERROR(INDEX(Bron!B:B,MATCH(Selectie!B602,Bron!C:C,0)),\"\")","v":""}]
[null,"",{"$f":"IFERROR(INDEX(Bron!B:B,MATCH(Selectie!B603,Bron!C:C,0)),\"\")","v":""}]
[null,"",{"$f":"IFERROR(INDEX(Bron!B:B,MATCH(Selectie!B604,Bron!C:C,0)),\"\")","v":""}]
[null,"",{"$f":"IFERROR(INDEX(Bron!B:B,MATCH(Selectie!B605,Bron!C:C,0)),\"\")","v":""}]
[null,"",{"$f":"IFERROR(INDEX(Bron!B:B,MATCH(Selectie!B606,Bron!C:C,0)),\"\")","v":""}]
[null,"",{"$f":"IFERROR(INDEX(Bron!B:B,MATCH(Selectie!B607,Bron!C:C,0)),\"\")","v":""}]
[null,"",{"$f":"IFERROR(INDEX(Bron!B:B,MATCH(Selectie!B608,Bron!C:C,0)),\"\")","v":""}]
[null,"",{"$f":"IFERROR(INDEX(Bron!B:B,MATCH(Selectie!B609,Bron!C:C,0)),\"\")","v":""}]
[null,"",{"$f":"IFERROR(INDEX(Bron!B:B,MATCH(Selectie!B610,Bron!C:C,0)),\"\")","v":""}]
[null,"",{"$f":"IFERROR(INDEX(Bron!B:B,MATCH(Selectie!B611,Bron!C:C,0)),\"\")","v":""}]
[null,"",{"$f":"IFERROR(INDEX(Bron!B:B,MATCH(Selectie!B612,Bron!C:C,0)),\"\")","v":""}]
[null,"",{"$f":"IFERROR(INDEX(Bron!B:B,MATCH(Selectie!B613,Bron!C:C,0)),\"\")","v":""}]
[null,"",{"$f":"IFERROR(INDEX(Bron!B:B,MATCH(Selectie!B614,Bron!C:C,0)),\"\")","v":""}]
[null,"",{"$f":"IFERROR(INDEX(Bron!B:B,MATCH(Selectie!B615,Bron!C:C,0)),\"\")","v":""}]
[null,"",{"$f":"IFERROR(INDEX(Bron!B:B,MATCH(Selectie!B616,Bron!C:C,0)),\"\")","v":""}]
[null,"",{"$f":"IFERROR(INDEX(Bron!B:B,MATCH(Selectie!B617,Bron!C:C,0)),\"\")","v":""}]
[null,"",{"$f":"IFERROR(INDEX(Bron!B:B,MATCH(Selectie!B618,Bron!C:C,0)),\"\")","v":""}]
[null,"",{"$f":"IFERROR(INDEX(Bron!B:B,MATCH(Selectie!B619,Bron!C:C,0)),\"\")","v":""}]
[null,"",{"$f":"IFERROR(INDEX(Bron!B:B,MATCH(Selectie!B620,Bron!C:C,0)),\"\")","v":""}]
[null,"",{"$f":"IFERROR(INDEX(Bron!B:B,MATCH(Selectie!B621,Bron!C:C,0)),\"\")","v":""}]
[null,"",{"$f":"IFERROR(INDEX(Bron!B:B,MATCH(Selectie!B622,Bron!C:C,0)),\"\")","v":""}]
[null,"",{"$f":"IFERROR(INDEX(Bron!B:B,MATCH(Selectie!B623,Bron!C:C,0)),\"\")","v":""}]
[null,"",{"$f":"IFERROR(INDEX(Bron!B:B,MATCH(Selectie!B624,Bron!C:C,0)),\"\")","v":""}]
[null,"",{"$f":"IFERROR(INDEX(Bron!B:B,MATCH(Selectie!B625,Bron!C:C,0)),\"\")","v":""}]
[null,"",{"$f":"IFERROR(INDEX(Bron!B:B,MATCH(Selectie!B626,Bron!C:C,0)),\"\")","v":""}]
[null,"",{"$f":"IFERROR(INDEX(Bron!B:B,MATCH(Selectie!B627,Bron!C:C,0)),\"\")","v":""}]
[null,"",{"$f":"IFERROR(INDEX(Bron!B:B,MATCH(Selectie!B628,Bron!C:C,0)),\"\")","v":""}]
[null,"",{"$f":"IFERROR(INDEX(Bron!B:B,MATCH(Selectie!B629,Bron!C:C,0)),\"\")","v":""}]
[null,"",{"$f":"IFERROR(INDEX(Bron!B:B,MATCH(Selectie!B630,Bron!C:C,0)),\"\")","v":""}]
[null,"",{"$f":"IFERROR(INDEX(Bron!B:B,MATCH(Selectie!B631,Bron!C:C,0)),\"\")","v":""}]
[null,"",{"$f":"IFERROR(INDEX(Bron!B:B,MATCH(Selectie!B632,Bron!C:C,0)),\"\")","v":""}]
[null,"",{"$f":"IFERROR(INDEX(Bron!B:B,MATCH(Selectie!B633,Bron!C:C,0)),\"\")","v":""}]
[null,"",{"$f":"IFERROR(INDEX(Bron!B:B,MATCH(Selectie!B634,Bron!C:C,0)),\"\")","v":""}]
[null,"",{"$f":"IFERROR(INDEX(Bron!B:B,MATCH(Selectie!B635,Bron!C:C,0)),\"\")","v":""}]
[null,"",{"$f":"IFERROR(INDEX(Bron!B:B,MATCH(Selectie!B636,Bron!C:C,0)),\"\")","v":""}]
[null,"",{"$f":"IFERROR(INDEX(Bron!B:B,MATCH(Selectie!B637,Bron!C:C,0)),\"\")","v":""}]
[null,"",{"$f":"IFERROR(INDEX(Bron!B:B,MATCH(Selectie!B638,Bron!C:C,0)),\"\")","v":""}]
[null,"",{"$f":"IFERROR(INDEX(Bron!B:B,MATCH(Selectie!B639,Bron!C:C,0)),\"\")","v":""}]
[null,{"$f":"IFERROR(LEFT(A640, SEARCH(\"/\",A640,1)-2),\"\")","v":""},{"$f":"IFERROR(INDEX(Bron!B:B,MATCH(Selectie!B640,Bron!C:C,0)),\"\")","v":""}]
[null,"",{"$f":"IFERROR(INDEX(Bron!B:B,MATCH(Selectie!B641,Bron!C:C,0)),\"\")","v":""}]
[null,"",{"$f":"IFERROR(INDEX(Bron!B:B,MATCH(Selectie!B642,Bron!C:C,0)),\"\")","v":""}]
[null,"",{"$f":"IFERROR(INDEX(Bron!B:B,MATCH(Selectie!B643,Bron!C:C,0)),\"\")","v":""}]
[null,"",{"$f":"IFERROR(INDEX(Bron!B:B,MATCH(Selectie!B644,Bron!C:C,0)),\"\")","v":""}]
[null,"",{"$f":"IFERROR(INDEX(Bron!B:B,MATCH(Selectie!B645,Bron!C:C,0)),\"\")","v":""}]
[null,"",{"$f":"IFERROR(INDEX(Bron!B:B,MATCH(Selectie!B646,Bron!C:C,0)),\"\")","v":""}]
[null,"",{"$f":"IFERROR(INDEX(Bron!B:B,MATCH(Selectie!B647,Bron!C:C,0)),\"\")","v":""}]
[null,"",{"$f":"IFERROR(INDEX(Bron!B:B,MATCH(Selectie!B648,Bron!C:C,0)),\"\")","v":""}]
[null,"",{"$f":"IFERROR(INDEX(Bron!B:B,MATCH(Selectie!B649,Bron!C:C,0)),\"\")","v":""}]
[null,"",{"$f":"IFERROR(INDEX(Bron!B:B,MATCH(Selectie!B650,Bron!C:C,0)),\"\")","v":""}]
[null,"",{"$f":"IFERROR(INDEX(Bron!B:B,MATCH(Selectie!B651,Bron!C:C,0)),\"\")","v":""}]
[null,"",{"$f":"IFERROR(INDEX(Bron!B:B,MATCH(Selectie!B652,Bron!C:C,0)),\"\")","v":""}]
[null,"",{"$f":"IFERROR(INDEX(Bron!B:B,MATCH(Selectie!B653,Bron!C:C,0)),\"\")","v":""}]
[null,"",{"$f":"IFERROR(INDEX(Bron!B:B,MATCH(Selectie!B654,Bron!C:C,0)),\"\")","v":""}]
[null,"",{"$f":"IFERROR(INDEX(Bron!B:B,MATCH(Selectie!B655,Bron!C:C,0)),\"\")","v":""}]
[null,"",{"$f":"IFERROR(INDEX(Bron!B:B,MATCH(Selectie!B656,Bron!C:C,0)),\"\")","v":""}]
[null,"",{"$f":"IFERROR(INDEX(Bron!B:B,MATCH(Selectie!B657,Bron!C:C,0)),\"\")","v":""}]
[null,"",{"$f":"IFERROR(INDEX(Bron!B:B,MATCH(Selectie!B658,Bron!C:C,0)),\"\")","v":""}]
[null,"",{"$f":"IFERROR(INDEX(Bron!B:B,MATCH(Selectie!B659,Bron!C:C,0)),\"\")","v":""}]
[null,"",{"$f":"IFERROR(INDEX(Bron!B:B,MATCH(Selectie!B660,Bron!C:C,0)),\"\")","v":""}]
[null,"",{"$f":"IFERROR(INDEX(Bron!B:B,MATCH(Selectie!B661,Bron!C:C,0)),\"\")","v":""}]
[null,"",{"$f":"IFERROR(INDEX(Bron!B:B,MATCH(Selectie!B662,Bron!C:C,0)),\"\")","v":""}]
[null,"",{"$f":"IFERROR(INDEX(Bron!B:B,MATCH(Selectie!B663,Bron!C:C,0)),\"\")","v":""}]
[null,"",{"$f":"IFERROR(INDEX(Bron!B:B,MATCH(Selectie!B664,Bron!C:C,0)),\"\")","v":""}]
[null,"",{"$f":"IFERROR(INDEX(Bron!B:B,MATCH(Selectie!B665,Bron!C:C,0)),\"\")","v":""}]
[null,"",{"$f":"IFERROR(INDEX(Bron!B:B,MATCH(Selectie!B666,Bron!C:C,0)),\"\")","v":""}]
[null,"",{"$f":"IFERROR(INDEX(Bron!B:B,MATCH(Selectie!B667,Bron!C:C,0)),\"\")","v":""}]
[null,"",{"$f":"IFERROR(INDEX(Bron!B:B,MATCH(Selectie!B668,Bron!C:C,0)),\"\")","v":""}]
[null,"",{"$f":"IFERROR(INDEX(Bron!B:B,MATCH(Selectie!B669,Bron!C:C,0)),\"\")","v":""}]
[null,"",{"$f":"IFERROR(INDEX(Bron!B:B,MATCH(Selectie!B670,Bron!C:C,0)),\"\")","v":""}]
[null,"",{"$f":"IFERROR(INDEX(Bron!B:B,MATCH(Selectie!B671,Bron!C:C,0)),\"\")","v":""}]
[null,"",{"$f":"IFERROR(INDEX(Bron!B:B,MATCH(Selectie!B672,Bron!C:C,0)),\"\")","v":""}]
[null,"",{"$f":"IFERROR(INDEX(Bron!B:B,MATCH(Selectie!B673,Bron!C:C,0)),\"\")","v":""}]
[null,"",{"$f":"IFERROR(INDEX(Bron!B:B,MATCH(Selectie!B674,Bron!C:C,0)),\"\")","v":""}]
[null,"",{"$f":"IFERROR(INDEX(Bron!B:B,MATCH(Selectie!B675,Bron!C:C,0)),\"\")","v":""}]
[null,"",{"$f":"IFERROR(INDEX(Bron!B:B,MATCH(Selectie!B676,Bron!C:C,0)),\"\")","v":""}]
[null,"",{"$f":"IFERROR(INDEX(Bron!B:B,MATCH(Selectie!B677,Bron!C:C,0)),\"\")","v":""}]
[null,"",{"$f":"IFERROR(INDEX(Bron!B:B,MATCH(Selectie!B678,Bron!C:C,0)),\"\")","v":""}]
[null,"",{"$f":"IFERROR(INDEX(Bron!B:B,MATCH(Selectie!B679,Bron!C:C,0)),\"\")","v":""}]
[null,"",{"$f":"IFERROR(INDEX(Bron!B:B,MATCH(Selectie!B680,Bron!C:C,0)),\"\")","v":""}]
[null,"",{"$f":"IFERROR(INDEX(Bron!B:B,MATCH(Selectie!B681,Bron!C:C,0)),\"\")","v":""}]
[null,"",{"$f":"IFERROR(INDEX(Bron!B:B,MATCH(Selectie!B682,Bron!C:C,0)),\"\")","v":""}]
[null,"",{"$f":"IFERROR(INDEX(Bron!B:B,MATCH(Selectie!B683,Bron!C:C,0)),\"\")","v":""}]
[null,"",{"$f":"IFERROR(INDEX(Bron!B:B,MATCH(Selectie!B684,Bron!C:C,0)),\"\")","v":""}]
[null,"",{"$f":"IFERROR(INDEX(Bron!B:B,MATCH(Selectie!B685,Bron!C:C,0)),\"\")","v":""}]
[null,"",{"$f":"IFERROR(INDEX(Bron!B:B,MATCH(Selectie!B686,Bron!C:C,0)),\"\")","v":""}]
[null,"",{"$f":"IFERROR(INDEX(Bron!B:B,MATCH(Selectie!B687,Bron!C:C,0)),\"\")","v":""}]
[null,"",{"$f":"IFERROR(INDEX(Bron!B:B,MATCH(Selectie!B688,Bron!C:C,0)),\"\")","v":""}]
[null,"",{"$f":"IFERROR(INDEX(Bron!B:B,MATCH(Selectie!B689,Bron!C:C,0)),\"\")","v":""}]
[null,"",{"$f":"IFERROR(INDEX(Bron!B:B,MATCH(Selectie!B690,Bron!C:C,0)),\"\")","v":""}]
[null,"",{"$f":"IFERROR(INDEX(Bron!B:B,MATCH(Selectie!B691,Bron!C:C,0)),\"\")","v":""}]
[null,"",{"$f":"IFERROR(INDEX(Bron!B:B,MATCH(Selectie!B692,Bron!C:C,0)),\"\")","v":""}]
[null,"",{"$f":"IFERROR(INDEX(Bron!B:B,MATCH(Selectie!B693,Bron!C:C,0)),\"\")","v":""}]
[null,"",{"$f":"IFERROR(INDEX(Bron!B:B,MATCH(Selectie!B694,Bron!C:C,0)),\"\")","v":""}]
[null,"",{"$f":"IFERROR(INDEX(Bron!B:B,MATCH(Selectie!B695,Bron!C:C,0)),\"\")","v":""}]
[null,"",{"$f":"IFERROR(INDEX(Bron!B:B,MATCH(Selectie!B696,Bron!C:C,0)),\"\")","v":""}]
[null,"",{"$f":"IFERROR(INDEX(Bron!B:B,MATCH(Selectie!B697,Bron!C:C,0)),\"\")","v":""}]
[null,"",{"$f":"IFERROR(INDEX(Bron!B:B,MATCH(Selectie!B698,Bron!C:C,0)),\"\")","v":""}]
[null,"",{"$f":"IFERROR(INDEX(Bron!B:B,MATCH(Selectie!B699,Bron!C:C,0)),\"\")","v":""}]
[null,"",{"$f":"IFERROR(INDEX(Bron!B:B,MATCH(Selectie!B700,Bron!C:C,0)),\"\")","v":""}]
[null,"",{"$f":"IFERROR(INDEX(Bron!B:B,MATCH(Selectie!B701,Bron!C:C,0)),\"\")","v":""}]
[null,"",{"$f":"IFERROR(INDEX(Bron!B:B,MATCH(Selectie!B702,Bron!C:C,0)),\"\")","v":""}]
[null,"",{"$f":"IFERROR(INDEX(Bron!B:B,MATCH(Selectie!B703,Bron!C:C,0)),\"\")","v":""}]
[null,{"$f":"IFERROR(LEFT(A704, SEARCH(\"/\",A704,1)-2),\"\")","v":""},{"$f":"IFERROR(INDEX(Bron!B:B,MATCH(Selectie!B704,Bron!C:C,0)),\"\")","v":""}]
[null,"",{"$f":"IFERROR(INDEX(Bron!B:B,MATCH(Selectie!B705,Bron!C:C,0)),\"\")","v":""}]
[null,"",{"$f":"IFERROR(INDEX(Bron!B:B,MATCH(Selectie!B706,Bron!C:C,0)),\"\")","v":""}]
[null,"",{"$f":"IFERROR(INDEX(Bron!B:B,MATCH(Selectie!B707,Bron!C:C,0)),\"\")","v":""}]
[null,"",{"$f":"IFERROR(INDEX(Bron!B:B,MATCH(Selectie!B708,Bron!C:C,0)),\"\")","v":""}]
[null,"",{"$f":"IFERROR(INDEX(Bron!B:B,MATCH(Selectie!B709,Bron!C:C,0)),\"\")","v":""}]
[null,"",{"$f":"IFERROR(INDEX(Bron!B:B,MATCH(Selectie!B710,Bron!C:C,0)),\"\")","v":""}]
[null,"",{"$f":"IFERROR(INDEX(Bron!B:B,MATCH(Selectie!B711,Bron!C:C,0)),\"\")","v":""}]
[null,"",{"$f":"IFERROR(INDEX(Bron!B:B,MATCH(Selectie!B712,Bron!C:C,0)),\"\")","v":""}]
[null,"",{"$f":"IFERROR(INDEX(Bron!B:B,MATCH(Selectie!B713,Bron!C:C,0)),\"\")","v":""}]
[null,"",{"$f":"IFERROR(INDEX(Bron!B:B,MATCH(Selectie!B714,Bron!C:C,0)),\"\")","v":""}]
[null,"",{"$f":"IFERROR(INDEX(Bron!B:B,MATCH(Selectie!B715,Bron!C:C,0)),\"\")","v":""}]
[null,"",{"$f":"IFERROR(INDEX(Bron!B:B,MATCH(Selectie!B716,Bron!C:C,0)),\"\")","v":""}]
[null,"",{"$f":"IFERROR(INDEX(Bron!B:B,MATCH(Selectie!B717,Bron!C:C,0)),\"\")","v":""}]
[null,"",{"$f":"IFERROR(INDEX(Bron!B:B,MATCH(Selectie!B718,Bron!C:C,0)),\"\")","v":""}]
[null,"",{"$f":"IFERROR(INDEX(Bron!B:B,MATCH(Selectie!B719,Bron!C:C,0)),\"\")","v":""}]
[null,"",{"$f":"IFERROR(INDEX(Bron!B:B,MATCH(Selectie!B720,Bron!C:C,0)),\"\")","v":""}]
[null,"",{"$f":"IFERROR(INDEX(Bron!B:B,MATCH(Selectie!B721,Bron!C:C,0)),\"\")","v":""}]
[null,"",{"$f":"IFERROR(INDEX(Bron!B:B,MATCH(Selectie!B722,Bron!C:C,0)),\"\")","v":""}]
[null,"",{"$f":"IFERROR(INDEX(Bron!B:B,MATCH(Selectie!B723,Bron!C:C,0)),\"\")","v":""}]
[null,"",{"$f":"IFERROR(INDEX(Bron!B:B,MATCH(Selectie!B724,Bron!C:C,0)),\"\")","v":""}]
[null,"",{"$f":"IFERROR(INDEX(Bron!B:B,MATCH(Selectie!B725,Bron!C:C,0)),\"\")","v":""}]
[null,"",{"$f":"IFERROR(INDEX(Bron!B:B,MATCH(Selectie!B726,Bron!C:C,0)),\"\")","v":""}]
[null,"",{"$f":"IFERROR(INDEX(Bron!B:B,MATCH(Selectie!B727,Bron!C:C,0)),\"\")","v":""}]
[null,"",{"$f":"IFERROR(INDEX(Bron!B:B,MATCH(Selectie!B728,Bron!C:C,0)),\"\")","v":""}]
[null,"",{"$f":"IFERROR(INDEX(Bron!B:B,MATCH(Selectie!B729,Bron!C:C,0)),\"\")","v":""}]
[null,"",{"$f":"IFERROR(INDEX(Bron!B:B,MATCH(Selectie!B730,Bron!C:C,0)),\"\")","v":""}]
[null,"",{"$f":"IFERROR(INDEX(Bron!B:B,MATCH(Selectie!B731,Bron!C:C,0)),\"\")","v":""}]
[null,"",{"$f":"IFERROR(INDEX(Bron!B:B,MATCH(Selectie!B732,Bron!C:C,0)),\"\")","v":""}]
[null,"",{"$f":"IFERROR(INDEX(Bron!B:B,MATCH(Selectie!B733,Bron!C:C,0)),\"\")","v":""}]
[null,"",{"$f":"IFERROR(INDEX(Bron!B:B,MATCH(Selectie!B734,Bron!C:C,0)),\"\")","v":""}]
[null,"",{"$f":"IFERROR(INDEX(Bron!B:B,MATCH(Selectie!B735,Bron!C:C,0)),\"\")","v":""}]
[null,"",{"$f":"IFERROR(INDEX(Bron!B:B,MATCH(Selectie!B736,Bron!C:C,0)),\"\")","v":""}]
[null,"",{"$f":"IFERROR(INDEX(Bron!B:B,MATCH(Selectie!B737,Bron!C:C,0)),\"\")","v":""}]
[null,"",{"$f":"IFERROR(INDEX(Bron!B:B,MATCH(Selectie!B738,Bron!C:C,0)),\"\")","v":""}]
[null,"",{"$f":"IFERROR(INDEX(Bron!B:B,MATCH(Selectie!B739,Bron!C:C,0)),\"\")","v":""}]
[null,"",{"$f":"IFERROR(INDEX(Bron!B:B,MATCH(Selectie!B740,Bron!C:C,0)),\"\")","v":""}]
[null,"",{"$f":"IFERROR(INDEX(Bron!B:B,MATCH(Selectie!B741,Bron!C:C,0)),\"\")","v":""}]
[null,"",{"$f":"IFERROR(INDEX(Bron!B:B,MATCH(Selectie!B742,Bron!C:C,0)),\"\")","v":""}]
[null,"",{"$f":"IFERROR(INDEX(Bron!B:B,MATCH(Selectie!B743,Bron!C:C,0)),\"\")","v":""}]
[null,"",{"$f":"IFERROR(INDEX(Bron!B:B,MATCH(Selectie!B744,Bron!C:C,0)),\"\")","v":""}]
[null,"",{"$f":"IFERROR(INDEX(Bron!B:B,MATCH(Selectie!B745,Bron!C:C,0)),\"\")","v":""}]
[null,"",{"$f":"IFERROR(INDEX(Bron!B:B,MATCH(Selectie!B746,Bron!C:C,0)),\"\")","v":""}]
[null,"",{"$f":"IFERROR(INDEX(Bron!B:B,MATCH(Selectie!B747,Bron!C:C,0)),\"\")","v":""}]
[null,"",{"$f":"IFERROR(INDEX(Bron!B:B,MATCH(Selectie!B748,Bron!C:C,0)),\"\")","v":""}]
[null,"",{"$f":"IFERROR(INDEX(Bron!B:B,MATCH(Selectie!B749,Bron!C:C,0)),\"\")","v":""}]
[null,"",{"$f":"IFERROR(INDEX(Bron!B:B,MATCH(Selectie!B750,Bron!C:C,0)),\"\")","v":""}]
[null,"",{"$f":"IFERROR(INDEX(Bron!B:B,MATCH(Selectie!B751,Bron!C:C,0)),\"\")","v":""}]
[null,"",{"$f":"IFERROR(INDEX(Bron!B:B,MATCH(Selectie!B752,Bron!C:C,0)),\"\")","v":""}]
[null,"",{"$f":"IFERROR(INDEX(Bron!B:B,MATCH(Selectie!B753,Bron!C:C,0)),\"\")","v":""}]
[null,"",{"$f":"IFERROR(INDEX(Bron!B:B,MATCH(Selectie!B754,Bron!C:C,0)),\"\")","v":""}]
[null,"",{"$f":"IFERROR(INDEX(Bron!B:B,MATCH(Selectie!B755,Bron!C:C,0)),\"\")","v":""}]
[null,"",{"$f":"IFERROR(INDEX(Bron!B:B,MATCH(Selectie!B756,Bron!C:C,0)),\"\")","v":""}]
[null,"",{"$f":"IFERROR(INDEX(Bron!B:B,MATCH(Selectie!B757,Bron!C:C,0)),\"\")","v":""}]
[null,"",{"$f":"IFERROR(INDEX(Bron!B:B,MATCH(Selectie!B758,Bron!C:C,0)),\"\")","v":""}]
[null,"",{"$f":"IFERROR(INDEX(Bron!B:B,MATCH(Selectie!B759,Bron!C:C,0)),\"\")","v":""}]
[null,"",{"$f":"IFERROR(INDEX(Bron!B:B,MATCH(Selectie!B760,Bron!C:C,0)),\"\")","v":""}]
[null,"",{"$f":"IFERROR(INDEX(Bron!B:B,MATCH(Selectie!B761,Bron!C:C,0)),\"\")","v":""}]
[null,"",{"$f":"IFERROR(INDEX(Bron!B:B,MATCH(Selectie!B762,Bron!C:C,0)),\"\")","v":""}]
[null,"",{"$f":"IFERROR(INDEX(Bron!B:B,MATCH(Selectie!B763,Bron!C:C,0)),\"\")","v":""}]
[null,"",{"$f":"IFERROR(INDEX(Bron!B:B,MATCH(Selectie!B764,Bron!C:C,0)),\"\")","v":""}]
[null,"",{"$f":"IFERROR(INDEX(Bron!B:B,MATCH(Selectie!B765,Bron!C:C,0)),\"\")","v":""}]
[null,"",{"$f":"IFERROR(INDEX(Bron!B:B,MATCH(Selectie!B766,Bron!C:C,0)),\"\")","v":""}]
[null,"",{"$f":"IFERROR(INDEX(Bron!B:B,MATCH(Selectie!B767,Bron!C:C,0)),\"\")","v":""}]
[null,{"$f":"IFERROR(LEFT(A768, SEARCH(\"/\",A768,1)-2),\"\")","v":""},{"$f":"IFERROR(INDEX(Bron!B:B,MATCH(Selectie!B768,Bron!C:C,0)),\"\")","v":""}]
[null,"",{"$f":"IFERROR(INDEX(Bron!B:B,MATCH(Selectie!B769,Bron!C:C,0)),\"\")","v":""}]
[null,"",{"$f":"IFERROR(INDEX(Bron!B:B,MATCH(Selectie!B770,Bron!C:C,0)),\"\")","v":""}]
[null,"",{"$f":"IFERROR(INDEX(Bron!B:B,MATCH(Selectie!B771,Bron!C:C,0)),\"\")","v":""}]
[null,"",{"$f":"IFERROR(INDEX(Bron!B:B,MATCH(Selectie!B772,Bron!C:C,0)),\"\")","v":""}]
[null,"",{"$f":"IFERROR(INDEX(Bron!B:B,MATCH(Selectie!B773,Bron!C:C,0)),\"\")","v":""}]
[null,"",{"$f":"IFERROR(INDEX(Bron!B:B,MATCH(Selectie!B774,Bron!C:C,0)),\"\")","v":""}]
[null,"",{"$f":"IFERROR(INDEX(Bron!B:B,MATCH(Selectie!B775,Bron!C:C,0)),\"\")","v":""}]
[null,"",{"$f":"IFERROR(INDEX(Bron!B:B,MATCH(Selectie!B776,Bron!C:C,0)),\"\")","v":""}]
[null,"",{"$f":"IFERROR(INDEX(Bron!B:B,MATCH(Selectie!B777,Bron!C:C,0)),\"\")","v":""}]
[null,"",{"$f":"IFERROR(INDEX(Bron!B:B,MATCH(Selectie!B778,Bron!C:C,0)),\"\")","v":""}]
[null,"",{"$f":"IFERROR(INDEX(Bron!B:B,MATCH(Selectie!B779,Bron!C:C,0)),\"\")","v":""}]
[null,"",{"$f":"IFERROR(INDEX(Bron!B:B,MATCH(Selectie!B780,Bron!C:C,0)),\"\")","v":""}]
[null,"",{"$f":"IFERROR(INDEX(Bron!B:B,MATCH(Selectie!B781,Bron!C:C,0)),\"\")","v":""}]
[null,"",{"$f":"IFERROR(INDEX(Bron!B:B,MATCH(Selectie!B782,Bron!C:C,0)),\"\")","v":""}]
[null,"",{"$f":"IFERROR(INDEX(Bron!B:B,MATCH(Selectie!B783,Bron!C:C,0)),\"\")","v":""}]
[null,"",{"$f":"IFERROR(INDEX(Bron!B:B,MATCH(Selectie!B784,Bron!C:C,0)),\"\")","v":""}]
[null,"",{"$f":"IFERROR(INDEX(Bron!B:B,MATCH(Selectie!B785,Bron!C:C,0)),\"\")","v":""}]
[null,"",{"$f":"IFERROR(INDEX(Bron!B:B,MATCH(Selectie!B786,Bron!C:C,0)),\"\")","v":""}]
[null,"",{"$f":"IFERROR(INDEX(Bron!B:B,MATCH(Selectie!B787,Bron!C:C,0)),\"\")","v":""}]
[null,"",{"$f":"IFERROR(INDEX(Bron!B:B,MATCH(Selectie!B788,Bron!C:C,0)),\"\")","v":""}]
[null,"",{"$f":"IFERROR(INDEX(Bron!B:B,MATCH(Selectie!B789,Bron!C:C,0)),\"\")","v":""}]
[null,"",{"$f":"IFERROR(INDEX(Bron!B:B,MATCH(Selectie!B790,Bron!C:C,0)),\"\")","v":""}]
[null,"",{"$f":"IFERROR(INDEX(Bron!B:B,MATCH(Selectie!B791,Bron!C:C,0)),\"\")","v":""}]
[null,"",{"$f":"IFERROR(INDEX(Bron!B:B,MATCH(Selectie!B792,Bron!C:C,0)),\"\")","v":""}]
[null,"",{"$f":"IFERROR(INDEX(Bron!B:B,MATCH(Selectie!B793,Bron!C:C,0)),\"\")","v":""}]
[null,"",{"$f":"IFERROR(INDEX(Bron!B:B,MATCH(Selectie!B794,Bron!C:C,0)),\"\")","v":""}]
[null,"",{"$f":"IFERROR(INDEX(Bron!B:B,MATCH(Selectie!B795,Bron!C:C,0)),\"\")","v":""}]
[null,"",{"$f":"IFERROR(INDEX(Bron!B:B,MATCH(Selectie!B796,Bron!C:C,0)),\"\")","v":""}]
[null,"",{"$f":"IFERROR(INDEX(Bron!B:B,MATCH(Selectie!B797,Bron!C:C,0)),\"\")","v":""}]
[null,"",{"$f":"IFERROR(INDEX(Bron!B:B,MATCH(Selectie!B798,Bron!C:C,0)),\"\")","v":""}]
[null,"",{"$f":"IFERROR(INDEX(Bron!B:B,MATCH(Selectie!B799,Bron!C:C,0)),\"\")","v":""}]
[null,"",{"$f":"IFERROR(INDEX(Bron!B:B,MATCH(Selectie!B800,Bron!C:C,0)),\"\")","v":""}]
[null,"",{"$f":"IFERROR(INDEX(Bron!B:B,MATCH(Selectie!B801,Bron!C:C,0)),\"\")","v":""}]
[null,"",{"$f":"IFERROR(INDEX(Bron!B:B,MATCH(Selectie!B802,Bron!C:C,0)),\"\")","v":""}]
[null,"",{"$f":"IFERROR(INDEX(Bron!B:B,MATCH(Selectie!B803,Bron!C:C,0)),\"\")","v":""}]
[null,"",{"$f":"IFERROR(INDEX(Bron!B:B,MATCH(Selectie!B804,Bron!C:C,0)),\"\")","v":""}]
[null,"",{"$f":"IFERROR(INDEX(Bron!B:B,MATCH(Selectie!B805,Bron!C:C,0)),\"\")","v":""}]
[null,"",{"$f":"IFERROR(INDEX(Bron!B:B,MATCH(Selectie!B806,Bron!C:C,0)),\"\")","v":""}]
[null,"",{"$f":"IFERROR(INDEX(Bron!B:B,MATCH(Selectie!B807,Bron!C:C,0)),\"\")","v":""}]
[null,"",{"$f":"IFERROR(INDEX(Bron!B:B,MATCH(Selectie!B808,Bron!C:C,0)),\"\")","v":""}]
[null,"",{"$f":"IFERROR(INDEX(Bron!B:B,MATCH(Selectie!B809,Bron!C:C,0)),\"\")","v":""}]
[null,"",{"$f":"IFERROR(INDEX(Bron!B:B,MATCH(Selectie!B810,Bron!C:C,0)),\"\")","v":""}]
[null,"",{"$f":"IFERROR(INDEX(Bron!B:B,MATCH(Selectie!B811,Bron!C:C,0)),\"\")","v":""}]
[null,"",{"$f":"IFERROR(INDEX(Bron!B:B,MATCH(Selectie!B812,Bron!C:C,0)),\"\")","v":""}]
[null,"",{"$f":"IFERROR(INDEX(Bron!B:B,MATCH(Selectie!B813,Bron!C:C,0)),\"\")","v":""}]
[null,"",{"$f":"IFERROR(INDEX(Bron!B:B,MATCH(Selectie!B814,Bron!C:C,0)),\"\")","v":""}]
[null,"",{"$f":"IFERROR(INDEX(Bron!B:B,MATCH(Selectie!B815,Bron!C:C,0)),\"\")","v":""}]
[null,"",{"$f":"IFERROR(INDEX(Bron!B:B,MATCH(Selectie!B816,Bron!C:C,0)),\"\")","v":""}]
[null,"",{"$f":"IFERROR(INDEX(Bron!B:B,MATCH(Selectie!B817,Bron!C:C,0)),\"\")","v":""}]
[null,"",{"$f":"IFERROR(INDEX(Bron!B:B,MATCH(Selectie!B818,Bron!C:C,0)),\"\")","v":""}]
[null,"",{"$f":"IFERROR(INDEX(Bron!B:B,MATCH(Selectie!B819,Bron!C:C,0)),\"\")","v":""}]
[null,"",{"$f":"IFERROR(INDEX(Bron!B:B,MATCH(Selectie!B820,Bron!C:C,0)),\"\")","v":""}]
[null,"",{"$f":"IFERROR(INDEX(Bron!B:B,MATCH(Selectie!B821,Bron!C:C,0)),\"\")","v":""}]
[null,"",{"$f":"IFERROR(INDEX(Bron!B:B,MATCH(Selectie!B822,Bron!C:C,0)),\"\")","v":""}]
[null,"",{"$f":"IFERROR(INDEX(Bron!B:B,MATCH(Selectie!B823,Bron!C:C,0)),\"\")","v":""}]
[null,"",{"$f":"IFERROR(INDEX(Bron!B:B,MATCH(Selectie!B824,Bron!C:C,0)),\"\")","v":""}]
[null,"",{"$f":"IFERROR(INDEX(Bron!B:B,MATCH(Selectie!B825,Bron!C:C,0)),\"\")","v":""}]
[null,"",{"$f":"IFERROR(INDEX(Bron!B:B,MATCH(Selectie!B826,Bron!C:C,0)),\"\")","v":""}]
[null,"",{"$f":"IFERROR(INDEX(Bron!B:B,MATCH(Selectie!B827,Bron!C:C,0)),\"\")","v":""}]
[null,"",{"$f":"IFERROR(INDEX(Bron!B:B,MATCH(Selectie!B828,Bron!C:C,0)),\"\")","v":""}]
[null,"",{"$f":"IFERROR(INDEX(Bron!B:B,MATCH(Selectie!B829,Bron!C:C,0)),\"\")","v":""}]
[null,"",{"$f":"IFERROR(INDEX(Bron!B:B,MATCH(Selectie!B830,Bron!C:C,0)),\"\")","v":""}]
[null,"",{"$f":"IFERROR(INDEX(Bron!B:B,MATCH(Selectie!B831,Bron!C:C,0)),\"\")","v":""}]
[null,{"$f":"IFERROR(LEFT(A832, SEARCH(\"/\",A832,1)-2),\"\")","v":""},{"$f":"IFERROR(INDEX(Bron!B:B,MATCH(Selectie!B832,Bron!C:C,0)),\"\")","v":""}]
[null,"",{"$f":"IFERROR(INDEX(Bron!B:B,MATCH(Selectie!B833,Bron!C:C,0)),\"\")","v":""}]
[null,"",{"$f":"IFERROR(INDEX(Bron!B:B,MATCH(Selectie!B834,Bron!C:C,0)),\"\")","v":""}]
[null,"",{"$f":"IFERROR(INDEX(Bron!B:B,MATCH(Selectie!B835,Bron!C:C,0)),\"\")","v":""}]
[null,"",{"$f":"IFERROR(INDEX(Bron!B:B,MATCH(Selectie!B836,Bron!C:C,0)),\"\")","v":""}]
[null,"",{"$f":"IFERROR(INDEX(Bron!B:B,MATCH(Selectie!B837,Bron!C:C,0)),\"\")","v":""}]
[null,"",{"$f":"IFERROR(INDEX(Bron!B:B,MATCH(Selectie!B838,Bron!C:C,0)),\"\")","v":""}]
[null,"",{"$f":"IFERROR(INDEX(Bron!B:B,MATCH(Selectie!B839,Bron!C:C,0)),\"\")","v":""}]
[null,"",{"$f":"IFERROR(INDEX(Bron!B:B,MATCH(Selectie!B840,Bron!C:C,0)),\"\")","v":""}]
[null,"",{"$f":"IFERROR(INDEX(Bron!B:B,MATCH(Selectie!B841,Bron!C:C,0)),\"\")","v":""}]
[null,"",{"$f":"IFERROR(INDEX(Bron!B:B,MATCH(Selectie!B842,Bron!C:C,0)),\"\")","v":""}]
[null,"",{"$f":"IFERROR(INDEX(Bron!B:B,MATCH(Selectie!B843,Bron!C:C,0)),\"\")","v":""}]
[null,"",{"$f":"IFERROR(INDEX(Bron!B:B,MATCH(Selectie!B844,Bron!C:C,0)),\"\")","v":""}]
[null,"",{"$f":"IFERROR(INDEX(Bron!B:B,MATCH(Selectie!B845,Bron!C:C,0)),\"\")","v":""}]
[null,"",{"$f":"IFERROR(INDEX(Bron!B:B,MATCH(Selectie!B846,Bron!C:C,0)),\"\")","v":""}]
[null,"",{"$f":"IFERROR(INDEX(Bron!B:B,MATCH(Selectie!B847,Bron!C:C,0)),\"\")","v":""}]
[null,"",{"$f":"IFERROR(INDEX(Bron!B:B,MATCH(Selectie!B848,Bron!C:C,0)),\"\")","v":""}]
[null,"",{"$f":"IFERROR(INDEX(Bron!B:B,MATCH(Selectie!B849,Bron!C:C,0)),\"\")","v":""}]
[null,"",{"$f":"IFERROR(INDEX(Bron!B:B,MATCH(Selectie!B850,Bron!C:C,0)),\"\")","v":""}]
[null,"",{"$f":"IFERROR(INDEX(Bron!B:B,MATCH(Selectie!B851,Bron!C:C,0)),\"\")","v":""}]
[null,"",{"$f":"IFERROR(INDEX(Bron!B:B,MATCH(Selectie!B852,Bron!C:C,0)),\"\")","v":""}]
[null,"",{"$f":"IFERROR(INDEX(Bron!B:B,MATCH(Selectie!B853,Bron!C:C,0)),\"\")","v":""}]
[null,"",{"$f":"IFERROR(INDEX(Bron!B:B,MATCH(Selectie!B854,Bron!C:C,0)),\"\")","v":""}]
[null,"",{"$f":"IFERROR(INDEX(Bron!B:B,MATCH(Selectie!B855,Bron!C:C,0)),\"\")","v":""}]
[null,"",{"$f":"IFERROR(INDEX(Bron!B:B,MATCH(Selectie!B856,Bron!C:C,0)),\"\")","v":""}]
[null,"",{"$f":"IFERROR(INDEX(Bron!B:B,MATCH(Selectie!B857,Bron!C:C,0)),\"\")","v":""}]
[null,"",{"$f":"IFERROR(INDEX(Bron!B:B,MATCH(Selectie!B858,Bron!C:C,0)),\"\")","v":""}]
[null,"",{"$f":"IFERROR(INDEX(Bron!B:B,MATCH(Selectie!B859,Bron!C:C,0)),\"\")","v":""}]
[null,"",{"$f":"IFERROR(INDEX(Bron!B:B,MATCH(Selectie!B860,Bron!C:C,0)),\"\")","v":""}]
[null,"",{"$f":"IFERROR(INDEX(Bron!B:B,MATCH(Selectie!B861,Bron!C:C,0)),\"\")","v":""}]
[null,"",{"$f":"IFERROR(INDEX(Bron!B:B,MATCH(Selectie!B862,Bron!C:C,0)),\"\")","v":""}]
[null,"",{"$f":"IFERROR(INDEX(Bron!B:B,MATCH(Selectie!B863,Bron!C:C,0)),\"\")","v":""}]
[null,"",{"$f":"IFERROR(INDEX(Bron!B:B,MATCH(Selectie!B864,Bron!C:C,0)),\"\")","v":""}]
[null,"",{"$f":"IFERROR(INDEX(Bron!B:B,MATCH(Selectie!B865,Bron!C:C,0)),\"\")","v":""}]
[null,"",{"$f":"IFERROR(INDEX(Bron!B:B,MATCH(Selectie!B866,Bron!C:C,0)),\"\")","v":""}]
[null,"",{"$f":"IFERROR(INDEX(Bron!B:B,MATCH(Selectie!B867,Bron!C:C,0)),\"\")","v":""}]
[null,"",{"$f":"IFERROR(INDEX(Bron!B:B,MATCH(Selectie!B868,Bron!C:C,0)),\"\")","v":""}]
[null,"",{"$f":"IFERROR(INDEX(Bron!B:B,MATCH(Selectie!B869,Bron!C:C,0)),\"\")","v":""}]
[null,"",{"$f":"IFERROR(INDEX(Bron!B:B,MATCH(Selectie!B870,Bron!C:C,0)),\"\")","v":""}]
[null,"",{"$f":"IFERROR(INDEX(Bron!B:B,MATCH(Selectie!B871,Bron!C:C,0)),\"\")","v":""}]
[null,"",{"$f":"IFERROR(INDEX(Bron!B:B,MATCH(Selectie!B872,Bron!C:C,0)),\"\")","v":""}]
[null,"",{"$f":"IFERROR(INDEX(Bron!B:B,MATCH(Selectie!B873,Bron!C:C,0)),\"\")","v":""}]
[null,"",{"$f":"IFERROR(INDEX(Bron!B:B,MATCH(Selectie!B874,Bron!C:C,0)),\"\")","v":""}]
[null,"",{"$f":"IFERROR(INDEX(Bron!B:B,MATCH(Selectie!B875,Bron!C:C,0)),\"\")","v":""}]
[null,"",{"$f":"IFERROR(INDEX(Bron!B:B,MATCH(Selectie!B876,Bron!C:C,0)),\"\")","v":""}]
[null,"",{"$f":"IFERROR(INDEX(Bron!B:B,MATCH(Selectie!B877,Bron!C:C,0)),\"\")","v":""}]
[null,"",{"$f":"IFERROR(INDEX(Bron!B:B,MATCH(Selectie!B878,Bron!C:C,0)),\"\")","v":""}]
[null,"",{"$f":"IFERROR(INDEX(Bron!B:B,MATCH(Selectie!B879,Bron!C:C,0)),\"\")","v":""}]
[null,"",{"$f":"IFERROR(INDEX(Bron!B:B,MATCH(Selectie!B880,Bron!C:C,0)),\"\")","v":""}]
[null,"",{"$f":"IFERROR(INDEX(Bron!B:B,MATCH(Selectie!B881,Bron!C:C,0)),\"\")","v":""}]
[null,"",{"$f":"IFERROR(INDEX(Bron!B:B,MATCH(Selectie!B882,Bron!C:C,0)),\"\")","v":""}]
[null,"",{"$f":"IFERROR(INDEX(Bron!B:B,MATCH(Selectie!B883,Bron!C:C,0)),\"\")","v":""}]
[null,"",{"$f":"IFERROR(INDEX(Bron!B:B,MATCH(Selectie!B884,Bron!C:C,0)),\"\")","v":""}]
[null,"",{"$f":"IFERROR(INDEX(Bron!B:B,MATCH(Selectie!B885,Bron!C:C,0)),\"\")","v":""}]
[null,"",{"$f":"IFERROR(INDEX(Bron!B:B,MATCH(Selectie!B886,Bron!C:C,0)),\"\")","v":""}]
[null,"",{"$f":"IFERROR(INDEX(Bron!B:B,MATCH(Selectie!B887,Bron!C:C,0)),\"\")","v":""}]
[null,"",{"$f":"IFERROR(INDEX(Bron!B:B,MATCH(Selectie!B888,Bron!C:C,0)),\"\")","v":""}]
[null,"",{"$f":"IFERROR(INDEX(Bron!B:B,MATCH(Selectie!B889,Bron!C:C,0)),\"\")","v":""}]
[null,"",{"$f":"IFERROR(INDEX(Bron!B:B,MATCH(Selectie!B890,Bron!C:C,0)),\"\")","v":""}]
[null,"",{"$f":"IFERROR(INDEX(Bron!B:B,MATCH(Selectie!B891,Bron!C:C,0)),\"\")","v":""}]
[null,"",{"$f":"IFERROR(INDEX(Bron!B:B,MATCH(Selectie!B892,Bron!C:C,0)),\"\")","v":""}]
[null,"",{"$f":"IFERROR(INDEX(Bron!B:B,MATCH(Selectie!B893,Bron!C:C,0)),\"\")","v":""}]
[null,"",{"$f":"IFERROR(INDEX(Bron!B:B,MATCH(Selectie!B894,Bron!C:C,0)),\"\")","v":""}]
[null,"",{"$f":"IFERROR(INDEX(Bron!B:B,MATCH(Selectie!B895,Bron!C:C,0)),\"\")","v":""}]
[null,{"$f":"IFERROR(LEFT(A896, SEARCH(\"/\",A896,1)-2),\"\")","v":""},{"$f":"IFERROR(INDEX(Bron!B:B,MATCH(Selectie!B896,Bron!C:C,0)),\"\")","v":""}]
[null,"",{"$f":"IFERROR(INDEX(Bron!B:B,MATCH(Selectie!B897,Bron!C:C,0)),\"\")","v":""}]
[null,"",{"$f":"IFERROR(INDEX(Bron!B:B,MATCH(Selectie!B898,Bron!C:C,0)),\"\")","v":""}]
[null,"",{"$f":"IFERROR(INDEX(Bron!B:B,MATCH(Selectie!B899,Bron!C:C,0)),\"\")","v":""}]
[null,"",{"$f":"IFERROR(INDEX(Bron!B:B,MATCH(Selectie!B900,Bron!C:C,0)),\"\")","v":""}]
[null,"",{"$f":"IFERROR(INDEX(Bron!B:B,MATCH(Selectie!B901,Bron!C:C,0)),\"\")","v":""}]
[null,"",{"$f":"IFERROR(INDEX(Bron!B:B,MATCH(Selectie!B902,Bron!C:C,0)),\"\")","v":""}]
[null,"",{"$f":"IFERROR(INDEX(Bron!B:B,MATCH(Selectie!B903,Bron!C:C,0)),\"\")","v":""}]
[null,"",{"$f":"IFERROR(INDEX(Bron!B:B,MATCH(Selectie!B904,Bron!C:C,0)),\"\")","v":""}]
[null,"",{"$f":"IFERROR(INDEX(Bron!B:B,MATCH(Selectie!B905,Bron!C:C,0)),\"\")","v":""}]
[null,"",{"$f":"IFERROR(INDEX(Bron!B:B,MATCH(Selectie!B906,Bron!C:C,0)),\"\")","v":""}]
[null,"",{"$f":"IFERROR(INDEX(Bron!B:B,MATCH(Selectie!B907,Bron!C:C,0)),\"\")","v":""}]
[null,"",{"$f":"IFERROR(INDEX(Bron!B:B,MATCH(Selectie!B908,Bron!C:C,0)),\"\")","v":""}]
[null,"",{"$f":"IFERROR(INDEX(Bron!B:B,MATCH(Selectie!B909,Bron!C:C,0)),\"\")","v":""}]
[null,"",{"$f":"IFERROR(INDEX(Bron!B:B,MATCH(Selectie!B910,Bron!C:C,0)),\"\")","v":""}]
[null,"",{"$f":"IFERROR(INDEX(Bron!B:B,MATCH(Selectie!B911,Bron!C:C,0)),\"\")","v":""}]
[null,"",{"$f":"IFERROR(INDEX(Bron!B:B,MATCH(Selectie!B912,Bron!C:C,0)),\"\")","v":""}]
[null,"",{"$f":"IFERROR(INDEX(Bron!B:B,MATCH(Selectie!B913,Bron!C:C,0)),\"\")","v":""}]
[null,"",{"$f":"IFERROR(INDEX(Bron!B:B,MATCH(Selectie!B914,Bron!C:C,0)),\"\")","v":""}]
[null,"",{"$f":"IFERROR(INDEX(Bron!B:B,MATCH(Selectie!B915,Bron!C:C,0)),\"\")","v":""}]
[null,"",{"$f":"IFERROR(INDEX(Bron!B:B,MATCH(Selectie!B916,Bron!C:C,0)),\"\")","v":""}]
[null,"",{"$f":"IFERROR(INDEX(Bron!B:B,MATCH(Selectie!B917,Bron!C:C,0)),\"\")","v":""}]
[null,"",{"$f":"IFERROR(INDEX(Bron!B:B,MATCH(Selectie!B918,Bron!C:C,0)),\"\")","v":""}]
[null,"",{"$f":"IFERROR(INDEX(Bron!B:B,MATCH(Selectie!B919,Bron!C:C,0)),\"\")","v":""}]
[null,"",{"$f":"IFERROR(INDEX(Bron!B:B,MATCH(Selectie!B920,Bron!C:C,0)),\"\")","v":""}]
[null,"",{"$f":"IFERROR(INDEX(Bron!B:B,MATCH(Selectie!B921,Bron!C:C,0)),\"\")","v":""}]
[null,"",{"$f":"IFERROR(INDEX(Bron!B:B,MATCH(Selectie!B922,Bron!C:C,0)),\"\")","v":""}]
[null,"",{"$f":"IFERROR(INDEX(Bron!B:B,MATCH(Selectie!B923,Bron!C:C,0)),\"\")","v":""}]
[null,"",{"$f":"IFERROR(INDEX(Bron!B:B,MATCH(Selectie!B924,Bron!C:C,0)),\"\")","v":""}]
[null,"",{"$f":"IFERROR(INDEX(Bron!B:B,MATCH(Selectie!B925,Bron!C:C,0)),\"\")","v":""}]
[null,"",{"$f":"IFERROR(INDEX(Bron!B:B,MATCH(Selectie!B926,Bron!C:C,0)),\"\")","v":""}]
[null,"",{"$f":"IFERROR(INDEX(Bron!B:B,MATCH(Selectie!B927,Bron!C:C,0)),\"\")","v":""}]
[null,"",{"$f":"IFERROR(INDEX(Bron!B:B,MATCH(Selectie!B928,Bron!C:C,0)),\"\")","v":""}]
[null,"",{"$f":"IFERROR(INDEX(Bron!B:B,MATCH(Selectie!B929,Bron!C:C,0)),\"\")","v":""}]
[null,"",{"$f":"IFERROR(INDEX(Bron!B:B,MATCH(Selectie!B930,Bron!C:C,0)),\"\")","v":""}]
[null,"",{"$f":"IFERROR(INDEX(Bron!B:B,MATCH(Selectie!B931,Bron!C:C,0)),\"\")","v":""}]
[null,"",{"$f":"IFERROR(INDEX(Bron!B:B,MATCH(Selectie!B932,Bron!C:C,0)),\"\")","v":""}]
[null,"",{"$f":"IFERROR(INDEX(Bron!B:B,MATCH(Selectie!B933,Bron!C:C,0)),\"\")","v":""}]
[null,"",{"$f":"IFERROR(INDEX(Bron!B:B,MATCH(Selectie!B934,Bron!C:C,0)),\"\")","v":""}]
[null,"",{"$f":"IFERROR(INDEX(Bron!B:B,MATCH(Selectie!B935,Bron!C:C,0)),\"\")","v":""}]
[null,"",{"$f":"IFERROR(INDEX(Bron!B:B,MATCH(Selectie!B936,Bron!C:C,0)),\"\")","v":""}]
[null,"",{"$f":"IFERROR(INDEX(Bron!B:B,MATCH(Selectie!B937,Bron!C:C,0)),\"\")","v":""}]
[null,"",{"$f":"IFERROR(INDEX(Bron!B:B,MATCH(Selectie!B938,Bron!C:C,0)),\"\")","v":""}]
[null,"",{"$f":"IFERROR(INDEX(Bron!B:B,MATCH(Selectie!B939,Bron!C:C,0)),\"\")","v":""}]
[null,"",{"$f":"IFERROR(INDEX(Bron!B:B,MATCH(Selectie!B940,Bron!C:C,0)),\"\")","v":""}]
[null,"",{"$f":"IFERROR(INDEX(Bron!B:B,MATCH(Selectie!B941,Bron!C:C,0)),\"\")","v":""}]
[null,"",{"$f":"IFERROR(INDEX(Bron!B:B,MATCH(Selectie!B942,Bron!C:C,0)),\"\")","v":""}]
[null,"",{"$f":"IFERROR(INDEX(Bron!B:B,MATCH(Selectie!B943,Bron!C:C,0)),\"\")","v":""}]
[null,"",{"$f":"IFERROR(INDEX(Bron!B:B,MATCH(Selectie!B944,Bron!C:C,0)),\"\")","v":""}]
[null,"",{"$f":"IFERROR(INDEX(Bron!B:B,MATCH(Selectie!B945,Bron!C:C,0)),\"\")","v":""}]
[null,"",{"$f":"IFERROR(INDEX(Bron!B:B,MATCH(Selectie!B946,Bron!C:C,0)),\"\")","v":""}]
[null,"",{"$f":"IFERROR(INDEX(Bron!B:B,MATCH(Selectie!B947,Bron!C:C,0)),\"\")","v":""}]
[null,"",{"$f":"IFERROR(INDEX(Bron!B:B,MATCH(Selectie!B948,Bron!C:C,0)),\"\")","v":""}]
[null,"",{"$f":"IFERROR(INDEX(Bron!B:B,MATCH(Selectie!B949,Bron!C:C,0)),\"\")","v":""}]
[null,"",{"$f":"IFERROR(INDEX(Bron!B:B,MATCH(Selectie!B950,Bron!C:C,0)),\"\")","v":""}]
[null,"",{"$f":"IFERROR(INDEX(Bron!B:B,MATCH(Selectie!B951,Bron!C:C,0)),\"\")","v":""}]
[null,"",{"$f":"IFERROR(INDEX(Bron!B:B,MATCH(Selectie!B952,Bron!C:C,0)),\"\")","v":""}]
[null,"",{"$f":"IFERROR(INDEX(Bron!B:B,MATCH(Selectie!B953,Bron!C:C,0)),\"\")","v":""}]
[null,"",{"$f":"IFERROR(INDEX(Bron!B:B,MATCH(Selectie!B954,Bron!C:C,0)),\"\")","v":""}]
[null,"",{"$f":"IFERROR(INDEX(Bron!B:B,MATCH(Selectie!B955,Bron!C:C,0)),\"\")","v":""}]
[null,"",{"$f":"IFERROR(INDEX(Bron!B:B,MATCH(Selectie!B956,Bron!C:C,0)),\"\")","v":""}]
[null,"",{"$f":"IFERROR(INDEX(Bron!B:B,MATCH(Selectie!B957,Bron!C:C,0)),\"\")","v":""}]
[null,"",{"$f":"IFERROR(INDEX(Bron!B:B,MATCH(Selectie!B958,Bron!C:C,0)),\"\")","v":""}]
[null,"",{"$f":"IFERROR(INDEX(Bron!B:B,MATCH(Selectie!B959,Bron!C:C,0)),\"\")","v":""}]
[null,{"$f":"IFERROR(LEFT(A960, SEARCH(\"/\",A960,1)-2),\"\")","v":""},{"$f":"IFERROR(INDEX(Bron!B:B,MATCH(Selectie!B960,Bron!C:C,0)),\"\")","v":""}]
[null,"",{"$f":"IFERROR(INDEX(Bron!B:B,MATCH(Selectie!B961,Bron!C:C,0)),\"\")","v":""}]
[null,"",{"$f":"IFERROR(INDEX(Bron!B:B,MATCH(Selectie!B962,Bron!C:C,0)),\"\")","v":""}]
[null,"",{"$f":"IFERROR(INDEX(Bron!B:B,MATCH(Selectie!B963,Bron!C:C,0)),\"\")","v":""}]
[null,"",{"$f":"IFERROR(INDEX(Bron!B:B,MATCH(Selectie!B964,Bron!C:C,0)),\"\")","v":""}]
[null,"",{"$f":"IFERROR(INDEX(Bron!B:B,MATCH(Selectie!B965,Bron!C:C,0)),\"\")","v":""}]
[null,"",{"$f":"IFERROR(INDEX(Bron!B:B,MATCH(Selectie!B966,Bron!C:C,0)),\"\")","v":""}]
[null,"",{"$f":"IFERROR(INDEX(Bron!B:B,MATCH(Selectie!B967,Bron!C:C,0)),\"\")","v":""}]
[null,"",{"$f":"IFERROR(INDEX(Bron!B:B,MATCH(Selectie!B968,Bron!C:C,0)),\"\")","v":""}]
[null,"",{"$f":"IFERROR(INDEX(Bron!B:B,MATCH(Selectie!B969,Bron!C:C,0)),\"\")","v":""}]
[null,"",{"$f":"IFERROR(INDEX(Bron!B:B,MATCH(Selectie!B970,Bron!C:C,0)),\"\")","v":""}]
[null,"",{"$f":"IFERROR(INDEX(Bron!B:B,MATCH(Selectie!B971,Bron!C:C,0)),\"\")","v":""}]
[null,"",{"$f":"IFERROR(INDEX(Bron!B:B,MATCH(Selectie!B972,Bron!C:C,0)),\"\")","v":""}]
[null,"",{"$f":"IFERROR(INDEX(Bron!B:B,MATCH(Selectie!B973,Bron!C:C,0)),\"\")","v":""}]
[null,"",{"$f":"IFERROR(INDEX(Bron!B:B,MATCH(Selectie!B974,Bron!C:C,0)),\"\")","v":""}]
[null,"",{"$f":"IFERROR(INDEX(Bron!B:B,MATCH(Selectie!B975,Bron!C:C,0)),\"\")","v":""}]
[null,"",{"$f":"IFERROR(INDEX(Bron!B:B,MATCH(Selectie!B976,Bron!C:C,0)),\"\")","v":""}]
[null,"",{"$f":"IFERROR(INDEX(Bron!B:B,MATCH(Selectie!B977,Bron!C:C,0)),\"\")","v":""}]
[null,"",{"$f":"IFERROR(INDEX(Bron!B:B,MATCH(Selectie!B978,Bron!C:C,0)),\"\")","v":""}]
[null,"",{"$f":"IFERROR(INDEX(Bron!B:B,MATCH(Selectie!B979,Bron!C:C,0)),\"\")","v":""}]
[null,"",{"$f":"IFERROR(INDEX(Bron!B:B,MATCH(Selectie!B980,Bron!C:C,0)),\"\")","v":""}]
[null,"",{"$f":"IFERROR(INDEX(Bron!B:B,MATCH(Selectie!B981,Bron!C:C,0)),\"\")","v":""}]
[null,"",{"$f":"IFERROR(INDEX(Bron!B:B,MATCH(Selectie!B982,Bron!C:C,0)),\"\")","v":""}]
[null,"",{"$f":"IFERROR(INDEX(Bron!B:B,MATCH(Selectie!B983,Bron!C:C,0)),\"\")","v":""}]
[null,"",{"$f":"IFERROR(INDEX(Bron!B:B,MATCH(Selectie!B984,Bron!C:C,0)),\"\")","v":""}]
[null,"",{"$f":"IFERROR(INDEX(Bron!B:B,MATCH(Selectie!B985,Bron!C:C,0)),\"\")","v":""}]
[null,"",{"$f":"IFERROR(INDEX(Bron!B:B,MATCH(Selectie!B986,Bron!C:C,0)),\"\")","v":""}]
[null,"",{"$f":"IFERROR(INDEX(Bron!B:B,MATCH(Selectie!B987,Bron!C:C,0)),\"\")","v":""}]
[null,"",{"$f":"IFERROR(INDEX(Bron!B:B,MATCH(Selectie!B988,Bron!C:C,0)),\"\")","v":""}]
[null,"",{"$f":"IFERROR(INDEX(Bron!B:B,MATCH(Selectie!B989,Bron!C:C,0)),\"\")","v":""}]
[null,"",{"$f":"IFERROR(INDEX(Bron!B:B,MATCH(Selectie!B990,Bron!C:C,0)),\"\")","v":""}]
[null,"",{"$f":"IFERROR(INDEX(Bron!B:B,MATCH(Selectie!B991,Bron!C:C,0)),\"\")","v":""}]
[null,"",{"$f":"IFERROR(INDEX(Bron!B:B,MATCH(Selectie!B992,Bron!C:C,0)),\"\")","v":""}]
[null,"",{"$f":"IFERROR(INDEX(Bron!B:B,MATCH(Selectie!B993,Bron!C:C,0)),\"\")","v":""}]
[null,"",{"$f":"IFERROR(INDEX(Bron!B:B,MATCH(Selectie!B994,Bron!C:C,0)),\"\")","v":""}]
[null,"",{"$f":"IFERROR(INDEX(Bron!B:B,MATCH(Selectie!B995,Bron!C:C,0)),\"\")","v":""}]
[null,"",{"$f":"IFERROR(INDEX(Bron!B:B,MATCH(Selectie!B996,Bron!C:C,0)),\"\")","v":""}]
[null,"",{"$f":"IFERROR(INDEX(Bron!B:B,MATCH(Selectie!B997,Bron!C:C,0)),\"\")","v":""}]
[null,"",{"$f":"IFERROR(INDEX(Bron!B:B,MATCH(Selectie!B998,Bron!C:C,0)),\"\")","v":""}]
[null,"",{"$f":"IFERROR(INDEX(Bron!B:B,MATCH(Selectie!B999,Bron!C:C,0)),\"\")","v":""}]

{"sheet":"Prijslijst","index":1,"n_rows":91,"n_cols":5,"rows_kept":91,"cut":false,"hidden":false,"merged":[[71,3,71,4],[16,3,16,4],[39,3,39,4],[52,3,52,4],[56,3,56,4],[63,3,63,4],[67,3,67,4]]}
[null,"Indicatie bijkomende materiaal- en techniekkosten tandheelkundige behandelingen"]
[]
[]
[null,"Ieder mens is uniek. En daarmee ook iedere tandheelkundige behandeling. Om daar zo goed mogelijk invulling aan te kunnen geven heeft de"]
[null,"Nederlandse Zorgautoriteit bepaald dat bij  bepaalde behandelingen materiaal- en techniekkosten additioneel in rekening moeten worden"]
[null,"gebracht. Hierdoor krijgt u als patiënt meer keuzemogelijkheden om die behandeling in te vullen."]
[]
[null,"Om u vooraf inzicht te geven in die mogelijkheden en de daarbij behorende prijsindicatie, hebben wij het volgende overzicht samengesteld."]
[null,"Om het overzichtelijk te houden hebben we de meest voorkomende behandelingen opgenomen. Indien er sprake is van een tandheelkundige "]
[null,"behandeling waarbij materiaal en/of techniekkosten in rekening worden gebracht en u heeft samen met uw behandelaar bepaald hoe deze"]
[null,"wordt ingevuld, dan krijgt u hiervoor een individuele prijsopgave of kunt u hierom vragen. Aan dit overzicht kunnen geen rechten worden"]
[null,"ontleend."]
[]
[null,"De meest voorkomende materiaal en/of techniekkosten in onze praktijk zijn:"]
[]
[]
[null,"Nza code en omschrijving","Omschrijving materiaal- en techniek","Prijsindicatie "]
[null,"VIII. Kronen en bruggen",null,"Van","Tot"]
[null,"R11 / Eenvlaksinlay","Techniekkosten inlay keramisch materiaal",220,450]
[null,null,"Techniekkosten inlay edelmetaal",220,450]
[null,"R12 / Tweevlaksinlay","Techniekkosten inlay",220,450]
[null,null,"Techniekkosten inlay edelmetaal",220,450]
[null,"R13 / Drievlaksinlay","Techniekkosten inlay",220,450]
[null,null,"Techniekkosten inlay edelmetaal",220,450]
[null,"R24 / Kroon","Techniekkosten composiet kroon",100]
[null,null,"Techniekkosten volledig keramische kroon",220,450]
[null,null,"Techniekkosten keramisch/porselein kroon",220,450]
[null,null,"Techniekkosten metaal/porselein kroon",220,450]
[null,null,"Techniekkosten goud/porselein kroon",220,450]
[null,null,"Techniekkosten vol gouden kroon",220,450]
[null,null,"Meerkosten verschroefbare kroon op implantaten",300,450]
[null,null,"Meerkosten gecementeerde kroon op implantaten",300,450]
[null,"R40, R45 / Brugtussendelen","Techniekkosten brugtussendeel keramisch",220,450]
[null,null,"Techniekkosten brugtussendeel metaal/porselein",220,450]
[null,null,"Techniekkosten brugtussendeel goud/porselein",220,450]
[null,"R60, R61 / Plakbrug","Techniekkosten etsbrug",350,450]
[null,"R78, R79 / Schildje van keramiek of kunststof","Techniekkosten keramische schildje",350,450]
[null,null,"Techniekkosten porseleinen schildje",350,450]
[]
[null,"Nza code en omschrijving","Omschrijving materiaal- en techniek","Prijsindicatie "]
[null,"XI. Kunstgebitten",null,"Van","Tot"]
[null,"P10 / Gedeeltelijk kunstgebit 1-4 elementen","Techniekkosten gedeeltelijk kunstgebit 1-4 elementen",150,250]
[null,"P15 / Gedeeltelijk kunstgebit 5-13 elementen","Techniekkosten gedeeltelijk kunstgebit 5-13 elementen",250,350]
[null,"P34 / Frame kunstgebit 1-4 elementen","Techniekkosten frame kunstgebit 1-4 elementen",450,550]
[null,"P35 / Frame kunstgebit 5-13 elementen","Techniekkosten frame kunstgebit 5-13 elementen",500,600]
[null,"P21, P25, P30 / Volledig kunstgebit","Techniekkosten kunstgebit bovenkaak",320,350]
[null,null,"Techniekkosten kunstgebit onderkaak",320,350]
[null,null,"Techniekkosten kunstgebit boven- en onderkaak",600,650]
[null,"P01, P02, P03, P04, P70 / Opvullen volledig kunstgebit","Techniekkosten opvullen kunstgebit",75,125]
[null,null,"Techniekkosten opvullen met weekblijvende basis"]
[null,"P07, P08 / Reparatie volledig kunstgebit","Techniekkosten reparatie volledig kunstgebit",35,150]
[]
[null,"Nza code en omschrijving","Omschrijving materiaal- en techniek","Prijsindicatie "]
[null,"III. Preventieve mondzorg",null,"Van","Tot"]
[null,"M61 / Mondbeschermer","Techniekkosten mondbeschermer",25,50]
[]
[null,"Nza code en omschrijving","Omschrijving materiaal- en techniek","Prijsindicatie "]
[null,"VII. Wortelkanaalbehandelingen",null,"Van","Tot"]
[null,"E97 / Uitwendig bleken per kaak","Kosten bleekhoes en materialen"]
[null,"E43 / Vastzetten element d.m.v. een spalk na ongeval","Techniekkosten spalk"]
[]
[]
[]
[null,"Nza code en omschrijving","Omschrijving materiaal- en techniek","Prijsindicatie "]
[null,"IX. Kaakgewrichtsbehandelingen",null,"Van","Tot"]
[null,"G69 / Opbeetplaat","Techniekkosten opbeetplaat",130,150]
[]
[null,"Nza code en omschrijving","Omschrijving materiaal- en techniek","Prijsindicatie "]
[null,"I. Consultatie en diagnostiek",null,"Van","Tot"]
[null,"C29 / Studiemodellen t.b.v. behandelplan","Techniekkosten gebitsmodel",25]
[null,null," techniekkosten gebitsmodel met opwas/try-inmal",200,250]
[null,"Nza code en omschrijving","Omschrijving materiaal- en techniek","Prijsindicatie "]
[null,"XIII. Implantaten",null,"Van","Tot"]
[null,"J50 / Volledig kunstgebit boven met onder klikgebit","Techniekkosten volledig klikgebit op 2 knoppen/magneten"]
[null,null,"Techniekkosten volledig klikgebit op 4 knoppen/magneten"]
[null,null,"Techniekkosten volledig klikgebit op 1 staaf"]
[null,null,"Techniekkosten volledig klikgebit op 2 staven"]
[null,null,"Techniekkosten volledig klikgebit op meer dan 2 staven"]
[null,"J51 / Onder klikgebit","Techniekkosten klikgebit onder op 2 knoppen/magneten"]
[null,null,"Techniekkosten klikgebit onder op 4 knoppen/magneten"]
[null,null,"Techniekkosten klikgebit onder op 1 staaf"]
[null,null,"Techniekkosten klikgebit onder op 2 staven"]
[null,null,"Techniekkosten klikgebit onder op meer dan 2 staven"]
[null,"J52 / Boven klikgebit","Techniekkosten klikgebit boven op 2 knoppen/magneten"]
[null,null,"Techniekkosten klikgebit boven op 4 knoppen/magneten"]
[null,null,"Techniekkosten klikgebit boven op 1 staaf"]
[null,null,"Techniekkosten klikgebit boven op 2 staven"]
[null,null,"Techniekkosten klikgebit boven op meer dan 2 staven"]
[]
[null,null,"klikgebit is op basis van begroting tandtechniek"]
[null,"NB: prijzen zijn gemiddelden ; aan deze lijst kunnen geen rechten worden ontleend"]

{"sheet":"Bron","index":2,"n_rows":594,"n_cols":8,"rows_kept":594,"cut":false,"hidden":false,"merged":[[0,5,0,6]]}
[null,null,"Code Nza","Omschrijving","Omschrijving materiaal- en techniek","Prijsindicatie ",null,"Nza code en omschrijving"]
[null,null,null,null,null,"Van","Tot"]
[{"$f":"IF(E3=\"\",1,\"\")","v":1},{"$f":"C3","v":"I. Consultatie en diagnostiek"},"I. Consultatie en diagnostiek"]
[{"$f":"IF(E4=\"\",1,\"\")","v":""},{"$f":"$B$3","v":"I. Consultatie en diagnostiek"},"C29","Studiemodellen t.b.v. behandelplan","Techniekkosten gebitsmodel",null,null,{"$f":"IF(D4=\"\",\"\",CONCATENATE(C4,\" / \",D4))","v":"C29 / Studiemodellen t.b.v. behandelplan"}]
[1,{"$f":"C5","v":"III. Preventieve mondzorg"},"III. Preventieve mondzorg",null,null,null,null,{"$f":"IF(D5=\"\",\"\",CONCATENATE(C5,\" / \",D5))","v":""}]
[{"$f":"IF(E6=\"\",1,\"\")","v":""},{"$f":"$B$5","v":"III. Preventieve mondzorg"},"M32","Eenvoudig bacteriologisch onderzoek","Laboratoriumkosten",null,null,{"$f":"IF(D6=\"\",\"\",CONCATENATE(C6,\" / \",D6))","v":"M32 / Eenvoudig bacteriologisch onderzoek"}]
["",{"$f":"$B$5","v":"III. Preventieve mondzorg"},null,null,"Materiaalkosten speekseltest",null,null,""]
["","III. Preventieve mondzorg","M61","Mondbeschermer","Techniekkosten mondbeschermer",null,null,"M61 / Mondbeschermer"]
[1,{"$f":"C9","v":"VI. Vullingen"},"VI. Vullingen",null,null,null,null,""]
["",{"$f":"$B$9","v":"VI. Vullingen"},"V70","Parapulpaire stift","Materiaalkosten parapulpaire stift",null,null,"V70 / Parapulpaire stift"]
["",{"$f":"$B$9","v":"VI. Vullingen"},"V80,V85","Wortelkanaalstift","Materiaalkosten wortelstift",null,null,"V80,V85 / Wortelkanaalstift"]
[1,{"$f":"C12","v":"VII. Wortelkanaalbehandelingen"},"VII. Wortelkanaalbehandelingen",null,null,null,null,{"$f":"IF(D12=\"\",\"\",CONCATENATE(C12,\" / \",D12))","v":""}]
["",{"$f":"$B$12","v":"VII. Wortelkanaalbehandelingen"},"E60","Geheel of gedeeltelijk weghalen van pulpaweefsel","Kosten biokeramisch materiaal (MTA)",null,null,{"$f":"IF(D13=\"\",\"\",CONCATENATE(C13,\" / \",D13))","v":"E60 / Geheel of gedeeltelijk weghalen van pulpaweefsel"}]
["",{"$f":"$B$12","v":"VII. Wortelkanaalbehandelingen"},"E63","Toeslag voor afsluiten met bijvoorbeeld MTA","Kosten biokeramisch materiaal (MTA)",null,null,"E63 / Toeslag voor afsluiten met bijvoorbeeld MTA"]
["","VII. Wortelkanaalbehandelingen","E97","Uitwendig bleken per kaak","Kosten bleekhoes en materialen",null,null,"E97 / Uitwendig bleken per kaak"]
["","VII. Wortelkanaalbehandelingen","E43","Vastzetten element d.m.v. een spalk na ongeval","Techniekkosten spalk",null,null,"E43 / Vastzetten element d.m.v. een spalk na ongeval"]
["","VII. Wortelkanaalbehandelingen","E34","Aanbrengen retrograde vulling","Materiaalkosten retrograde vulling",null,null,"E34 / Aanbrengen retrograde vulling"]
["","VII. Wortelkanaalbehandelingen","E36","Het trekken van een element met re-implantatie","Materiaalkosten bij re-implantatie element",null,null,{"$f":"IF(D18=\"\",\"\",CONCATENATE(C18,\" / \",D18))","v":"E36 / Het trekken van een element met re-implantatie"}]
[1,{"$f":"C19","v":"VIII. Kronen en bruggen"},"VIII. Kronen en bruggen",null,null,null,null,{"$f":"IF(D19=\"\",\"\",CONCATENATE(C19,\" / \",D19))","v":""}]
["",{"$f":"$B$19","v":"VIII. Kronen en bruggen"},"R08","Eenvlaks composiet inlay","Kosten composiet inlay",null,null,"R08 / Eenvlaks composiet inlay"]
["",{"$f":"$B$19","v":"VIII. Kronen en bruggen"},"R09","Tweevlaks composiet inlay","Kosten composiet inlay",null,null,"R09 / Tweevlaks composiet inlay"]
["","VIII. Kronen en bruggen","R10","Drievlaks composiet inlay","Kosten composiet inlay",null,null,"R10 / Drievlaks composiet inlay"]
["","VIII. Kronen en bruggen","R11","Eenvlaksinlay","Techniekkosten inlay keramisch materiaal",null,null,"R11 / Eenvlaksinlay"]
["","VIII. Kronen en bruggen",null,null,"Techniekkosten inlay edelmetaal",null,null,{"$f":"IF(D24=\"\",\"\",CONCATENATE(C24,\" / \",D24))","v":""}]
["","VIII. Kronen en bruggen","R12","Tweevlaksinlay","Techniekkosten inlay",null,null,"R12 / Tweevlaksinlay"]
["","VIII. Kronen en bruggen",null,null,"Techniekkosten inlay edelmetaal",null,null,""]
["","VIII. Kronen en bruggen","R13","Drievlaksinlay","Techniekkosten inlay",null,null,"R13 / Drievlaksinlay"]
["","VIII. Kronen en bruggen",null,null,"Techniekkosten inlay edelmetaal",null,null,""]
[{"$f":"IF(E29=\"\",1,\"\")","v":""},"VIII. Kronen en bruggen","R24","Kroon","Techniekkosten composiet kroon",null,null,{"$f":"IF(D29=\"\",\"\",CONCATENATE(C29,\" / \",D29))","v":"R24 / Kroon"}]
["","VIII. Kronen en bruggen",null,null,"Techniekkosten volledig keramische kroon",null,null,""]
["","VIII. Kronen en bruggen",null,null,"Techniekkosten keramisch/porselein kroon",null,null,""]
["","VIII. Kronen en bruggen",null,null,"Techniekkosten metaal/porselein kroon",null,null,{"$f":"IF(D32=\"\",\"\",CONCATENATE(C32,\" / \",D32))","v":""}]
["","VIII. Kronen en bruggen",null,null,"Techniekkosten goud/porselein kroon",null,null,""]
["","VIII. Kronen en bruggen",null,null,"Techniekkosten vol gouden kroon",null,null,""]
["","VIII. Kronen en bruggen",null,null,"Meerkosten verschroefbare kroon op implantaten",null,null,{"$f":"IF(D35=\"\",\"\",CONCATENATE(C35,\" / \",D35))","v":""}]
["","VIII. Kronen en bruggen",null,null,"Meerkosten gecementeerde kroon op implantaten",null,null,""]
["","VIII. Kronen en bruggen","J44","Plaatsen opbouw t.b.v. implantaatkroon","Materiaalkosten individueel abutment zirkonium",null,null,{"$f":"IF(D37=\"\",\"\",CONCATENATE(C37,\" / \",D37))","v":"J44 / Plaatsen opbouw t.b.v. implantaatkroon"}]
["","VIII. Kronen en bruggen",null,null,"Materiaalkosten individueel abutment titanium",null,null,{"$f":"IF(D38=\"\",\"\",CONCATENATE(C38,\" / \",D38))","v":""}]
["","VIII. Kronen en bruggen","R28","Endokroon","Techniekkosten endokroon",null,null,"R28 / Endokroon"]
["","VIII. Kronen en bruggen","R32","Gegoten opbouw, indirecte methode","Techniekkosten indirecte opbouw",null,null,"R32 / Gegoten opbouw, indirecte methode"]
["","VIII. Kronen en bruggen","R33","Gegoten opbouw, directe methode","Techniekkosten directe opbouw",null,null,"R33 / Gegoten opbouw, directe methode"]
["","VIII. Kronen en bruggen","R40, R45","Brugtussendelen","Techniekkosten brugtussendeel keramisch",null,null,"R40, R45 / Brugtussendelen"]
["","VIII. Kronen en bruggen",null,null,"Techniekkosten brugtussendeel metaal/porselein",null,null,""]
["","VIII. Kronen en bruggen",null,null,"Techniekkosten brugtussendeel goud/porselein",null,null,""]
["","VIII. Kronen en bruggen","R46","Brugverankering","Kosten brugverankering",null,null,{"$f":"IF(D45=\"\",\"\",CONCATENATE(C45,\" / \",D45))","v":"R46 / Brugverankering"}]
["","VIII. Kronen en bruggen","R50","Metalen fixatiekap met afdruk","Kosten metalen fixatiekap",null,null,"R50 / Metalen fixatiekap met afdruk"]
["","VIII. Kronen en bruggen","R55","Gipsslot met extra afdruk","Kosten gipsslot",null,null,"R55 / Gipsslot met extra afdruk"]
["","VIII. Kronen en bruggen","R60, R61","Plakbrug","Techniekkosten etsbrug",null,null,"R60, R61 / Plakbrug"]
["","VIII. Kronen en bruggen","R71","Vernieuwen porseleinen schildje","Techniekkosten keramische schildje",null,null,"R71 / Vernieuwen porseleinen schildje"]
["","VIII. Kronen en bruggen",null,null,"Techniekkosten porseleinen schildje",null,null,""]
["","VIII. Kronen en bruggen","R74","Opnieuw vastzetten niet plastische restauraties","Kosten opnieuw vastzetten restauratie",null,null,"R74 / Opnieuw vastzetten niet plastische restauraties"]
["","VIII. Kronen en bruggen","R78, R79","Schildje van keramiek of kunststof","Techniekkosten keramische schildje",null,null,{"$f":"IF(D52=\"\",\"\",CONCATENATE(C52,\" / \",D52))","v":"R78, R79 / Schildje van keramiek of kunststof"}]
["","VIII. Kronen en bruggen",null,null,"Techniekkosten porseleinen schildje",null,null,""]
["","VIII. Kronen en bruggen","R80, R85","Temporaire voorziening","Techniekkosten tijdelijke kroon",null,null,"R80, R85 / Temporaire voorziening"]
[1,{"$f":"C55","v":"IX. Kaakgewrichtsbehandelingen"},"IX. Kaakgewrichtsbehandelingen",null,null,null,null,""]
["",{"$f":"$B$55","v":"IX. Kaakgewrichtsbehandelingen"},"G62","Occlusale spalk","Techniekkosten occlusale spalk",null,null,"G62 / Occlusale spalk"]
["",{"$f":"$B$55","v":"IX. Kaakgewrichtsbehandelingen"},"G63","Repositiespalk","Techniekkosten repositiespalk",null,null,"G63 / Repositiespalk"]
["","IX. Kaakgewrichtsbehandelingen","G65","Indirect planmatig inslijpen","Techniekkosten planmatig inslijpen",null,null,"G65 / Indirect planmatig inslijpen"]
["","IX. Kaakgewrichtsbehandelingen","G33","Aanbrengen front/hoektandgeleiding","Techniekkosten front/hoektand geleiding",null,null,"G33 / Aanbrengen front/hoektandgeleiding"]
["","IX. Kaakgewrichtsbehandelingen","G69","Opbeetplaat","Techniekkosten opbeetplaat",null,null,{"$f":"IF(D60=\"\",\"\",CONCATENATE(C60,\" / \",D60))","v":"G69 / Opbeetplaat"}]
["","IX. Kaakgewrichtsbehandelingen","G71","Apparaat voor snurk en slaapstoornissen","Techniekkosten MRA beugel",null,null,"G71 / Apparaat voor snurk en slaapstoornissen"]
["","IX. Kaakgewrichtsbehandelingen","G73","Reparatie MRA","Kosten reparatie MRA beugel",null,null,"G73 / Reparatie MRA"]
[1,{"$f":"C63","v":"XI. Kunstgebitten"},"XI. Kunstgebitten",null,null,null,null,{"$f":"IF(D63=\"\",\"\",CONCATENATE(C63,\" / \",D63))","v":""}]
["",{"$f":"$B$63","v":"XI. Kunstgebitten"},"P10","Gedeeltelijk kunstgebit 1-4 elementen","Techniekkosten gedeeltelijk kunstgebit 1-4 elementen",null,null,"P10 / Gedeeltelijk kunstgebit 1-4 elementen"]
["",{"$f":"$B$63","v":"XI. Kunstgebitten"},"P15","Gedeeltelijk kunstgebit 5-13 elementen","Techniekkosten gedeeltelijk kunstgebit 5-13 elementen",null,null,"P15 / Gedeeltelijk kunstgebit 5-13 elementen"]
["","XI. Kunstgebitten","P34","Frame kunstgebit 1-4 elementen","Techniekkosten frame kunstgebit 1-4 elementen",null,null,"P34 / Frame kunstgebit 1-4 elementen"]
["","XI. Kunstgebitten","P35","Frame kunstgebit 5-13 elementen","Techniekkosten frame kunstgebit 5-13 elementen",null,null,"P35 / Frame kunstgebit 5-13 elementen"]
[{"$f":"IF(E68=\"\",1,\"\")","v":""},"XI. Kunstgebitten","P31","Wortelkap met stift","Techniek/materiaalkosten wortelkap met stift",null,null,"P31 / Wortelkap met stift"]
["","XI. Kunstgebitten","P45","Noodkunstgebit","Techniekkosten noodkunstgebit",null,null,"P45 / Noodkunstgebit"]
["","XI. Kunstgebitten","P21, P25, P30","Volledig kunstgebit","Techniekkosten kunstgebit bovenkaak",null,null,"P21, P25, P30 / Volledig kunstgebit"]
["","XI. Kunstgebitten",null,null,"Techniekkosten kunstgebit onderkaak",null,null,{"$f":"IF(D71=\"\",\"\",CONCATENATE(C71,\" / \",D71))","v":""}]
["","XI. Kunstgebitten",null,null,"Techniekkosten kunstgebit boven- en onderkaak",null,null,{"$f":"IF(D72=\"\",\"\",CONCATENATE(C72,\" / \",D72))","v":""}]
["","XI. Kunstgebitten","P01, P02, P03, P04, P70","Opvullen volledig kunstgebit","Techniekkosten opvullen kunstgebit",null,null,"P01, P02, P03, P04, P70 / Opvullen volledig kunstgebit"]
["","XI. Kunstgebitten",null,null,"Techniekkosten opvullen met weekblijvende basis",null,null,""]
["","XI. Kunstgebitten","P51, P52, P53, P54","Opvullen gedeeltelijk gebit","Techniekkosten opvullen gedeeltelijk gebit",null,null,"P51, P52, P53, P54 / Opvullen gedeeltelijk gebit"]
["","XI. Kunstgebitten",null,null,"Techniekkosten opvullen met weekblijvende basis",null,null,""]
["","XI. Kunstgebitten","P07, P08","Reparatie volledig kunstgebit","Techniekkosten reparatie volledig kunstgebit",null,null,"P07, P08 / Reparatie volledig kunstgebit"]
["","XI. Kunstgebitten","P57, P58","Reparatie gedeeltelijk kunstgebit","Techniekkosten reparatie gedeeltelijk kunstgebit",null,null,"P57, P58 / Reparatie gedeeltelijk kunstgebit"]
["","XI. Kunstgebitten","P78, P79","Uitbreiding gedeeltelijk kuntsgebit","Techniekkosten uitbreiding gedeeltelijk kunstgebit",null,null,"P78, P79 / Uitbreiding gedeeltelijk kuntsgebit"]
[1,{"$f":"C80","v":"XII. Tandvleesbehandelingen"},"XII. Tandvleesbehandelingen",null,null,null,null,""]
["",{"$f":"$B$80","v":"XII. Tandvleesbehandelingen"},"T84, T85","Aanbrengen regeneratiemateriaal","Materiaalkosten regeneratiemateriaal",null,null,"T84, T85 / Aanbrengen regeneratiemateriaal"]
["",{"$f":"$B$80","v":"XII. Tandvleesbehandelingen"},"T93","Bacteriologisch onderzoek"," Kosten bacteriologisch onderzoek",null,null,"T93 / Bacteriologisch onderzoek"]
["","XII. Tandvleesbehandelingen","T57","Toepassing lokaal medicament","Laboratoriumkosten bacteriologisch onderzoek",null,null,"T57 / Toepassing lokaal medicament"]
["","XII. Tandvleesbehandelingen","T95","(Draad)spalk","Techniekkosten spalk",null,null,"T95 / (Draad)spalk"]
[1,{"$f":"C85","v":"XIII. Implantaten"},"XIII. Implantaten",null,null,null,null,""]
["",{"$f":"$B$85","v":"XIII. Implantaten"},"J02","Verlengd onderzoek implantologie","Techniekkosten onderzoek implantologie",null,null,"J02 / Verlengd onderzoek implantologie"]
["",{"$f":"$B$85","v":"XIII. Implantaten"},"J03","Proefopstelling","Techniekkosten proefopstelling implantologie",null,null,"J03 / Proefopstelling"]
["","XIII. Implantaten","J08","Aanbrengen botvervangers","Materiaalkosten botvervangers",null,null,"J08 / Aanbrengen botvervangers"]
["","XIII. Implantaten","J09, J10","Ophoging bodem bijholte","Techniek/materiaalkosten ophoging bijholte",null,null,"J09, J10 / Ophoging bodem bijholte"]
["","XIII. Implantaten","J12, J13","Kaakverbreding en/of verhoging in front","Techniek/materiaalkosten kaakverbreding",null,null,"J12, J13 / Kaakverbreding en/of verhoging in front"]
["","XIII. Implantaten","J15, J16","Kaakverbreding en/of verhoging in front","Techniek/materiaalkosten kaakverbreding",null,null,"J15, J16 / Kaakverbreding en/of verhoging in front"]
["","XIII. Implantaten","J17","Aanvullende ophoging bodem","Techniek/materiaalkosten ophoging bijholte",null,null,"J17 / Aanvullende ophoging bodem"]
["","XIII. Implantaten","J18","Ophoging bijholte orthograad","Techniek/materiaalkosten ophoging bijholte",null,null,"J18 / Ophoging bijholte orthograad"]
["","XIII. Implantaten","J23, J24, J25","Plaatsen healing abutment","Materiaalkosten healing abutment",null,null,"J23, J24, J25 / Plaatsen healing abutment"]
["","XIII. Implantaten","J32","Verwijderen gefractureerd abutment","Materiaalkosten vervanging abutment",null,null,"J32 / Verwijderen gefractureerd abutment"]
["","XIII. Implantaten","J40, J41","Aanbrengen magneten/drukknoppen","Materiaalkosten magneet/drukknop per stuk",null,null,"J40, J41 / Aanbrengen magneten/drukknoppen"]
["","XIII. Implantaten",null,null,"Materiaalkosten abutment per stuk",null,null,""]
["","XIII. Implantaten","J42, 43","Staaf ten behoeve van implantaten","Materiaalkosten staaf per stuk",null,null,"J42, 43 / Staaf ten behoeve van implantaten"]
["","XIII. Implantaten","J50","Volledig kunstgebit boven met onder klikgebit","Techniekkosten volledig klikgebit op 2 knoppen/magneten",null,null,"J50 / Volledig kunstgebit boven met onder klikgebit"]
["","XIII. Implantaten",null,null,"Techniekkosten volledig klikgebit op 4 knoppen/magneten",null,null,""]
["","XIII. Implantaten",null,null,"Techniekkosten volledig klikgebit op 1 staaf",null,null,""]
["","XIII. Implantaten",null,null,"Techniekkosten volledig klikgebit op 2 staven",null,null,""]
["","XIII. Implantaten",null,null,"Techniekkosten volledig klikgebit op meer dan 2 staven",null,null,""]
["","XIII. Implantaten","J51","Onder klikgebit","Techniekkosten klikgebit onder op 2 knoppen/magneten",null,null,"J51 / Onder klikgebit"]
["","XIII. Implantaten",null,null,"Techniekkosten klikgebit onder op 4 knoppen/magneten",null,null,""]
["","XIII. Implantaten",null,null,"Techniekkosten klikgebit onder op 1 staaf",null,null,""]
["","XIII. Implantaten",null,null,"Techniekkosten klikgebit onder op 2 staven",null,null,""]
["","XIII. Implantaten",null,null,"Techniekkosten klikgebit onder op meer dan 2 staven",null,null,""]
["","XIII. Implantaten","J52","Boven klikgebit","Techniekkosten klikgebit boven op 2 knoppen/magneten",null,null,"J52 / Boven klikgebit"]
["","XIII. Implantaten",null,null,"Techniekkosten klikgebit boven op 4 knoppen/magneten",null,null,""]
["","XIII. Implantaten",null,null,"Techniekkosten klikgebit boven op 1 staaf",null,null,""]
["","XIII. Implantaten",null,null,"Techniekkosten klikgebit boven op 2 staven",null,null,""]
["","XIII. Implantaten",null,null,"Techniekkosten klikgebit boven op meer dan 2 staven",null,null,""]
["","XIII. Implantaten","J53","Omvorming klikgebit","Techniekkosten omvorming naar klikgebit op knoppen",null,null,"J53 / Omvorming klikgebit"]
["","XIII. Implantaten","J54","Omvorming klikgebit op 1 staaf","Techniekkosten omvorming klikgebit op 1 staaf",null,null,"J54 / Omvorming klikgebit op 1 staaf"]
["","XIII. Implantaten","J55","Omvorming klikgebit op staven bij drie / vier implantaten","Techniekkosten omvorming klikgebit op 3-4 knoppen",null,null,"J55 / Omvorming klikgebit op staven bij drie / vier implantaten"]
["","XIII. Implantaten",null,null,"Techniekkosten omvorming klikgebit op 2 staven",null,null,""]
["","XIII. Implantaten","J56","Omvorming klikgebit op staven bij vijf / zes implantaten","Techniekkosten omvorming klikgebit op meer dan 2 staven",null,null,"J56 / Omvorming klikgebit op staven bij vijf / zes implantaten"]
["","XIII. Implantaten","J70","Opvullen zonder staafdemontage","Techniekkosten opvullen klikgebit op drukknoppen",null,null,"J70 / Opvullen zonder staafdemontage"]
["","XIII. Implantaten","J71","Opvullen met staafdemontage op twee implantaten","Techniekkosten opvullen klikgebit op 1 staaf",null,null,"J71 / Opvullen met staafdemontage op twee implantaten"]
["","XIII. Implantaten","J72","Opvullen staafdemontage op twee staven","Techniekkosten opvullen klikgebit op 2 staven",null,null,"J72 / Opvullen staafdemontage op twee staven"]
["","XIII. Implantaten","J73","Opvullen met staafdemontage op meer dan twee staven","Techniekkosten opvullen klikgebit op meer dan 2 staven ",null,null,"J73 / Opvullen met staafdemontage op meer dan twee staven"]
["","XIII. Implantaten","J74","Reparatie zonder staafdemontage","Techniekkosten reparatie klikgebit op drukknoppen",null,null,"J74 / Reparatie zonder staafdemontage"]
["","XIII. Implantaten","J75","Reparatie met staafdemontage ","Techniekkosten reparatie klikgebit op 1 staaf",null,null,"J75 / Reparatie met staafdemontage "]
["","XIII. Implantaten","J76","Reparatie met staafdemontage","Techniekkosten reparatie klikgebit op 2 staven",null,null,"J76 / Reparatie met staafdemontage"]
["","XIII. Implantaten","J77","Reparatie met staafdemontage","Techniekkosten reparatie klikgebit op meer dan 2 staven",null,null,"J77 / Reparatie met staafdemontage"]
[1,{"$f":"C127","v":"XVI. Orthodontie"},"XVI. Orthodontie",null,null,null,null,""]
["",{"$f":"$B$127","v":"XVI. Orthodontie"},"F125","Maken gebitsmodellen","Techniekkosten gebitsmodellen",null,null,"F125 / Maken gebitsmodellen"]
["",{"$f":"$B$127","v":"XVI. Orthodontie"},"F131B","Vervaardigen diagnostische setup","Techniekkosten diagnostische setup",null,null,"F131B / Vervaardigen diagnostische setup"]
["","XVI. Orthodontie","F132B","Extra gebitsmodellen tbv evaluatie","Techniekkosten gebitsmodellen",null,null,"F132B / Extra gebitsmodellen tbv evaluatie"]
["","XVI. Orthodontie","F401","Plaatsen beugel categorie 0","Kosten myofunctionele apparatuur",null,null,"F401 / Plaatsen beugel categorie 0"]
[{"$f":"IF(E132=\"\",1,\"\")","v":""},"XVI. Orthodontie","F411","Plaatsen beugel categorie 1","Techniekkosten plaatapparatuur",null,null,"F411 / Plaatsen beugel categorie 1"]
["","XVI. Orthodontie","F421","Plaatsen beugel categorie 2","Techniekkosten headgear",null,null,"F421 / Plaatsen beugel categorie 2"]
["","XVI. Orthodontie",null,null,"Techniekkosten palatinale bar",null,null,""]
["","XVI. Orthodontie",null,null,"Techniekkosten linguale boog",null,null,""]
["","XVI. Orthodontie","F431","Plaatsen beugel categorie 3","Techniekkosten blokbeugel (activator)",null,null,{"$f":"IF(D136=\"\",\"\",CONCATENATE(C136,\" / \",D136))","v":"F431 / Plaatsen beugel categorie 3"}]
["","XVI. Orthodontie","F441","Plaatsen beugel categorie 4","Techniekkosten vastzittende kaakcorrectie apparatuur ",null,null,"F441 / Plaatsen beugel categorie 4"]
["","XVI. Orthodontie",null,null,"Materiaalkosten beugel categorie 4",null,null,""]
["","XVI. Orthodontie","F451","Plaatsen beugel categorie 5","Materiaalkosten brackets en bogen",null,null,"F451 / Plaatsen beugel categorie 5"]
["","XVI. Orthodontie","F461","Plaatsen beugel categorie 6","Materiaalkosten brackets en bogen",null,null,"F461 / Plaatsen beugel categorie 6"]
["","XVI. Orthodontie","F471","Plaatsen beugel categorie 7","Kosten vacuümgevormde apparatuur",null,null,"F471 / Plaatsen beugel categorie 7"]
["","XVI. Orthodontie","F481","Plaatsen beugel categorie 8","Materiaalkosten brackets en bogen",null,null,"F481 / Plaatsen beugel categorie 8"]
["","XVI. Orthodontie","F491","Plaatsen beugel categorie 9","Materiaalkosten brackets en bogen",null,null,"F491 / Plaatsen beugel categorie 9"]
["","XVI. Orthodontie","F611","Elektronische chip in uitneembare apparatuur","Extra kosten chip",null,null,"F611 / Elektronische chip in uitneembare apparatuur"]
["","XVI. Orthodontie","F612","Plaatsem intermaxillaire correctieveren","Kosten intermaxillaire correctieveren",null,null,"F612 / Plaatsem intermaxillaire correctieveren"]
["","XVI. Orthodontie","F716","Mondbeschermer","Techniekkosten mondbeschermer",null,null,"F716 / Mondbeschermer"]
[{"$f":"IF(E147=\"\",1,\"\")","v":""},"XVI. Orthodontie","F723","Plaatsen micro-implantaat","Materiaalkosten micro-implantaat",null,null,{"$f":"IF(D147=\"\",\"\",CONCATENATE(C147,\" / \",D147))","v":"F723 / Plaatsen micro-implantaat"}]
[{"$f":"IF(E148=\"\",1,\"\")","v":""},"XVI. Orthodontie","F811","Reparatie of vervanging beugel","Kosten reparatie of vervangen beugel",null,null,"F811 / Reparatie of vervanging beugel"]
["","XVI. Orthodontie","F812","Herstel en plaatsen van retentie apparatuur","Techniekkosten retentie apparatuur",null,null,"F812 / Herstel en plaatsen van retentie apparatuur"]
["","XVI. Orthodontie","F813, F814","Plaatsen extra retentiebeugel, per kaak","Techniekkosten retentie apparatuur",null,null,"F813, F814 / Plaatsen extra retentiebeugel, per kaak"]
[1,null,null,null,null,null,null,""]
[{"$f":"IF(E152=\"\",1,\"\")","v":1},null,null,null,null,null,null,{"$f":"IF(D152=\"\",\"\",CONCATENATE(C152,\" / \",D152))","v":""}]
[1,null,null,null,null,null,null,""]
[1,null,null,null,null,null,null,""]
[1,null,null,null,null,null,null,""]
[1,null,null,null,null,null,null,""]
[1,null,null,null,null,null,null,""]
[1,null,null,null,null,null,null,""]
[1]
[1]
[1,null,null,null,null,null,null,""]
[1,null,null,null,null,null,null,""]
[1,null,null,null,null,null,null,""]
[1,null,null,null,null,null,null,""]
[1,null,null,null,null,null,null,""]
[1,null,null,null,null,null,null,""]
[1,null,null,null,null,null,null,""]
[1,null,null,null,null,null,null,""]
[1,null,null,null,null,null,null,""]
[1,null,null,null,null,null,null,""]
[1,null,null,null,null,null,null,""]
[1,null,null,null,null,null,null,""]
[1,null,null,null,null,null,null,""]
[1,null,null,null,null,null,null,""]
[1,null,null,null,null,null,null,""]
[1,null,null,null,null,null,null,""]
[1,null,null,null,null,null,null,""]
[1,null,null,null,null,null,null,""]
[1,null,null,null,null,null,null,""]
[1,null,null,null,null,null,null,""]
[1,null,null,null,null,null,null,""]
[1,null,null,null,null,null,null,""]
[1,null,null,null,null,null,null,""]
[1,null,null,null,null,null,null,""]
[1,null,null,null,null,null,null,""]
[1,null,null,null,null,null,null,""]
[1,null,null,null,null,null,null,""]
[1,null,null,null,null,null,null,""]
[1,null,null,null,null,null,null,""]
[1,null,null,null,null,null,null,""]
[1,null,null,null,null,null,null,""]
[1,null,null,null,null,null,null,""]
[1,null,null,null,null,null,null,""]
[1,null,null,null,null,null,null,""]
[1,null,null,null,null,null,null,""]
[1,null,null,null,null,null,null,""]
[{"$f":"IF(E197=\"\",1,\"\")","v":1},null,null,null,null,null,null,""]
[1,null,null,null,null,null,null,""]
[1,null,null,null,null,null,null,""]
[1,null,null,null,null,null,null,""]
[1,null,null,null,null,null,null,{"$f":"IF(D201=\"\",\"\",CONCATENATE(C201,\" / \",D201))","v":""}]
[1,null,null,null,null,null,null,""]
[1,null,null,null,null,null,null,""]
[1,null,null,null,null,null,null,""]
[1,null,null,null,null,null,null,""]
[1,null,null,null,null,null,null,""]
[1,null,null,null,null,null,null,""]
[1,null,null,null,null,null,null,""]
[1,null,null,null,null,null,null,""]
[1,null,null,null,null,null,null,""]
[1,null,null,null,null,null,null,""]
[1,null,null,null,null,null,null,""]
[1,null,null,null,null,null,null,""]
[1,null,null,null,null,null,null,""]
[1,null,null,null,null,null,null,""]
[1,null,null,null,null,null,null,""]
[1,null,null,null,null,null,null,""]
[1,null,null,null,null,null,null,""]
[1,null,null,null,null,null,null,""]
[1,null,null,null,null,null,null,""]
[1,null,null,null,null,null,null,""]
[1,null,null,null,null,null,null,""]
[1,null,null,null,null,null,null,""]
[1,null,null,null,null,null,null,""]
[1,null,null,null,null,null,null,""]
[1,null,null,null,null,null,null,""]
[1,null,null,null,null,null,null,""]
[1,null,null,null,null,null,null,""]
[1,null,null,null,null,null,null,""]
[1,null,null,null,null,null,null,""]
[1,null,null,null,null,null,null,""]
[1,null,null,null,null,null,null,""]
[1,null,null,null,null,null,null,""]
[1,null,null,null,null,null,null,""]
[1,null,null,null,null,null,null,""]
[1,null,null,null,null,null,null,""]
[1,null,null,null,null,null,null,""]
[1,null,null,null,null,null,null,""]
[1,null,null,null,null,null,null,""]
[1,null,null,null,null,null,null,""]
[1,null,null,null,null,null,null,""]
[1,null,null,null,null,null,null,""]
[1,null,null,null,null,null,null,""]
[1,null,null,null,null,null,null,""]
[1,null,null,null,null,null,null,""]
[1,null,null,null,null,null,null,""]
[1,null,null,null,null,null,null,""]
[1,null,null,null,null,null,null,""]
[1,null,null,null,null,null,null,""]
[1,null,null,null,null,null,null,""]
[1,null,null,null,null,null,null,""]
[1,null,null,null,null,null,null,""]
[1,null,null,null,null,null,null,""]
[1,null,null,null,null,null,null,""]
[1,null,null,null,null,null,null,""]
[1,null,null,null,null,null,null,""]
[1,null,null,null,null,null,null,""]
[1,null,null,null,null,null,null,""]
[1,null,null,null,null,null,null,""]
[1,null,null,null,null,null,null,""]
[{"$f":"IF(E261=\"\",1,\"\")","v":1},null,null,null,null,null,null,""]
[1,null,null,null,null,null,null,""]
[1,null,null,null,null,null,null,""]
[1,null,null,null,null,null,null,""]
[1,null,null,null,null,null,null,{"$f":"IF(D265=\"\",\"\",CONCATENATE(C265,\" / \",D265))","v":""}]
[1,null,null,null,null,null,null,""]
[1,null,null,null,null,null,null,""]
[1,null,null,null,null,null,null,""]
[1,null,null,null,null,null,null,""]
[1,null,null,null,null,null,null,""]
[1,null,null,null,null,null,null,""]
[1,null,null,null,null,null,null,""]
[1,null,null,null,null,null,null,""]
[1,null,null,null,null,null,null,""]
[1,null,null,null,null,null,null,""]
[1,null,null,null,null,null,null,""]
[1,null,null,null,null,null,null,""]
[1,null,null,null,null,null,null,""]
[1,null,null,null,null,null,null,""]
[1,null,null,null,null,null,null,""]
[1,null,null,null,null,null,null,""]
[1,null,null,null,null,null,null,""]
[1,null,null,null,null,null,null,""]
[1,null,null,null,null,null,null,""]
[1,null,null,null,null,null,null,""]
[1,null,null,null,null,null,null,""]
[1,null,null,null,null,null,null,""]
[1,null,null,null,null,null,null,""]
[1,null,null,null,null,null,null,""]
[1,null,null,null,null,null,null,""]
[1,null,null,null,null,null,null,""]
[1,null,null,null,null,null,null,""]
[1,null,null,null,null,null,null,""]
[1,null,null,null,null,null,null,""]
[1,null,null,null,null,null,null,""]
[1,null,null,null,null,null,null,""]
[1,null,null,null,null,null,null,""]
[1,null,null,null,null,null,null,""]
[1,null,null,null,null,null,null,""]
[1,null,null,null,null,null,null,""]
[1,null,null,null,null,null,null,""]
[1,null,null,null,null,null,null,""]
[1,null,null,null,null,null,null,""]
[1,null,null,null,null,null,null,""]
[1,null,null,null,null,null,null,""]
[1,null,null,null,null,null,null,""]
[1,null,null,null,null,null,null,""]
[1,null,null,null,null,null,null,""]
[1,null,null,null,null,null,null,""]
[1,null,null,null,null,null,null,""]
[1,null,null,null,null,null,null,""]
[1,null,null,null,null,null,null,""]
[1,null,null,null,null,null,null,""]
[1,null,null,null,null,null,null,""]
[1,null,null,null,null,null,null,""]
[1,null,null,null,null,null,null,""]
[1,null,null,null,null,null,null,""]
[1,null,null,null,null,null,null,""]
[1,null,null,null,null,null,null,""]
[1,null,null,null,null,null,null,""]
[1,null,null,null,null,null,null,""]
[1,null,null,null,null,null,null,""]
[1,null,null,null,null,null,null,""]
[1,null,null,null,null,null,null,""]
[{"$f":"IF(E325=\"\",1,\"\")","v":1},null,null,null,null,null,null,""]
[1,null,null,null,null,null,null,""]
[1,null,null,null,null,null,null,""]
[1,null,null,null,null,null,null,""]
[1,null,null,null,null,null,null,{"$f":"IF(D329=\"\",\"\",CONCATENATE(C329,\" / \",D329))","v":""}]
[1,null,null,null,null,null,null,""]
[1,null,null,null,null,null,null,""]
[1,null,null,null,null,null,null,""]
[1,null,null,null,null,null,null,""]
[1,null,null,null,null,null,null,""]
[1,null,null,null,null,null,null,""]
[1,null,null,null,null,null,null,""]
[1,null,null,null,null,null,null,""]
[1,null,null,null,null,null,null,""]
[1,null,null,null,null,null,null,""]
[1,null,null,null,null,null,null,""]
[1,null,null,null,null,null,null,""]
[1,null,null,null,null,null,null,""]
[1,null,null,null,null,null,null,""]
[1,null,null,null,null,null,null,""]
[1,null,null,null,null,null,null,""]
[1,null,null,null,null,null,null,""]
[1,null,null,null,null,null,null,""]
[1,null,null,null,null,null,null,""]
[1,null,null,null,null,null,null,""]
[1,null,null,null,null,null,null,""]
[1,null,null,null,null,null,null,""]
[1,null,null,null,null,null,null,""]
[1,null,null,null,null,null,null,""]
[1,null,null,null,null,null,null,""]
[1,null,null,null,null,null,null,""]
[1,null,null,null,null,null,null,""]
[1,null,null,null,null,null,null,""]
[1,null,null,null,null,null,null,""]
[1,null,null,null,null,null,null,""]
[1,null,null,null,null,null,null,""]
[1,null,null,null,null,null,null,""]
[1,null,null,null,null,null,null,""]
[1,null,null,null,null,null,null,""]
[1,null,null,null,null,null,null,""]
[1,null,null,null,null,null,null,""]
[1,null,null,null,null,null,null,""]
[1,null,null,null,null,null,null,""]
[1,null,null,null,null,null,null,""]
[1,null,null,null,null,null,null,""]
[1,null,null,null,null,null,null,""]
[1,null,null,null,null,null,null,""]
[1,null,null,null,null,null,null,""]
[1,null,null,null,null,null,null,""]
[1,null,null,null,null,null,null,""]
[1,null,null,null,null,null,null,""]
[1,null,null,null,null,null,null,""]
[1,null,null,null,null,null,null,""]
[1,null,null,null,null,null,null,""]
[1,null,null,null,null,null,null,""]
[1,null,null,null,null,null,null,""]
[1,null,null,null,null,null,null,""]
[1,null,null,null,null,null,null,""]
[1,null,null,null,null,null,null,""]
[1,null,null,null,null,null,null,""]
[1,null,null,null,null,null,null,""]
[1,null,null,null,null,null,null,""]
[1,null,null,null,null,null,null,""]
[1,null,null,null,null,null,null,""]
[{"$f":"IF(E389=\"\",1,\"\")","v":1},null,null,null,null,null,null,""]
[1,null,null,null,null,null,null,""]
[1,null,null,null,null,null,null,""]
[1,null,null,null,null,null,null,""]
[1,null,null,null,null,null,null,{"$f":"IF(D393=\"\",\"\",CONCATENATE(C393,\" / \",D393))","v":""}]
[1,null,null,null,null,null,null,""]
[1,null,null,null,null,null,null,""]
[1,null,null,null,null,null,null,""]
[1,null,null,null,null,null,null,""]
[1,null,null,null,null,null,null,""]
[1,null,null,null,null,null,null,""]
[1,null,null,null,null,null,null,""]
[1,null,null,null,null,null,null,""]
[1,null,null,null,null,null,null,""]
[1,null,null,null,null,null,null,""]
[1,null,null,null,null,null,null,""]
[1,null,null,null,null,null,null,""]
[1,null,null,null,null,null,null,""]
[1,null,null,null,null,null,null,""]
[1,null,null,null,null,null,null,""]
[1,null,null,null,null,null,null,""]
[1,null,null,null,null,null,null,""]
[1,null,null,null,null,null,null,""]
[1,null,null,null,null,null,null,""]
[1,null,null,null,null,null,null,""]
[1,null,null,null,null,null,null,""]
[1,null,null,null,null,null,null,""]
[1,null,null,null,null,null,null,""]
[1,null,null,null,null,null,null,""]
[1,null,null,null,null,null,null,""]
[1,null,null,null,null,null,null,""]
[1,null,null,null,null,null,null,""]
[1,null,null,null,null,null,null,""]
[1,null,null,null,null,null,null,""]
[1,null,null,null,null,null,null,""]
[1,null,null,null,null,null,null,""]
[1,null,null,null,null,null,null,""]
[1,null,null,null,null,null,null,""]
[1,null,null,null,null,null,null,""]
[1,null,null,null,null,null,null,""]
[1,null,null,null,null,null,null,""]
[1,null,null,null,null,null,null,""]
[1,null,null,null,null,null,null,""]
[1,null,null,null,null,null,null,""]
[1,null,null,null,null,null,null,""]
[1,null,null,null,null,null,null,""]
[1,null,null,null,null,null,null,""]
[1,null,null,null,null,null,null,""]
[1,null,null,null,null,null,null,""]
[1,null,null,null,null,null,null,""]
[1,null,null,null,null,null,null,""]
[1,null,null,null,null,null,null,""]
[1,null,null,null,null,null,null,""]
[1,null,null,null,null,null,null,""]
[1,null,null,null,null,null,null,""]
[1,null,null,null,null,null,null,""]
[1,null,null,null,null,null,null,""]
[1,null,null,null,null,null,null,""]
[1,null,null,null,null,null,null,""]
[1,null,null,null,null,null,null,""]
[1,null,null,null,null,null,null,""]
[1,null,null,null,null,null,null,""]
[1,null,null,null,null,null,null,""]
[1,null,null,null,null,null,null,""]
[{"$f":"IF(E453=\"\",1,\"\")","v":1},null,null,null,null,null,null,""]
[1,null,null,null,null,null,null,""]
[1,null,null,null,null,null,null,""]
[1,null,null,null,null,null,null,""]
[1,null,null,null,null,null,null,{"$f":"IF(D457=\"\",\"\",CONCATENATE(C457,\" / \",D457))","v":""}]
[1,null,null,null,null,null,null,""]
[1,null,null,null,null,null,null,""]
[1,null,null,null,null,null,null,""]
[1,null,null,null,null,null,null,""]
[1,null,null,null,null,null,null,""]
[1,null,null,null,null,null,null,""]
[1,null,null,null,null,null,null,""]
[1,null,null,null,null,null,null,""]
[1,null,null,null,null,null,null,""]
[1,null,null,null,null,null,null,""]
[1,null,null,null,null,null,null,""]
[1,null,null,null,null,null,null,""]
[1,null,null,null,null,null,null,""]
[1,null,null,null,null,null,null,""]
[1,null,null,null,null,null,null,""]
[1,null,null,null,null,null,null,""]
[1,null,null,null,null,null,null,""]
[1,null,null,null,null,null,null,""]
[1,null,null,null,null,null,null,""]
[1,null,null,null,null,null,null,""]
[1,null,null,null,null,null,null,""]
[1,null,null,null,null,null,null,""]
[1,null,null,null,null,null,null,""]
[1,null,null,null,null,null,null,""]
[1,null,null,null,null,null,null,""]
[1,null,null,null,null,null,null,""]
[1,null,null,null,null,null,null,""]
[1,null,null,null,null,null,null,""]
[1,null,null,null,null,null,null,""]
[1,null,null,null,null,null,null,""]
[1,null,null,null,null,null,null,""]
[1,null,null,null,null,null,null,""]
[1,null,null,null,null,null,null,""]
[1,null,null,null,null,null,null,""]
[1,null,null,null,null,null,null,""]
[1,null,null,null,null,null,null,""]
[1,null,null,null,null,null,null,""]
[1,null,null,null,null,null,null,""]
[1,null,null,null,null,null,null,""]
[1,null,null,null,null,null,null,""]
[1,null,null,null,null,null,null,""]
[1,null,null,null,null,null,null,""]
[1,null,null,null,null,null,null,""]
[1,null,null,null,null,null,null,""]
[null,null,null,null,null,null,null,""]
[null,null,null,null,null,null,null,""]
[null,null,null,null,null,null,null,""]
[null,null,null,null,null,null,null,""]
[null,null,null,null,null,null,null,""]
[null,null,null,null,null,null,null,""]
[null,null,null,null,null,null,null,""]
[null,null,null,null,null,null,null,""]
[null,null,null,null,null,null,null,""]
[null,null,null,null,null,null,null,""]
[null,null,null,null,null,null,null,""]
[null,null,null,null,null,null,null,""]
[null,null,null,null,null,null,null,""]
[null,null,null,null,null,null,null,""]
[null,null,null,null,null,null,null,""]
[null,null,null,null,null,null,null,""]
[null,null,null,null,null,null,null,""]
[null,null,null,null,null,null,null,""]
[null,null,null,null,null,null,null,""]
[null,null,null,null,null,null,null,{"$f":"IF(D521=\"\",\"\",CONCATENATE(C521,\" / \",D521))","v":""}]
[null,null,null,null,null,null,null,""]
[null,null,null,null,null,null,null,""]
[null,null,null,null,null,null,null,""]
[null,null,null,null,null,null,null,""]
[null,null,null,null,null,null,null,""]
[null,null,null,null,null,null,null,""]
[null,null,null,null,null,null,null,""]
[null,null,null,null,null,null,null,""]
[null,null,null,null,null,null,null,""]
[null,null,null,null,null,null,null,""]
[null,null,null,null,null,null,null,""]
[null,null,null,null,null,null,null,""]
[null,null,null,null,null,null,null,""]
[null,null,null,null,null,null,null,""]
[null,null,null,null,null,null,null,""]
[null,null,null,null,null,null,null,""]
[null,null,null,null,null,null,null,""]
[null,null,null,null,null,null,null,""]
[null,null,null,null,null,null,null,""]
[null,null,null,null,null,null,null,""]
[null,null,null,null,null,null,null,""]
[null,null,null,null,null,null,null,""]
[null,null,null,null,null,null,null,""]
[null,null,null,null,null,null,null,""]
[null,null,null,null,null,null,null,""]
[null,null,null,null,null,null,null,""]
[null,null,null,null,null,null,null,""]
[null,null,null,null,null,null,null,""]
[null,null,null,null,null,null,null,""]
[null,null,null,null,null,null,null,""]
[null,null,null,null,null,null,null,""]
[null,null,null,null,null,null,null,""]
[null,null,null,null,null,null,null,""]
[null,null,null,null,null,null,null,""]
[null,null,null,null,null,null,null,""]
[null,null,null,null,null,null,null,""]
[null,null,null,null,null,null,null,""]
[null,null,null,null,null,null,null,""]
[null,null,null,null,null,null,null,""]
[null,null,null,null,null,null,null,""]
[null,null,null,null,null,null,null,""]
[null,null,null,null,null,null,null,""]
[null,null,null,null,null,null,null,""]
[null,null,null,null,null,null,null,""]
[null,null,null,null,null,null,null,""]
[null,null,null,null,null,null,null,""]
[null,null,null,null,null,null,null,""]
[null,null,null,null,null,null,null,""]
[null,null,null,null,null,null,null,""]
[null,null,null,null,null,null,null,""]
[null,null,null,null,null,null,null,""]
[null,null,null,null,null,null,null,""]
[null,null,null,null,null,null,null,""]
[null,null,null,null,null,null,null,""]
[null,null,null,null,null,null,null,""]
[null,null,null,null,null,null,null,""]
[null,null,null,null,null,null,null,""]
[null,null,null,null,null,null,null,""]
[null,null,null,null,null,null,null,""]
[null,null,null,null,null,null,null,""]
[null,null,null,null,null,null,null,""]
[null,null,null,null,null,null,null,""]
[null,null,null,null,null,null,null,""]
[null,null,null,null,null,null,null,{"$f":"IF(D585=\"\",\"\",CONCATENATE(C585,\" / \",D585))","v":""}]
[null,null,null,null,null,null,null,""]
[null,null,null,null,null,null,null,""]
[null,null,null,null,null,null,null,""]
[null,null,null,null,null,null,null,""]
[null,null,null,null,null,null,null,""]
[null,null,null,null,null,null,null,""]
[null,null,null,null,null,null,null,""]
[null,null,null,null,null,null,null,""]
[null,null,null,null,null,null,null,""]

{"sheet":"Validatie","index":3,"n_rows":28,"n_cols":15,"rows_kept":28,"cut":false,"hidden":false,"merged":[]}
["I. Consultatie en diagnostiek","III. Preventieve mondzorg","VI. Vullingen","VII. Wortelkanaalbehandelingen","VIII. Kronen en bruggen","IX. Kaakgewrichtsbehandelingen","XI. Kunstgebitten","XII. Tandvleesbehandelingen","XIII. Implantaten","XVI. Orthodontie",null,null,null,"Button lijst maken (aan = 1, uit = 0)","Praktijknaam"]
["C29 / Studiemodellen t.b.v. behandelplan","M32 / Eenvoudig bacteriologisch onderzoek","V70 / Parapulpaire stift","E60 / Geheel of gedeeltelijk weghalen van pulpaweefsel","R08 / Eenvlaks composiet inlay","G62 / Occlusale spalk","P10 / Gedeeltelijk kunstgebit 1-4 elementen","T84, T85 / Aanbrengen regeneratiemateriaal","J02 / Verlengd onderzoek implantologie","F125 / Maken gebitsmodellen",null,null,null,0]
[null,"M61 / Mondbeschermer","V80,V85 / Wortelkanaalstift","E63 / Toeslag voor afsluiten met bijvoorbeeld MTA","R09 / Tweevlaks composiet inlay","G63 / Repositiespalk","P15 / Gedeeltelijk kunstgebit 5-13 elementen","T93 / Bacteriologisch onderzoek","J03 / Proefopstelling","F131B / Vervaardigen diagnostische setup"]
[null,null,null,"E97 / Uitwendig bleken per kaak","R10 / Drievlaks composiet inlay","G65 / Indirect planmatig inslijpen","P34 / Frame kunstgebit 1-4 elementen","T57 / Toepassing lokaal medicament","J08 / Aanbrengen botvervangers","F132B / Extra gebitsmodellen tbv evaluatie"]
[null,null,null,"E43 / Vastzetten element d.m.v. een spalk na ongeval","R11 / Eenvlaksinlay","G33 / Aanbrengen front/hoektandgeleiding","P35 / Frame kunstgebit 5-13 elementen","T95 / (Draad)spalk","J09, J10 / Ophoging bodem bijholte","F401 / Plaatsen beugel categorie 0"]
[null,null,null,"E34 / Aanbrengen retrograde vulling","R12 / Tweevlaksinlay","G69 / Opbeetplaat","P31 / Wortelkap met stift",null,"J12, J13 / Kaakverbreding en/of verhoging in front","F411 / Plaatsen beugel categorie 1"]
[null,null,null,"E36 / Het trekken van een element met re-implantatie","R13 / Drievlaksinlay","G71 / Apparaat voor snurk en slaapstoornissen","P45 / Noodkunstgebit",null,"J15, J16 / Kaakverbreding en/of verhoging in front","F421 / Plaatsen beugel categorie 2"]
[null,null,null,null,"R24 / Kroon","G73 / Reparatie MRA","P21, P25, P30 / Volledig kunstgebit",null,"J17 / Aanvullende ophoging bodem","F431 / Plaatsen beugel categorie 3"]
[null,null,null,null,"J44 / Plaatsen opbouw t.b.v. implantaatkroon",null,"P01, P02, P03, P04, P70 / Opvullen volledig kunstgebit",null,"J18 / Ophoging bijholte orthograad","F441 / Plaatsen beugel categorie 4"]
[null,null,null,null,"R28 / Endokroon",null,"P51, P52, P53, P54 / Opvullen gedeeltelijk gebit",null,"J23, J24, J25 / Plaatsen healing abutment","F451 / Plaatsen beugel categorie 5"]
[null,null,null,null,"R32 / Gegoten opbouw, indirecte methode",null,"P07, P08 / Reparatie volledig kunstgebit",null,"J32 / Verwijderen gefractureerd abutment","F461 / Plaatsen beugel categorie 6"]
[null,null,null,null,"R33 / Gegoten opbouw, directe methode",null,"P57, P58 / Reparatie gedeeltelijk kunstgebit",null,"J40, J41 / Aanbrengen magneten/drukknoppen","F471 / Plaatsen beugel categorie 7"]
[null,null,null,null,"R40, R45 / Brugtussendelen",null,"P78, P79 / Uitbreiding gedeeltelijk kuntsgebit",null,"J42, 43 / Staaf ten behoeve van implantaten","F481 / Plaatsen beugel categorie 8"]
[null,null,null,null,"R46 / Brugverankering",null,null,null,"J50 / Volledig kunstgebit boven met onder klikgebit","F491 / Plaatsen beugel categorie 9"]
[null,null,null,null,"R50 / Metalen fixatiekap met afdruk",null,null,null,"J51 / Onder klikgebit","F611 / Elektronische chip in uitneembare apparatuur"]
[null,null,null,null,"R55 / Gipsslot met extra afdruk",null,null,null,"J52 / Boven klikgebit","F612 / Plaatsem intermaxillaire correctieveren"]
[null,null,null,null,"R60, R61 / Plakbrug",null,null,null,"J53 / Omvorming klikgebit","F716 / Mondbeschermer"]
[null,null,null,null,"R71 / Vernieuwen porseleinen schildje",null,null,null,"J54 / Omvorming klikgebit op 1 staaf","F723 / Plaatsen micro-implantaat"]
[null,null,null,null,"R74 / Opnieuw vastzetten niet plastische restauraties",null,null,null,"J55 / Omvorming klikgebit op staven bij drie / vier implantaten","F811 / Reparatie of vervanging beugel"]
[null,null,null,null,"R78, R79 / Schildje van keramiek of kunststof",null,null,null,"J56 / Omvorming klikgebit op staven bij vijf / zes implantaten","F812 / Herstel en plaatsen van retentie apparatuur"]
[null,null,null,null,"R80, R85 / Temporaire voorziening",null,null,null,"J70 / Opvullen zonder staafdemontage","F813, F814 / Plaatsen extra retentiebeugel, per kaak"]
[null,null,null,null,null,null,null,null,"J71 / Opvullen met staafdemontage op twee implantaten"]
[null,null,null,null,null,null,null,null,"J72 / Opvullen staafdemontage op twee staven"]
[null,null,null,null,null,null,null,null,"J73 / Opvullen met staafdemontage op meer dan twee staven"]
[null,null,null,null,null,null,null,null,"J74 / Reparatie zonder staafdemontage"]
[null,null,null,null,null,null,null,null,"J75 / Reparatie met staafdemontage "]
[null,null,null,null,null,null,null,null,"J76 / Reparatie met staafdemontage"]
[null,null,null,null,null,null,null,null,"J77 / Reparatie met staafdemontage"]